Body Name,Service Area,Expenses Type,Invoice Payment Date,Transaction Number,Net Amount,Supplier Name
Manchester City Council,Adult Social Care,Grant and subscriptions awarded,01.04.2015,5100783929,"4,800.00",House Of Grumpy Ltd
Manchester City Council,Adult Social Care,Hire of Premises,01.04.2015,5100783810,"1,177.10",Northmoor Community Association
Manchester City Council,Adult Social Care,Payments for services,01.04.2015,5100783803,"2,080.00",Arch Initiatives
Manchester City Council,Chief Executives,Agency staff provision,01.04.2015,1904579027,"11,000.00",DWF LLP
Manchester City Council,Chief Executives,Agency staff provision,01.04.2015,1700056026,"-11,000.00",DWF LLP
Manchester City Council,Chief Executives,Subsistence and Conference Expenses,01.04.2015,5100783822,"1,800.00",Political Skills Forum
Manchester City Council,Chief Executives,Training and Development,01.04.2015,1904578953,"1,725.00",Redacted Personal Information
Manchester City Council,Housing Revenue Account,Council Dwelling Adaptations,01.04.2015,5100783817,"1,726.01",SIG Roofing Supplies
Manchester City Council,Housing Revenue Account,Council Dwelling Adaptations,01.04.2015,5100783815,"1,151.49",JTC Furniture Group
Manchester City Council,Manchester Leisure,Equipment,01.04.2015,5100783796,"2,522.85",Clarity Retail Systems Limited
Manchester City Council,Regeneration Finance,Grant and subscriptions awarded,01.04.2015,1904579144,"2,710.00",Odd Arts
Manchester City Council,Regeneration Finance,Grant and subscriptions awarded,01.04.2015,1904579054,800.00,Friends of Beech Road Park
Manchester City Council,Regeneration Finance,Professional fees,01.04.2015,5100783804,758.39,Marketing Manchester
Manchester City Council,Regeneration Finance,Subsistence and Conference Expenses,01.04.2015,5100783798,"2,536.00",Marketing Manchester
Manchester City Council,Adult Social Care,Contract Cleaning External,02.04.2015,5100784109,"13,272.00",Brighter Beginnings (Cheetham)
Manchester City Council,Adult Social Care,Contract Cleaning External,02.04.2015,5100784108,"3,556.00",Brighter Beginnings (Cheetham)
Manchester City Council,Adult Social Care,Payments for services,02.04.2015,5100783935,"1,987.50",Central Manchester University Hosp
Manchester City Council,Adult Social Care,Payments for services,02.04.2015,5100783959,"1,020.00",Manchester Settlement
Manchester City Council,Adult Social Care,Rents,02.04.2015,5100783972,"2,390.40",Paint Pots (Manchester) Ltd
Manchester City Council,Adult Social Care,Rents,02.04.2015,5100783973,598.00,Paint Pots (Manchester) Ltd
Manchester City Council,Adult Social Care,Supporting People Payments,02.04.2015,5100783904,"19,091.41",Riverside ECHG
Manchester City Council,Adult Social Care,Supporting People Payments,02.04.2015,5100783904,"16,642.92",Riverside ECHG
Manchester City Council,Adult Social Care,Supporting People Payments,02.04.2015,5100783904,"13,934.63",Riverside ECHG
Manchester City Council,Adult Social Care,Supporting People Payments,02.04.2015,5100783904,"8,604.09",Riverside ECHG
Manchester City Council,Adult Social Care,Supporting People Payments,02.04.2015,5100783904,"7,315.09",Riverside ECHG
Manchester City Council,Adult Social Care,Supporting People Payments,02.04.2015,5100783904,"5,521.14",Riverside ECHG
Manchester City Council,Adult Social Care,Supporting People Payments,02.04.2015,5100783904,"3,979.18",Riverside ECHG
Manchester City Council,Adult Social Care,Supporting People Payments,02.04.2015,5100783904,"3,596.52",Riverside ECHG
Manchester City Council,Adult Social Care,Supporting People Payments,02.04.2015,5100783904,"3,334.49",Riverside ECHG
Manchester City Council,Adult Social Care,Supporting People Payments,02.04.2015,5100783904,"2,092.96",Riverside ECHG
Manchester City Council,Adult Social Care,Supporting People Payments,02.04.2015,5100783904,"1,499.20",Riverside ECHG
Manchester City Council,Adult Social Care,Supporting People Payments,02.04.2015,5100783904,"1,077.42",Riverside ECHG
Manchester City Council,Adult Social Care,Supporting People Payments,02.04.2015,5100783904,"1,042.78",Riverside ECHG
Manchester City Council,Adult Social Care,Supporting People Payments,02.04.2015,5100783812,954.48,Housing 21
Manchester City Council,Adult Social Care,Supporting People Payments,02.04.2015,5100783904,903.55,Riverside ECHG
Manchester City Council,Adult Social Care,Supporting People Payments,02.04.2015,5100783814,788.52,Housing 21
Manchester City Council,Adult Social Care,Supporting People Payments,02.04.2015,5100783904,625.99,Riverside ECHG
Manchester City Council,Adult Social Care,Third party payments relating to Voluntary Organisations,02.04.2015,5100783939,"3,439.00",Talbot/Himmat Support Centre
Manchester City Council,Adult Social Care,Training and Development,02.04.2015,5100783888,729.00,The Manchester College
Manchester City Council,Childrens Services,Works and associated costs for Land and Buildings,02.04.2015,5100783951,"248,933.00",Laing O'Rourke Construction Ltd
Manchester City Council,Childrens Services,Works and associated costs for Land and Buildings,02.04.2015,5100783956,"-248,933.00",Laing O'Rourke Construction Ltd
Manchester City Council,Corporate Services,Distrib Airport Rent,02.04.2015,1904571692,"104,193.13",Oldham Borough Council
Manchester City Council,Corporate Services,Distrib Airport Rent,02.04.2015,1904571693,"104,193.13",Tameside Metropolitan Bouough
Manchester City Council,Corporate Services,Distrib Airport Rent,02.04.2015,1904571696,"104,193.13",Wigan Metropolitan Borough Council
Manchester City Council,Corporate Services,Distrib Airport Rent,02.04.2015,1904571626,"104,193.13",Rochdale Mbc
Manchester City Council,Corporate Services,Distrib Airport Rent,02.04.2015,1904571697,"104,193.13",Stockport Metropolitan Borough Coun
Manchester City Council,Corporate Services,Distrib Airport Rent,02.04.2015,1904571695,"104,193.13",Bolton Mbc
Manchester City Council,Corporate Services,Distrib Airport Rent,02.04.2015,1904571691,"104,193.13",Salford City Council
Manchester City Council,Corporate Services,Distrib Airport Rent,02.04.2015,1904571694,"104,193.13",Trafford M B C
Manchester City Council,Corporate Services,Distrib Airport Rent,02.04.2015,1904571816,"104,193.13",Bury M.B.C.
Manchester City Council,Corporate Services,Electricity,02.04.2015,1904580498,527.44,British Gas Plc
Manchester City Council,Corporate Services,Grant and subscriptions awarded,02.04.2015,5100783894,"1,360.00",Cipfa
Manchester City Council,Corporate Services,Training and Development,02.04.2015,5100783934,"3,575.00",The Manchester College
Manchester City Council,Corporate Services,Training and Development,02.04.2015,5100783932,705.00,The Manchester College
Manchester City Council,Environment and Operations,Contract Cleaning External,02.04.2015,5100784018,607.32,Ramora Ltd
Manchester City Council,Environment and Operations,Equipment,02.04.2015,1904325933,500.00,Salford City Council
Manchester City Council,Hospitality + Trading Services,External repairs and maintenance for buildings,02.04.2015,5100783889,"22,765.07",Manchester Working Ltd
Manchester City Council,Hospitality + Trading Services,Fees,02.04.2015,1904532665,"186,252.80",Equita Ltd
Manchester City Council,Hospitality + Trading Services,Fees,02.04.2015,1904532665,"-186,252.80",Equita Ltd
Manchester City Council,Hospitality + Trading Services,Hire of Machinery,02.04.2015,5100783897,"1,038.50",R & M Developments Ltd
Manchester City Council,Hospitality + Trading Services,Hire of Machinery,02.04.2015,5100783900,810.00,R & M Developments Ltd
Manchester City Council,Hospitality + Trading Services,Rents,02.04.2015,5100784102,"261,951.93",Colliers Conrad Ritbalt Erdman
Manchester City Council,Housing Revenue Account,Council Dwelling Adaptations,02.04.2015,5100783978,"22,994.37",Northwards Housing Limited
Manchester City Council,Housing Revenue Account,Council Dwelling Adaptations,02.04.2015,5100783977,"18,260.04",Northwards Housing Limited
Manchester City Council,Housing Revenue Account,Council Dwelling Adaptations,02.04.2015,5100783984,"9,531.97",Northwards Housing Limited
Manchester City Council,Housing Revenue Account,Council Dwelling Adaptations,02.04.2015,5100783943,"9,431.18",Northwards Housing Limited
Manchester City Council,Housing Revenue Account,Council Dwelling Adaptations,02.04.2015,5100783969,"6,815.85",Northwards Housing Limited
Manchester City Council,Housing Revenue Account,Council Dwelling Adaptations,02.04.2015,5100783970,"6,032.33",Northwards Housing Limited
Manchester City Council,Housing Revenue Account,Council Dwelling Adaptations,02.04.2015,5100783971,"5,419.64",Northwards Housing Limited
Manchester City Council,Housing Revenue Account,Council Dwelling Adaptations,02.04.2015,5100783983,"5,072.51",Northwards Housing Limited
Manchester City Council,Housing Revenue Account,Council Dwelling Adaptations,02.04.2015,5100783965,"5,070.73",Northwards Housing Limited
Manchester City Council,Housing Revenue Account,Council Dwelling Adaptations,02.04.2015,5100783964,"5,041.05",Northwards Housing Limited
Manchester City Council,Housing Revenue Account,Council Dwelling Adaptations,02.04.2015,5100783963,"4,906.10",Northwards Housing Limited
Manchester City Council,Housing Revenue Account,Council Dwelling Adaptations,02.04.2015,5100783955,"4,795.40",Northwards Housing Limited
Manchester City Council,Housing Revenue Account,Council Dwelling Adaptations,02.04.2015,5100783958,"4,735.57",Northwards Housing Limited
Manchester City Council,Housing Revenue Account,Council Dwelling Adaptations,02.04.2015,5100783981,"4,637.76",Northwards Housing Limited
Manchester City Council,Housing Revenue Account,Council Dwelling Adaptations,02.04.2015,5100783980,"4,611.53",Northwards Housing Limited
Manchester City Council,Housing Revenue Account,Council Dwelling Adaptations,02.04.2015,5100783962,"4,589.09",Northwards Housing Limited
Manchester City Council,Housing Revenue Account,Council Dwelling Adaptations,02.04.2015,5100783982,"4,514.24",Northwards Housing Limited
Manchester City Council,Housing Revenue Account,Council Dwelling Adaptations,02.04.2015,5100783960,"4,454.52",Northwards Housing Limited
Manchester City Council,Housing Revenue Account,Council Dwelling Adaptations,02.04.2015,5100783947,"4,452.06",Northwards Housing Limited
Manchester City Council,Housing Revenue Account,Council Dwelling Adaptations,02.04.2015,5100783952,"4,406.10",Northwards Housing Limited
Manchester City Council,Housing Revenue Account,Council Dwelling Adaptations,02.04.2015,5100783985,"4,344.40",Northwards Housing Limited
Manchester City Council,Housing Revenue Account,Council Dwelling Adaptations,02.04.2015,5100783930,"1,695.00",Hoist & Shower Chair Company
Manchester City Council,Housing Revenue Account,Council Dwelling Fees,02.04.2015,5100783945,"114,662.31",Northwards Housing Limited
Manchester City Council,Housing Revenue Account,Council Dwelling Fees,02.04.2015,5100783941,"32,234.82",Northwards Housing Limited
Manchester City Council,Housing Revenue Account,Council Dwelling Fees,02.04.2015,5100783942,"2,804.23",Northwards Housing Limited
Manchester City Council,Housing Revenue Account,Surplus property Acquisitions,02.04.2015,1904579810,"5,070.93",Redacted Personal Information
Manchester City Council,Manchester Leisure,Payments to Sub-Contractors,02.04.2015,5100783890,"1,350.00",Massey & Harris (Engrg) Ltd
Manchester City Council,Manchester Leisure,Payments to Sub-Contractors,02.04.2015,1904572080,"1,105.00",Redacted Personal Information
Manchester City Council,Manchester Leisure,Payments to Sub-Contractors,02.04.2015,5100783887,"-1,350.00",Massey & Harris (Engrg) Ltd
Manchester City Council,Manchester Leisure,Professional fees,02.04.2015,5100783912,"35,178.53",Manchester Sports & Leisure Trust
Manchester City Council,Manchester Leisure,Subsistence and Conference Expenses,02.04.2015,5100783895,"1,500.00",4CT Limited
Manchester City Council,Manchester Leisure,Water - Metered,02.04.2015,1904580497,"5,298.90",United Utilities Water Plc
Manchester City Council,Regeneration Finance,Grant and subscriptions awarded,02.04.2015,1904578982,"5,000.00",Wythenshawe Forum Trust Ltd
Manchester City Council,Adult Social Care,Agency staff provision,07.04.2015,5100784468,"1,176.00",Supply Care Solutions
Manchester City Council,Adult Social Care,Agency staff provision,07.04.2015,5100784379,"1,119.09",SRA Cover Staff Ltd
Manchester City Council,Adult Social Care,Agency staff provision,07.04.2015,5100784141,"1,002.01",4Social Work Ltd
Manchester City Council,Adult Social Care,Agency staff provision,07.04.2015,5100784379,824.83,SRA Cover Staff Ltd
Manchester City Council,Adult Social Care,Agency staff provision,07.04.2015,5100784324,763.14,Resolve Personnel Ltd
Manchester City Council,Adult Social Care,Agency staff provision,07.04.2015,5100784442,727.30,Reed Employment Plc
Manchester City Council,Adult Social Care,Agency staff provision,07.04.2015,5100784170,703.60,SRA Cover Staff Ltd
Manchester City Council,Adult Social Care,Agency staff provision,07.04.2015,5100784379,667.17,SRA Cover Staff Ltd
Manchester City Council,Adult Social Care,Agency staff provision,07.04.2015,5100784251,"-1,002.01",4Social Work Ltd
Manchester City Council,Adult Social Care,Compensation Payments,07.04.2015,1904475134,"1,530.00",Redacted Personal Information
Manchester City Council,Adult Social Care,Compensation Payments,07.04.2015,1904562535,737.00,Department For Work & Pensions
Manchester City Council,Adult Social Care,Equipment,07.04.2015,5100784203,"1,935.00",Hearing Products International Ltd
Manchester City Council,Adult Social Care,Equipment,07.04.2015,5100784397,588.00,Sarabec Limited
Manchester City Council,Adult Social Care,Furniture,07.04.2015,5100784760,713.38,The Furnishing Service Ltd
Manchester City Council,Adult Social Care,Grant and subscriptions awarded,07.04.2015,5100784573,"3,956.83",N-Gage Project
Manchester City Council,Adult Social Care,Grant and subscriptions awarded,07.04.2015,5100784024,"1,383.33",Manchester Deaf Centre Ltd
Manchester City Council,Adult Social Care,Hire of Premises,07.04.2015,5100784523,"1,333.34",Manchester Bangladeshi Womens Organ
Manchester City Council,Adult Social Care,Hire of Premises,07.04.2015,5100784591,"1,056.67",Fallowfield Library & Comm Centre
Manchester City Council,Adult Social Care,Hire of Premises,07.04.2015,5100784525,712.50,Manchester Bangladeshi Womens Organ
Manchester City Council,Adult Social Care,Hire of Premises,07.04.2015,5100784365,507.00,Moss Side Millennium Powerhouse Ltd
Manchester City Council,Adult Social Care,Internal Repairs and Maintenance for buildings,07.04.2015,5100784404,506.90,Paint Pots (Manchester) Ltd
Manchester City Council,Adult Social Care,Payments for services,07.04.2015,5100784407,"2,440.00",Harvey House Social Enterprises Ltd
Manchester City Council,Adult Social Care,Payments for services,07.04.2015,5100784434,841.50,H.G. Care Services Ltd
Manchester City Council,Adult Social Care,Payments for services,07.04.2015,5100784443,841.50,H.G. Care Services Ltd
Manchester City Council,Adult Social Care,Personal needs of client,07.04.2015,5100784767,685.20,The Furnishing Service Ltd
Manchester City Council,Adult Social Care,Personal needs of client,07.04.2015,5100784875,581.50,Aidservice Ltd
Manchester City Council,Adult Social Care,Professional fees,07.04.2015,5100784358,"31,953.00",Cruden Group Ltd
Manchester City Council,Adult Social Care,Professional fees,07.04.2015,5100784463,"3,754.88",H.G. Care Services Ltd
Manchester City Council,Adult Social Care,Professional fees,07.04.2015,5100784495,"1,670.25",H.G. Care Services Ltd
Manchester City Council,Adult Social Care,Professional fees,07.04.2015,5100784358,"1,619.00",Cruden Group Ltd
Manchester City Council,Adult Social Care,Professional fees,07.04.2015,5100784340,959.08,Jazzy J Urban Dance
Manchester City Council,Adult Social Care,Professional fees,07.04.2015,1904578978,850.00,Redacted Personal Information
Manchester City Council,Adult Social Care,Professional fees,07.04.2015,5100784367,780.00,Rhythm and Rhyme Limited
Manchester City Council,Adult Social Care,Professional fees,07.04.2015,1904579055,650.00,Redacted Personal Information
Manchester City Council,Adult Social Care,Professional fees,07.04.2015,1904491654,573.56,Redacted Personal Information
Manchester City Council,Adult Social Care,Professional fees,07.04.2015,1904579041,560.60,Redacted Personal Information
Manchester City Council,Adult Social Care,Publications,07.04.2015,5100784262,"1,324.68",Waterstone Booksellers Ltd
Manchester City Council,Adult Social Care,Subsistence and Conference Expenses,07.04.2015,5100784110,"1,949.57",Chancellors Hotel & Conf Centre
Manchester City Council,Adult Social Care,Supporting People Payments,07.04.2015,5100784007,"3,788.40",DISC Ltd
Manchester City Council,Adult Social Care,Supporting People Payments,07.04.2015,5100784008,"2,995.28",DISC Ltd
Manchester City Council,Adult Social Care,Third party payments relating to Voluntary Organisations,07.04.2015,5100784205,"320,000.00",One Education Ltd
Manchester City Council,Adult Social Care,Third party payments relating to Voluntary Organisations,07.04.2015,5100784215,"237,334.00",One Education Ltd
Manchester City Council,Adult Social Care,Third party payments relating to Voluntary Organisations,07.04.2015,5100784196,"50,000.00",Manchester Care & Repair Ltd
Manchester City Council,Adult Social Care,Third party payments relating to Voluntary Organisations,07.04.2015,5100784489,"3,547.12",Paintpots (Sale Road)
Manchester City Council,Adult Social Care,Third party payments relating to Voluntary Organisations,07.04.2015,5100784493,"3,410.00",Paintpots (Sale Road)
Manchester City Council,Adult Social Care,Third party payments relating to Voluntary Organisations,07.04.2015,5100784627,"1,881.50",Alzheimers Society (Mcr Branch)
Manchester City Council,Adult Social Care,Third party payments relating to Voluntary Organisations,07.04.2015,5100784503,"1,704.00",Chapter 1
Manchester City Council,Adult Social Care,Third party payments relating to Voluntary Organisations,07.04.2015,5100784530,"1,691.25",Wythenshawe Community Initiative
Manchester City Council,Adult Social Care,Third party payments relating to Voluntary Organisations,07.04.2015,5100784424,"1,472.00",Wai Yin Society
Manchester City Council,Adult Social Care,Third party payments relating to Voluntary Organisations,07.04.2015,5100784490,972.00,Paintpots (Sale Road)
Manchester City Council,Adult Social Care,Third party payments relating to Voluntary Organisations,07.04.2015,5100784486,630.00,Paintpots (Sale Road)
Manchester City Council,Adult Social Care,Transport Coach Hire,07.04.2015,5100784166,"1,425.00",T/A Beresford Travel
Manchester City Council,Chief Executives,Advertising,07.04.2015,5100784373,780.00,MediaCo Outdoor Limited
Manchester City Council,Chief Executives,Agency staff provision,07.04.2015,5100784379,"11,210.19",SRA Cover Staff Ltd
Manchester City Council,Chief Executives,Agency staff provision,07.04.2015,5100784170,"7,588.88",SRA Cover Staff Ltd
Manchester City Council,Chief Executives,Agency staff provision,07.04.2015,5100784324,"5,287.50",Resolve Personnel Ltd
Manchester City Council,Chief Executives,Agency staff provision,07.04.2015,5100784561,"3,000.00",Hays Personnel
Manchester City Council,Chief Executives,Agency staff provision,07.04.2015,5100784577,"2,382.70",Hays Personnel
Manchester City Council,Chief Executives,Agency staff provision,07.04.2015,5100784568,"1,684.51",Hays Personnel
Manchester City Council,Chief Executives,Agency staff provision,07.04.2015,5100784442,"1,617.65",Reed Employment Plc
Manchester City Council,Chief Executives,Agency staff provision,07.04.2015,5100784442,"1,525.41",Reed Employment Plc
Manchester City Council,Chief Executives,Agency staff provision,07.04.2015,5100784411,"1,185.39",Bennett Staff Bureau
Manchester City Council,Chief Executives,Agency staff provision,07.04.2015,5100784558,860.00,Hays Personnel
Manchester City Council,Chief Executives,Agency staff provision,07.04.2015,5100784455,820.59,Supply Care Solutions
Manchester City Council,Chief Executives,Agency staff provision,07.04.2015,5100784411,617.60,Bennett Staff Bureau
Manchester City Council,Chief Executives,Equipment,07.04.2015,5100784146,"2,250.00",VP Bastion Ltd
Manchester City Council,Chief Executives,External repairs and maintenance for buildings,07.04.2015,5100784349,"1,204.98",Manchester Working Ltd
Manchester City Council,Chief Executives,External repairs and maintenance for buildings,07.04.2015,5100784211,-977.00,Manchester Working Ltd
Manchester City Council,Chief Executives,Funeral and coroner related services,07.04.2015,5100784216,"5,675.00",University Hospital of South Mcr
Manchester City Council,Chief Executives,Funeral and coroner related services,07.04.2015,1904580561,836.51,Redacted Personal Information
Manchester City Council,Chief Executives,Funeral and coroner related services,07.04.2015,1904579249,500.00,Redacted Personal Information
Manchester City Council,Chief Executives,Hire of Equipment,07.04.2015,5100784401,"1,191.00",Universal Live
Manchester City Council,Chief Executives,Hire of Equipment,07.04.2015,5100784254,646.78,Shaw & Sons Ltd
Manchester City Council,Chief Executives,I T Provision,07.04.2015,5100784363,"4,710.00",Jigsaw Systems Limited
Manchester City Council,Chief Executives,I T Provision,07.04.2015,5100783849,"3,465.00",T.I.S. Limited
Manchester City Council,Chief Executives,Infrastructure Fees,07.04.2015,5100784570,"3,740.00",Hays Personnel
Manchester City Council,Chief Executives,Infrastructure Fees,07.04.2015,5100784571,"3,600.00",Hays Personnel
Manchester City Council,Chief Executives,Infrastructure Fees,07.04.2015,5100784565,"3,600.00",Hays Personnel
Manchester City Council,Chief Executives,Infrastructure Fees,07.04.2015,5100784563,"3,205.00",Hays Personnel
Manchester City Council,Chief Executives,Infrastructure Fees,07.04.2015,5100784442,"2,647.05",Reed Employment Plc
Manchester City Council,Chief Executives,Infrastructure Fees,07.04.2015,5100784567,"2,590.00",Hays Personnel
Manchester City Council,Chief Executives,Infrastructure Fees,07.04.2015,5100784442,"2,587.50",Reed Employment Plc
Manchester City Council,Chief Executives,Landline Telephone,07.04.2015,1904579899,"3,616.94",Vodafone (Ex C&W)
Manchester City Council,Chief Executives,Legal Fees,07.04.2015,5100783896,"11,000.00",DWF LLP
Manchester City Council,Chief Executives,Printing,07.04.2015,5100784067,"4,560.00",Astra Signs
Manchester City Council,Chief Executives,Printing,07.04.2015,5100784070,"1,868.00",Astra Signs
Manchester City Council,Chief Executives,Printing,07.04.2015,5100784426,"1,015.00",Hudson & Pearson
Manchester City Council,Chief Executives,Printing,07.04.2015,5100784423,884.00,Hudson & Pearson
Manchester City Council,Chief Executives,Printing,07.04.2015,5100784428,836.00,Hudson & Pearson
Manchester City Council,Chief Executives,Printing,07.04.2015,5100784068,657.00,Astra Signs
Manchester City Council,Chief Executives,Professional fees,07.04.2015,5100784021,750.00,The Lesbian & Gay Foundation
Manchester City Council,Chief Executives,Stationery,07.04.2015,5100784069,"1,141.10",Banner Business Services Ltd
Manchester City Council,Childrens Services,Works and associated costs for Land and Buildings,07.04.2015,5100783931,"20,660.23",Capita IT Services (BSF) Limited
Manchester City Council,Corporate Services,Agency staff provision,07.04.2015,5100783869,"4,792.17",Bury M.B.C.
Manchester City Council,Corporate Services,Grant and subscriptions awarded,07.04.2015,5100784234,"6,515.00",CIPFA Business Ltd
Manchester City Council,Corporate Services,Printing,07.04.2015,5100784010,"1,100.00",Mail Solutions
Manchester City Council,Corporate Services,Professional fees,07.04.2015,5100783800,"6,689.50",Turner & Townsend Cost
Manchester City Council,Corporate Services,Professional fees,07.04.2015,5100784155,870.00,Redgate Holdings Ltd
Manchester City Council,Corporate Services,Works and associated costs for Land and Buildings,07.04.2015,5100784612,"17,888.23",Manchester Working Ltd
Manchester City Council,Environment and Operations,Agency staff provision,07.04.2015,5100784576,"1,831.21",Hays Personnel
Manchester City Council,Environment and Operations,Agency staff provision,07.04.2015,5100784575,"1,430.80",Hays Personnel
Manchester City Council,Environment and Operations,Agency staff provision,07.04.2015,5100784324,"1,358.49",Resolve Personnel Ltd
Manchester City Council,Environment and Operations,Agency staff provision,07.04.2015,5100784324,"1,073.10",Resolve Personnel Ltd
Manchester City Council,Environment and Operations,Agency staff provision,07.04.2015,5100784324,559.19,Resolve Personnel Ltd
Manchester City Council,Environment and Operations,Building Materials for direct delivery,07.04.2015,5100784158,900.00,Redgate Holdings Ltd
Manchester City Council,Environment and Operations,Construction Works,07.04.2015,5100783802,"32,786.13",Aggregate Industries T/A Kennedy As
Manchester City Council,Environment and Operations,Construction Works,07.04.2015,5100783873,"4,331.89",J.Hopkins (Contractors) Ltd.
Manchester City Council,Environment and Operations,Equipment,07.04.2015,5100783907,"91,938.00",Enterprise Manchester DOMESTIC
Manchester City Council,Environment and Operations,Equipment,07.04.2015,5100783877,"28,610.70",Enterprise Manchester DOMESTIC
Manchester City Council,Environment and Operations,Equipment,07.04.2015,5100784333,"2,104.20",Bruel & Kjaer (Uk) Ltd
Manchester City Council,Environment and Operations,Grant and subscriptions awarded,07.04.2015,5100784168,"17,754.33",Greater Manchester Police
Manchester City Council,Environment and Operations,I T Provision,07.04.2015,5100783995,"21,063.84",Computacenter (UK) Ltd
Manchester City Council,Environment and Operations,Payments to Sub-Contractors,07.04.2015,5100784160,"2,000.00",Redgate Holdings Ltd
Manchester City Council,Environment and Operations,Refuse Collection,07.04.2015,5100784288,"1,968.75",The Helping Hand Company Ltd
Manchester City Council,Environment and Operations,Refuse Collection,07.04.2015,5100784290,"1,968.75",The Helping Hand Company Ltd
Manchester City Council,Environment and Operations,Refuse Collection,07.04.2015,5100783919,"1,600.00",Redgate Holdings Ltd
Manchester City Council,Environment and Operations,Refuse Collection,07.04.2015,5100784289,"1,322.00",The Helping Hand Company Ltd
Manchester City Council,Environment and Operations,Refuse Collection,07.04.2015,5100784287,"1,271.00",The Helping Hand Company Ltd
Manchester City Council,Environment and Operations,Security,07.04.2015,5100784167,"7,325.00",Greater Manchester Police
Manchester City Council,GMIST (Greater Mcr Integrated),Agency staff provision,07.04.2015,5100784197,"12,435.69",Bury M.B.C.
Manchester City Council,Hospitality + Trading Services,Agency staff provision,07.04.2015,5100784553,"5,319.05",Hays Personnel
Manchester City Council,Hospitality + Trading Services,Agency staff provision,07.04.2015,5100784233,"-1,297.74",HBS (UK) Cleaning Services Ltd
Manchester City Council,Hospitality + Trading Services,Building Materials for direct delivery,07.04.2015,5100784214,"2,990.00",Earth Anchors Ltd
Manchester City Council,Hospitality + Trading Services,Building Materials for direct delivery,07.04.2015,1904579266,520.00,Anglesey Bollards
Manchester City Council,Hospitality + Trading Services,Catering Provisions,07.04.2015,1904582230,"73,434.42",Ralph Livesey Ltd
Manchester City Council,Hospitality + Trading Services,Catering Provisions,07.04.2015,1904581696,"1,175.10",Brake Bros Foodservice Ltd
Manchester City Council,Hospitality + Trading Services,Catering Provisions,07.04.2015,1904581478,907.02,BRAMBLES FOODS LTD
Manchester City Council,Hospitality + Trading Services,Catering Provisions,07.04.2015,1904581475,904.67,BRAMBLES FOODS LTD
Manchester City Council,Hospitality + Trading Services,Catering Provisions,07.04.2015,1904581476,904.67,BRAMBLES FOODS LTD
Manchester City Council,Hospitality + Trading Services,Catering Provisions,07.04.2015,1904581477,885.92,BRAMBLES FOODS LTD
Manchester City Council,Hospitality + Trading Services,Catering Provisions,07.04.2015,1904581474,847.22,BRAMBLES FOODS LTD
Manchester City Council,Hospitality + Trading Services,Catering Provisions,07.04.2015,1904581632,838.31,Brake Bros Foodservice Ltd
Manchester City Council,Hospitality + Trading Services,Catering Provisions,07.04.2015,1904581672,795.67,Brake Bros Foodservice Ltd
Manchester City Council,Hospitality + Trading Services,Catering Provisions,07.04.2015,1904581670,790.37,Chicken Joes Limited
Manchester City Council,Hospitality + Trading Services,Catering Provisions,07.04.2015,1904581671,787.27,Chicken Joes Limited
Manchester City Council,Hospitality + Trading Services,Catering Provisions,07.04.2015,1904581620,760.20,Brake Bros Foodservice Ltd
Manchester City Council,Hospitality + Trading Services,Catering Provisions,07.04.2015,1904581653,702.79,Brake Bros Foodservice Ltd
Manchester City Council,Hospitality + Trading Services,Catering Provisions,07.04.2015,1904581317,696.55,Chicken Joes Limited
Manchester City Council,Hospitality + Trading Services,Catering Provisions,07.04.2015,1904581319,672.36,Brake Bros Foodservice Ltd
Manchester City Council,Hospitality + Trading Services,Catering Provisions,07.04.2015,1904581472,603.83,Brake Bros Foodservice Ltd
Manchester City Council,Hospitality + Trading Services,Catering Provisions,07.04.2015,1904581607,590.40,Pasta King (Uk) Ltd
Manchester City Council,Hospitality + Trading Services,Catering Provisions,07.04.2015,1904581537,562.62,Brake Bros Foodservice Ltd
Manchester City Council,Hospitality + Trading Services,Catering Provisions,07.04.2015,1904581424,541.90,Brake Bros Foodservice Ltd
Manchester City Council,Hospitality + Trading Services,Catering Provisions,07.04.2015,1904581306,537.33,Brake Bros Foodservice Ltd
Manchester City Council,Hospitality + Trading Services,Contract Cleaning External,07.04.2015,5100784540,750.00,Zagota Creations Limited
Manchester City Council,Hospitality + Trading Services,Electricity,07.04.2015,5100784194,"1,003.00",Manchester Working Ltd
Manchester City Council,Hospitality + Trading Services,External repairs and maintenance for buildings,07.04.2015,5100784200,"1,270.89",Manchester Working Ltd
Manchester City Council,Hospitality + Trading Services,External repairs and maintenance for buildings,07.04.2015,5100784199,959.22,Manchester Working Ltd
Manchester City Council,Hospitality + Trading Services,External repairs and maintenance for buildings,07.04.2015,5100784191,693.45,Manchester Working Ltd
Manchester City Council,Hospitality + Trading Services,Funeral and coroner related services,07.04.2015,5100784546,"3,743.73",Furnace Construction Cremators Ltd
Manchester City Council,Hospitality + Trading Services,Funeral and coroner related services,07.04.2015,5100784590,"3,743.25",Manchester Working Ltd
Manchester City Council,Hospitality + Trading Services,Funeral and coroner related services,07.04.2015,5100784552,"2,490.00",Manchester Working Ltd
Manchester City Council,Hospitality + Trading Services,Funeral and coroner related services,07.04.2015,5100784535,"2,421.20",Furnace Construction Cremators Ltd
Manchester City Council,Hospitality + Trading Services,Funeral and coroner related services,07.04.2015,5100784441,"2,120.50",Manchester Working Ltd
Manchester City Council,Hospitality + Trading Services,Funeral and coroner related services,07.04.2015,5100784335,962.01,Manchester Working Ltd
Manchester City Council,Hospitality + Trading Services,Funeral and coroner related services,07.04.2015,5100784544,910.87,Furnace Construction Cremators Ltd
Manchester City Council,Hospitality + Trading Services,Funeral and coroner related services,07.04.2015,5100784440,752.14,Manchester Working Ltd
Manchester City Council,Hospitality + Trading Services,Funeral and coroner related services,07.04.2015,5100784444,602.00,Manchester Working Ltd
Manchester City Council,Hospitality + Trading Services,Hire of Equipment,07.04.2015,5100784580,566.50,Mastacab LLP
Manchester City Council,Hospitality + Trading Services,Machinery and equipment repairs,07.04.2015,5100784009,"1,120.00",Mouchel Limited
Manchester City Council,Hospitality + Trading Services,Payments to Sub-Contractors,07.04.2015,5100784122,"5,057.78",Custodian Monitoring
Manchester City Council,Hospitality + Trading Services,Payments to Sub-Contractors,07.04.2015,5100784841,"2,800.00",Clearway Drainage Systems Ltd
Manchester City Council,Hospitality + Trading Services,Payments to Sub-Contractors,07.04.2015,5100784846,600.00,Clearway Drainage Systems Ltd
Manchester City Council,Hospitality + Trading Services,Payments to Sub-Contractors,07.04.2015,5100784564,579.60,Northern Marking Limited
Manchester City Council,Hospitality + Trading Services,Payments to Sub-Contractors,07.04.2015,5100784840,560.00,Clearway Drainage Systems Ltd
Manchester City Council,Hospitality + Trading Services,Payments to Sub-Contractors,07.04.2015,5100784843,560.00,Clearway Drainage Systems Ltd
Manchester City Council,Hospitality + Trading Services,Vehicle Costs,07.04.2015,5100784342,662.00,Approved Hydraulics
Manchester City Council,Hospitality + Trading Services,Vehicle Hire Costs,07.04.2015,5100784092,"10,111.20",Specialist Vehicle rental
Manchester City Council,Hospitality + Trading Services,Vehicle Repairs,07.04.2015,5100784105,517.00,Advanced Vehicle Technicians Ltd
Manchester City Council,Housing General Fund,Building Works,07.04.2015,1904582253,"16,444.19",Kier Services Ltd - Maint West
Manchester City Council,Housing General Fund,Building Works,07.04.2015,1904582268,"9,539.00",Pollock Lifts Ltd
Manchester City Council,Housing General Fund,Building Works,07.04.2015,1904582259,"8,697.47",Kier Services Ltd - Maint West
Manchester City Council,Housing General Fund,Building Works,07.04.2015,1904582258,"8,112.72",Pollock Lifts Ltd
Manchester City Council,Housing General Fund,Building Works,07.04.2015,1904582260,"8,059.70",Kier Services Ltd - Maint West
Manchester City Council,Housing General Fund,Building Works,07.04.2015,1904582265,"6,741.80",Kier Services Ltd - Maint West
Manchester City Council,Housing General Fund,Building Works,07.04.2015,1904582255,"6,350.08",Kier Services Ltd - Maint West
Manchester City Council,Housing General Fund,Building Works,07.04.2015,1904582263,"5,778.11",Kier Services Ltd - Maint West
Manchester City Council,Housing General Fund,Building Works,07.04.2015,1904582267,"5,528.31",Chiltern Invadex Ltd
Manchester City Council,Housing General Fund,Building Works,07.04.2015,1904582254,"5,513.61",Kier Services Ltd - Maint West
Manchester City Council,Housing General Fund,Building Works,07.04.2015,1904582264,"5,282.11",Kier Services Ltd - Maint West
Manchester City Council,Housing General Fund,Building Works,07.04.2015,1904582251,"5,106.00",Stannah Lift Services Ltd
Manchester City Council,Housing General Fund,Building Works,07.04.2015,1904582272,"4,542.10",Kier Services Ltd - Maint West
Manchester City Council,Housing General Fund,Building Works,07.04.2015,1904582261,"4,347.24",Kier Services Ltd - Maint West
Manchester City Council,Housing General Fund,Building Works,07.04.2015,1904582257,"4,283.58",Kier Services Ltd - Maint West
Manchester City Council,Housing General Fund,Building Works,07.04.2015,1904582271,"4,207.52",Kier Services Ltd - Maint West
Manchester City Council,Housing General Fund,Building Works,07.04.2015,1904582250,"4,156.51",Stannah Lift Services Ltd
Manchester City Council,Housing General Fund,Building Works,07.04.2015,1904582256,"4,071.00",Stannah Lift Services Ltd
Manchester City Council,Housing General Fund,Building Works,07.04.2015,1904582262,"4,022.83",Kier Services Ltd - Maint West
Manchester City Council,Housing General Fund,Building Works,07.04.2015,1904582270,"3,833.00",Thyssenkrupp Encasa
Manchester City Council,Housing General Fund,Building Works,07.04.2015,1904582266,"2,008.03",Stannah Lift Services Ltd
Manchester City Council,Housing General Fund,Building Works,07.04.2015,1904582269,"1,870.35",Chiltern Invadex Ltd
Manchester City Council,Housing General Fund,Building Works,07.04.2015,1904582249,"1,439.81",Stannah Lift Services Ltd
Manchester City Council,Housing General Fund,Building Works,07.04.2015,1904582252,"1,430.00",Stannah Lift Services Ltd
Manchester City Council,Housing General Fund,Works and associated costs for Land and Buildings,07.04.2015,1904582298,"75,000.00",Comtec Presentations Ltd
Manchester City Council,Housing Revenue Account,Council Dwelling Adaptations,07.04.2015,5100784341,"187,052.22",Manchester Working Ltd
Manchester City Council,Housing Revenue Account,Council Dwelling Adaptations,07.04.2015,5100784341,"153,311.83",Manchester Working Ltd
Manchester City Council,Housing Revenue Account,Council Dwelling Adaptations,07.04.2015,5100784341,"91,637.00",Manchester Working Ltd
Manchester City Council,Housing Revenue Account,Council Dwelling Adaptations,07.04.2015,5100784345,"44,745.59",Manchester Working Ltd
Manchester City Council,Housing Revenue Account,Council Dwelling Adaptations,07.04.2015,5100784341,"12,352.00",Manchester Working Ltd
Manchester City Council,Housing Revenue Account,Council Dwelling Adaptations,07.04.2015,5100784331,"9,630.55",Manchester Working Ltd
Manchester City Council,Housing Revenue Account,Council Dwelling Adaptations,07.04.2015,5100784117,"9,320.36",SIG Roofing Supplies
Manchester City Council,Housing Revenue Account,Council Dwelling Adaptations,07.04.2015,5100784145,"9,078.99",Manchester Working Ltd
Manchester City Council,Housing Revenue Account,Council Dwelling Adaptations,07.04.2015,5100784119,"8,265.34",SIG Roofing Supplies
Manchester City Council,Housing Revenue Account,Council Dwelling Adaptations,07.04.2015,5100784120,"5,232.63",SIG Roofing Supplies
Manchester City Council,Housing Revenue Account,Council Dwelling Adaptations,07.04.2015,5100784115,"5,155.21",Pts Plumbing Trade Supplies
Manchester City Council,Housing Revenue Account,Council Dwelling Adaptations,07.04.2015,5100784145,"3,819.70",Manchester Working Ltd
Manchester City Council,Housing Revenue Account,Council Dwelling Adaptations,07.04.2015,5100784331,"3,007.08",Manchester Working Ltd
Manchester City Council,Housing Revenue Account,Council Dwelling Adaptations,07.04.2015,5100784125,"2,806.25",Pts Plumbing Trade Supplies
Manchester City Council,Housing Revenue Account,Council Dwelling Adaptations,07.04.2015,5100784116,"2,698.27",Pts Plumbing Trade Supplies
Manchester City Council,Housing Revenue Account,Council Dwelling Adaptations,07.04.2015,5100784131,"2,012.16",Vista Panels Ltd
Manchester City Council,Housing Revenue Account,Council Dwelling Adaptations,07.04.2015,5100784223,"1,695.00",Hoist & Shower Chair Company
Manchester City Council,Housing Revenue Account,Council Dwelling Adaptations,07.04.2015,5100784163,"1,114.45",Vista Panels Ltd
Manchester City Council,Housing Revenue Account,Council Dwelling Adaptations,07.04.2015,5100784162,680.80,Vista Panels Ltd
Manchester City Council,Housing Revenue Account,Council Dwelling Adaptations,07.04.2015,5100784133,648.59,Vista Panels Ltd
Manchester City Council,Housing Revenue Account,Council Dwelling Adaptations,07.04.2015,5100784130,622.51,Vista Panels Ltd
Manchester City Council,Housing Revenue Account,Council Dwelling Adaptations,07.04.2015,5100784222,"-1,695.00",Hoist & Shower Chair Company
Manchester City Council,Housing Revenue Account,Council Dwelling Adaptations,07.04.2015,5100784140,"-12,898.69",Manchester Working Ltd
Manchester City Council,Insurance Fund,Insurance,07.04.2015,1904562554,"5,500.00",Abney Garsden Mcdonald
Manchester City Council,Insurance Fund,Insurance,07.04.2015,1904503503,"3,764.50",Redacted Personal Information
Manchester City Council,Insurance Fund,Insurance,07.04.2015,5100784143,"1,137.00",Cunningham Lindsey UK
Manchester City Council,Libraries and Theatres,Building Materials for direct delivery,07.04.2015,5100784482,680.00,North West In Bloom
Manchester City Council,Manchester Leisure,Agency staff provision,07.04.2015,5100784324,846.09,Resolve Personnel Ltd
Manchester City Council,Manchester Leisure,Building Materials for direct delivery,07.04.2015,5100784631,"1,740.00",Cocklestorm Fencing  Ltd
Manchester City Council,Manchester Leisure,Building Materials for direct delivery,07.04.2015,5100784439,"1,583.00",Cocklestorm Fencing  Ltd
Manchester City Council,Manchester Leisure,Building Materials for direct delivery,07.04.2015,5100784626,"1,583.00",Cocklestorm Fencing  Ltd
Manchester City Council,Manchester Leisure,Building Materials for direct delivery,07.04.2015,5100784629,885.00,Cocklestorm Fencing  Ltd
Manchester City Council,Manchester Leisure,Equipment,07.04.2015,5100784374,"1,800.00",Services Metals North Ltd
Manchester City Council,Manchester Leisure,Equipment,07.04.2015,5100783936,"1,583.00",Cocklestorm Fencing  Ltd
Manchester City Council,Manchester Leisure,Equipment,07.04.2015,5100784239,735.28,Floreeda Fabrications Ltd
Manchester City Council,Manchester Leisure,Equipment,07.04.2015,5100784454,668.00,Height Lift & Shift Ltd
Manchester City Council,Manchester Leisure,Grant and subscriptions awarded,07.04.2015,5100783992,"10,000.00",North West Media Ltd
Manchester City Council,Manchester Leisure,Grant and subscriptions awarded,07.04.2015,5100784366,"1,100.00",Armitt Library and Museum Centre
Manchester City Council,Manchester Leisure,Grounds Maintenance,07.04.2015,5100784389,719.70,Rigby Taylor Ltd
Manchester City Council,Manchester Leisure,I T Provision,07.04.2015,5100784204,"27,201.05",Fairway Landscapes Ltd
Manchester City Council,Manchester Leisure,I T Provision,07.04.2015,5100784464,"3,386.87",Osborne Technologies Ltd
Manchester City Council,Manchester Leisure,I T Provision,07.04.2015,5100784178,"2,979.50",GBM Digital Technologies Ltd
Manchester City Council,Manchester Leisure,I T Provision,07.04.2015,5100784249,873.00,GoPrint3D t/a Express Group Ltd
Manchester City Council,Manchester Leisure,I T Provision,07.04.2015,5100784372,825.00,GoPrint3D t/a Express Group Ltd
Manchester City Council,Manchester Leisure,I T Provision,07.04.2015,5100784866,731.50,Chambers & Perkins
Manchester City Council,Manchester Leisure,Payments for services,07.04.2015,5100784632,"3,325.00",Manchester Rugby Union
Manchester City Council,Manchester Leisure,Payments for services,07.04.2015,5100784210,"1,560.00",3StyleSports Limited
Manchester City Council,Manchester Leisure,Payments for services,07.04.2015,1904572068,806.00,Sports Equipment Supplies
Manchester City Council,Manchester Leisure,Refuse Collection,07.04.2015,5100784157,"1,500.00",Redgate Holdings Ltd
Manchester City Council,Manchester Leisure,Refuse Collection,07.04.2015,5100784152,"1,000.00",Redgate Holdings Ltd
Manchester City Council,Manchester Leisure,Refuse Collection,07.04.2015,5100784150,586.16,Redgate Holdings Ltd
Manchester City Council,Manchester Leisure,Variation Orders,07.04.2015,5100784403,780.00,Continental Landscapes Limited
Manchester City Council,Regeneration Finance,Agency staff provision,07.04.2015,5100784556,"1,485.00",Hays Personnel
Manchester City Council,Regeneration Finance,Catering,07.04.2015,1904579058,528.70,Liverpool Vision
Manchester City Council,Regeneration Finance,Grant and subscriptions awarded,07.04.2015,5100784139,"1,500.00",Chorlton Revival
Manchester City Council,Regeneration Finance,Grant and subscriptions awarded,07.04.2015,1904579032,810.00,Hideaway Youth Project
Manchester City Council,Adult Social Care,Agency staff provision,08.04.2015,5100784192,"4,833.37",Sanctuary Social Care
Manchester City Council,Adult Social Care,Agency staff provision,08.04.2015,5100784192,"4,356.65",Sanctuary Social Care
Manchester City Council,Adult Social Care,Agency staff provision,08.04.2015,5100784192,"3,636.50",Sanctuary Social Care
Manchester City Council,Adult Social Care,Agency staff provision,08.04.2015,5100784192,"3,042.90",Sanctuary Social Care
Manchester City Council,Adult Social Care,Agency staff provision,08.04.2015,5100784192,"1,740.97",Sanctuary Social Care
Manchester City Council,Adult Social Care,Agency staff provision,08.04.2015,5100784192,"1,378.89",Sanctuary Social Care
Manchester City Council,Adult Social Care,Agency staff provision,08.04.2015,5100784192,964.40,Sanctuary Social Care
Manchester City Council,Adult Social Care,Compensation Payments,08.04.2015,1904579082,"2,062.50",Redacted Personal Information
Manchester City Council,Adult Social Care,Contract Cleaning External,08.04.2015,5100784917,"2,499.98",Foundation Years Nurs - Sharston
Manchester City Council,Adult Social Care,Equipment,08.04.2015,5100784957,"11,640.50",Independent Life Solutions
Manchester City Council,Adult Social Care,Equipment,08.04.2015,5100784704,"-2,235.90",Tunstall Healthcare (UK) Ltd
Manchester City Council,Adult Social Care,Expenditure re Internal Trading Ordered Externally,08.04.2015,5100784613,"1,500.00",Stockport Mbc
Manchester City Council,Adult Social Care,Furniture,08.04.2015,5100785192,690.04,The Furnishing Service Ltd
Manchester City Council,Adult Social Care,Furniture,08.04.2015,5100785189,593.68,The Furnishing Service Ltd
Manchester City Council,Adult Social Care,Grant and subscriptions awarded,08.04.2015,5100784726,"1,564.16",Willow Park Housing Trust
Manchester City Council,Adult Social Care,Grant and subscriptions awarded,08.04.2015,5100784729,"1,564.16",Willow Park Housing Trust
Manchester City Council,Adult Social Care,Grant and subscriptions awarded,08.04.2015,5100784962,"1,460.41",Ladybarn Community Centre
Manchester City Council,Adult Social Care,Hire of Equipment,08.04.2015,5100784946,656.63,Siemens Financial Services Ltd
Manchester City Council,Adult Social Care,Hire of Premises,08.04.2015,5100784699,"1,000.00",Barlow Moor Community Association
Manchester City Council,Adult Social Care,Internal Repairs and Maintenance for buildings,08.04.2015,5100784430,"6,500.00",Manchester Working Ltd
Manchester City Council,Adult Social Care,Internal Repairs and Maintenance for buildings,08.04.2015,1904579246,500.00,Redacted Personal Information
Manchester City Council,Adult Social Care,Licences Purchase,08.04.2015,5100785029,"169,800.62",Capita Business Services Ltd
Manchester City Council,Adult Social Care,Payments for services,08.04.2015,5100784937,"122,594.00",Central Manchester University Hosp
Manchester City Council,Adult Social Care,Payments for services,08.04.2015,5100784883,"5,508.83",The Work Company
Manchester City Council,Adult Social Care,Personal needs of client,08.04.2015,5100783905,"3,000.00",Manchester Deaf Centre Ltd
Manchester City Council,Adult Social Care,Personal needs of client,08.04.2015,5100784657,"3,000.00",Manchester Deaf Centre Ltd
Manchester City Council,Adult Social Care,Personal needs of client,08.04.2015,5100784704,"-1,215.00",Tunstall Healthcare (UK) Ltd
Manchester City Council,Adult Social Care,Personal needs of client,08.04.2015,5100784630,"-3,000.00",Manchester Deaf Centre Ltd
Manchester City Council,Adult Social Care,Professional fees,08.04.2015,5100784892,"9,956.78",The Maddocks Consultancy Ltd
Manchester City Council,Adult Social Care,Professional fees,08.04.2015,5100784803,"3,556.00",Charles Bailey Associates Ltd
Manchester City Council,Adult Social Care,Professional fees,08.04.2015,5100784879,"1,052.10",Safehands Network Ltd
Manchester City Council,Adult Social Care,Professional fees,08.04.2015,5100785134,792.00,Charles Bailey Associates Ltd
Manchester City Council,Adult Social Care,Rates,08.04.2015,5100784960,655.41,Paint Pots (Manchester) Ltd
Manchester City Council,Adult Social Care,Rents,08.04.2015,5100784848,592.68,Eastlands Homes Partnership Ltd
Manchester City Council,Adult Social Care,Rents,08.04.2015,5100784844,543.18,Eastlands Homes Partnership Ltd
Manchester City Council,Adult Social Care,Signers/Interpreters,08.04.2015,5100784865,584.20,Language Line Ltd
Manchester City Council,Adult Social Care,Third party payments relating to Voluntary Organisations,08.04.2015,5100785127,"43,709.00",The Children'S Society Services Ltd
Manchester City Council,Adult Social Care,Third party payments relating to Voluntary Organisations,08.04.2015,5100784748,"2,532.00",Federation of Jewish Services
Manchester City Council,Adult Social Care,Third party payments relating to Voluntary Organisations,08.04.2015,5100785121,"2,186.00",Neesa Well Women Drop-In Project
Manchester City Council,Adult Social Care,Third party payments relating to Voluntary Organisations,08.04.2015,5100785047,"2,145.00",Wythenshawe Community Initiative
Manchester City Council,Adult Social Care,Third party payments relating to Voluntary Organisations,08.04.2015,5100784656,"1,957.50",HCL Social Care
Manchester City Council,Adult Social Care,Third party payments relating to Voluntary Organisations,08.04.2015,5100785043,"1,567.50",Wythenshawe Community Initiative
Manchester City Council,Adult Social Care,Third party payments relating to Voluntary Organisations,08.04.2015,5100784705,"1,175.00",Federation of Jewish Services
Manchester City Council,Adult Social Care,Third party payments relating to Voluntary Organisations,08.04.2015,5100784798,"1,175.00",Federation of Jewish Services
Manchester City Council,Adult Social Care,Third party payments relating to Voluntary Organisations,08.04.2015,5100785052,"1,150.88",Wythenshawe Community Initiative
Manchester City Council,Adult Social Care,Third party payments relating to Voluntary Organisations,08.04.2015,5100785049,536.25,Wythenshawe Community Initiative
Manchester City Council,Adult Social Care,Third party payments to Health Authority,08.04.2015,5100784707,506.90,NHS Supply Chain
Manchester City Council,Adult Social Care,Third party payments to other Local Authorities,08.04.2015,5100784950,541.66,Lancashire County Council
Manchester City Council,Adult Social Care,Training and Development,08.04.2015,5100784832,"1,550.00",KD Training Consultants Ltd
Manchester City Council,Adult Social Care,Training and Development,08.04.2015,5100784829,736.40,Edexcel
Manchester City Council,Adult Social Care,Transport Coach Hire,08.04.2015,5100785062,"4,400.00",G.M Travel
Manchester City Council,Adult Social Care,Transport Coach Hire,08.04.2015,5100784698,"1,102.50",Trafford M B C
Manchester City Council,Adult Social Care,Transport Taxis,08.04.2015,5100784219,"3,918.00",Redacted Personal Information
Manchester City Council,Adult Social Care,Transport Taxis,08.04.2015,5100784992,"-3,918.00",Redacted Personal Information
Manchester City Council,Chief Executives,Advertising,08.04.2015,5100784663,"4,014.00",Marketing Manchester
Manchester City Council,Chief Executives,Advertising,08.04.2015,5100784896,"2,880.00",Bay Media
Manchester City Council,Chief Executives,Advertising,08.04.2015,5100785073,"2,500.00",Global Radio Services Ltd
Manchester City Council,Chief Executives,Advertising,08.04.2015,5100785076,"2,426.95",Global Radio Services Ltd
Manchester City Council,Chief Executives,Advertising,08.04.2015,5100785078,750.00,Global Radio Services Ltd
Manchester City Council,Chief Executives,Agency staff provision,08.04.2015,5100784421,"1,680.00",Entrust Social Care
Manchester City Council,Chief Executives,Coroners witness sum,08.04.2015,5100784903,558.00,Blackthorne Legal Support Services
Manchester City Council,Chief Executives,Equipment,08.04.2015,5100784677,972.00,Bowe Systec
Manchester City Council,Chief Executives,Examination Fees,08.04.2015,5100785033,"2,065.00",University Hospital of South Mcr
Manchester City Council,Chief Executives,External repairs and maintenance for buildings,08.04.2015,5100784763,"10,720.50",Manchester Working Ltd
Manchester City Council,Chief Executives,External repairs and maintenance for buildings,08.04.2015,5100784212,"1,065.05",Manchester Working Ltd
Manchester City Council,Chief Executives,External repairs and maintenance for buildings,08.04.2015,5100784714,"1,060.05",Manchester Working Ltd
Manchester City Council,Chief Executives,External repairs and maintenance for buildings,08.04.2015,5100784709,"-1,065.05",Manchester Working Ltd
Manchester City Council,Chief Executives,Funeral and coroner related services,08.04.2015,5100785088,968.00,Redacted Personal Information
Manchester City Council,Chief Executives,Funeral and coroner related services,08.04.2015,5100784741,646.00,Johnston Brothers Funeral Service
Manchester City Council,Chief Executives,Funeral and coroner related services,08.04.2015,5100784736,608.00,Johnston Brothers Funeral Service
Manchester City Council,Chief Executives,Funeral and coroner related services,08.04.2015,5100784732,570.00,Johnston Brothers Funeral Service
Manchester City Council,Chief Executives,I T Provision,08.04.2015,5100785092,"2,400.00",Advanced Legal Solutions Ltd
Manchester City Council,Chief Executives,Printing,08.04.2015,5100784481,"1,313.00",Hudson & Pearson
Manchester City Council,Chief Executives,Printing,08.04.2015,5100784481,"1,214.00",Hudson & Pearson
Manchester City Council,Chief Executives,Printing,08.04.2015,5100784635,841.00,Hudson & Pearson
Manchester City Council,Chief Executives,Printing,08.04.2015,5100784557,767.00,Hudson & Pearson
Manchester City Council,Chief Executives,Printing,08.04.2015,5100784348,698.00,Hudson & Pearson
Manchester City Council,Chief Executives,Professional fees,08.04.2015,5100785098,"15,690.00",Best Companies Limited
Manchester City Council,Chief Executives,Stationery,08.04.2015,5100784319,567.90,Banner Business Services Ltd
Manchester City Council,Chief Executives,Works and associated costs for Land and Buildings,08.04.2015,5100784674,933.00,Buro Four Project Services
Manchester City Council,Childrens Services,Works and associated costs for Land and Buildings,08.04.2015,5100784697,"200,064.10",Bramall Construction Ltd
Manchester City Council,Corporate Services,Works and associated costs for Land and Buildings,08.04.2015,5100784833,"16,310.78",Manchester Working Ltd
Manchester City Council,Environment and Operations,Building Materials for direct delivery,08.04.2015,5100784885,621.82,Landscape Supply Company
Manchester City Council,Environment and Operations,External repairs and maintenance for buildings,08.04.2015,5100785136,500.00,The Fountain Company Ltd
Manchester City Council,Environment and Operations,Grant and subscriptions awarded,08.04.2015,5100784827,648.00,Adactus Housing Group Ltd
Manchester City Council,Environment and Operations,I T Provision,08.04.2015,5100784740,"1,075.95",Experian  Ltd
Manchester City Council,Environment and Operations,Levies,08.04.2015,1904579890,"2,830,167.00",GMWDA (LEVY)
Manchester City Council,Environment and Operations,Levies,08.04.2015,1700056054,"-2,830,167.00",GMWDA (LEVY)
Manchester City Council,Environment and Operations,Payments to Sub-Contractors,08.04.2015,5100784252,"1,291.10",Barcham Trees Plc
Manchester City Council,Environment and Operations,Payments to Sub-Contractors,08.04.2015,5100784932,"1,010.00",Barcham Trees Plc
Manchester City Council,Environment and Operations,Professional fees,08.04.2015,5100785128,"5,688.00",AECOM Limited
Manchester City Council,Environment and Operations,Professional fees,08.04.2015,5100785186,"4,464.96",Community Security (North West)
Manchester City Council,Environment and Operations,Professional fees,08.04.2015,5100785187,"2,209.55",Community Security (North West)
Manchester City Council,Environment and Operations,Professional fees,08.04.2015,5100784773,"1,679.64",Bureau Veritas UK Ltd
Manchester City Council,Environment and Operations,Refuse Collection,08.04.2015,5100784894,"11,812.00",Enterprise Manchester DOMESTIC
Manchester City Council,Environment and Operations,Refuse Collection,08.04.2015,5100784636,"1,165.53",Enterprise Manchester DOMESTIC
Manchester City Council,Environment and Operations,Subsistence and Conference Expenses,08.04.2015,5100784655,995.00,Salford Professional Development
Manchester City Council,GMIST (Greater Mcr Integrated),Grant Payments,08.04.2015,5100784956,"205,325.00",Halle Concerts Society
Manchester City Council,GMIST (Greater Mcr Integrated),Grant Payments,08.04.2015,5100784973,"110,825.00",Peoples History Museum(TRADING)
Manchester City Council,GMIST (Greater Mcr Integrated),Grant Payments,08.04.2015,5100784951,"85,000.00",Link4Life
Manchester City Council,GMIST (Greater Mcr Integrated),Grant Payments,08.04.2015,5100785008,"58,150.00",Royal Exchange Theatre Co Ltd
Manchester City Council,GMIST (Greater Mcr Integrated),Grant Payments,08.04.2015,5100784958,"57,100.00",GMCVO
Manchester City Council,GMIST (Greater Mcr Integrated),Grant Payments,08.04.2015,5100785004,"50,000.00",The Lowry Centre Ltd
Manchester City Council,GMIST (Greater Mcr Integrated),Grant Payments,08.04.2015,5100784961,"46,000.00",Greater Manchester Sports
Manchester City Council,GMIST (Greater Mcr Integrated),Grant Payments,08.04.2015,5100784993,"40,000.00",Manchester International Festival
Manchester City Council,GMIST (Greater Mcr Integrated),Grant Payments,08.04.2015,5100784967,"35,250.00",Cornerhouse
Manchester City Council,GMIST (Greater Mcr Integrated),Grant Payments,08.04.2015,5100784990,"27,075.00",Octagon Theatre Bolton
Manchester City Council,GMIST (Greater Mcr Integrated),Grant Payments,08.04.2015,5100784998,"24,250.00",Contact Theatre Company
Manchester City Council,GMIST (Greater Mcr Integrated),Grant Payments,08.04.2015,5100784945,"20,750.00",Manchester Digital Laboratory
Manchester City Council,GMIST (Greater Mcr Integrated),Grant Payments,08.04.2015,5100785019,"13,700.00",Manchester Camerata
Manchester City Council,GMIST (Greater Mcr Integrated),Grant Payments,08.04.2015,5100785012,"13,625.00",Dance Manchester
Manchester City Council,GMIST (Greater Mcr Integrated),Grant Payments,08.04.2015,5100785000,"10,275.00",Water Adventure Centre
Manchester City Council,GMIST (Greater Mcr Integrated),Grant Payments,08.04.2015,5100784976,"8,553.75",PANDA - Performing Arts Network
Manchester City Council,GMIST (Greater Mcr Integrated),Grant Payments,08.04.2015,5100784947,"1,475.00",M6 Theatre Company
Manchester City Council,GMIST (Greater Mcr Integrated),Other Fees & Charges,08.04.2015,1904581721,"9,000.00",I-Three Consulting Limited
Manchester City Council,GMIST (Greater Mcr Integrated),Subsistence and Conference Expenses,08.04.2015,5100784934,"24,150.00",Caroline White
Manchester City Council,Hospitality + Trading Services,Building Materials for direct delivery,08.04.2015,5100784979,"1,075.01",Lafarge Tarmac Trading Ltd
Manchester City Council,Hospitality + Trading Services,Building Materials for direct delivery,08.04.2015,5100784994,934.00,Somerford Equipment Ltd
Manchester City Council,Hospitality + Trading Services,Building Materials for direct delivery,08.04.2015,5100785116,925.26,Lafarge Tarmac Trading Ltd
Manchester City Council,Hospitality + Trading Services,Building Materials for direct delivery,08.04.2015,5100784982,910.28,Lafarge Tarmac Trading Ltd
Manchester City Council,Hospitality + Trading Services,Building Materials for direct delivery,08.04.2015,5100785101,615.00,Viewprint
Manchester City Council,Hospitality + Trading Services,Compensation Payments,08.04.2015,1904578979,"3,250.00",Hampson Hughes Solicitors
Manchester City Council,Hospitality + Trading Services,Courier Costs,08.04.2015,5100785286,747.16,Scalamander Business Services Ltd
Manchester City Council,Hospitality + Trading Services,Fees,08.04.2015,1904580351,"5,571.25",Equita Ltd
Manchester City Council,Hospitality + Trading Services,Fees,08.04.2015,1904580354,"4,553.29",Equita Ltd
Manchester City Council,Hospitality + Trading Services,Fees,08.04.2015,1904580349,"3,681.03",Equita Ltd
Manchester City Council,Hospitality + Trading Services,Fees,08.04.2015,1904580355,"3,153.76",Equita Ltd
Manchester City Council,Hospitality + Trading Services,Fees,08.04.2015,1904580350,"3,060.46",Equita Ltd
Manchester City Council,Hospitality + Trading Services,Fees,08.04.2015,1904580352,"1,846.36",Equita Ltd
Manchester City Council,Hospitality + Trading Services,Fees,08.04.2015,1904580353,"1,357.55",Equita Ltd
Manchester City Council,Hospitality + Trading Services,Fees,08.04.2015,1904580353,"-1,357.55",Equita Ltd
Manchester City Council,Hospitality + Trading Services,Fees,08.04.2015,1904580352,"-1,846.36",Equita Ltd
Manchester City Council,Hospitality + Trading Services,Fees,08.04.2015,1904580350,"-3,060.46",Equita Ltd
Manchester City Council,Hospitality + Trading Services,Fees,08.04.2015,1904580355,"-3,153.76",Equita Ltd
Manchester City Council,Hospitality + Trading Services,Fees,08.04.2015,1904580349,"-3,681.03",Equita Ltd
Manchester City Council,Hospitality + Trading Services,Fees,08.04.2015,1904580354,"-4,553.29",Equita Ltd
Manchester City Council,Hospitality + Trading Services,Fees,08.04.2015,1904580351,"-5,571.25",Equita Ltd
Manchester City Council,Hospitality + Trading Services,Payments to Sub-Contractors,08.04.2015,5100784696,"12,285.00",Kenny Bros (Civil Eng) Ltd
Manchester City Council,Hospitality + Trading Services,Vehicle Hire Costs,08.04.2015,5100785283,"55,789.54",Manchester Van Hire Ltd
Manchester City Council,Hospitality + Trading Services,Vehicle Repairs,08.04.2015,5100784821,"1,405.60",Advanced Vehicle Technicians Ltd
Manchester City Council,Housing General Fund,Professional fees,08.04.2015,5100784908,"1,256.90",Manchester Care & Repair Ltd
Manchester City Council,Housing General Fund,Works and associated costs for Land and Buildings,08.04.2015,5100784511,"4,500.00",CBRE Ltd
Manchester City Council,Housing Revenue Account,Council Dwelling Adaptations,08.04.2015,5100784691,"5,954.80",Ground Heat Ltd
Manchester City Council,Housing Revenue Account,Council Dwelling Adaptations,08.04.2015,5100784837,"1,452.45",SIG Roofing Supplies
Manchester City Council,Housing Revenue Account,Surplus property Acquisitions,08.04.2015,1904581441,"6,030.89",Redacted Personal Information
Manchester City Council,Insurance Fund,Insurance,08.04.2015,5100784646,"26,712.72",Zurich Insurance
Manchester City Council,Libraries and Theatres,Personal needs of client,08.04.2015,5100784921,"1,500.00",Hemingways Marketing Services Ltd
Manchester City Council,Manchester Leisure,Goods purchased for resale in Council outlets,08.04.2015,5100785079,814.80,Redacted Personal Information
Manchester City Council,Manchester Leisure,Grant and subscriptions awarded,08.04.2015,5100785090,"25,000.00",Eastlands Trust Limited
Manchester City Council,Manchester Leisure,Grant and subscriptions awarded,08.04.2015,5100785068,"10,000.00",The Manchester Men's Room
Manchester City Council,Manchester Leisure,Grant and subscriptions awarded,08.04.2015,5100784653,600.00,The Conservation Volunteers
Manchester City Council,Manchester Leisure,Hire of Equipment,08.04.2015,5100784874,"2,800.00",The Manchester Light & Stage
Manchester City Council,Manchester Leisure,Payments for services,08.04.2015,5100784933,"9,000.00",Manchester Rugby Union
Manchester City Council,Manchester Leisure,Payments for services,08.04.2015,5100784642,"2,420.00",Manchester Rugby Union
Manchester City Council,Manchester Leisure,Payments for services,08.04.2015,5100784889,800.00,Progressive Sports
Manchester City Council,Manchester Leisure,Payments for services,08.04.2015,5100785141,785.00,Xaverian College
Manchester City Council,Manchester Leisure,Payments for services,08.04.2015,5100785022,600.00,Sporting Pathways (MCR) Ltd
Manchester City Council,Manchester Leisure,Payments for services,08.04.2015,5100785141,590.00,Xaverian College
Manchester City Council,Regeneration Finance,Equipment,08.04.2015,5100784942,"1,783.50",Canford Audio Plc
Manchester City Council,Regeneration Finance,Grant and subscriptions awarded,08.04.2015,5100785100,"3,000.00",Button Lane Primary School
Manchester City Council,Regeneration Finance,Grant and subscriptions awarded,08.04.2015,5100784706,"3,000.00",Walk The Plank Ltd
Manchester City Council,Regeneration Finance,Professional fees,08.04.2015,5100785015,"13,177.50",Network Rail Property
Manchester City Council,Regeneration Finance,Rents,08.04.2015,1904579014,647.16,Manchester Airport Plc
Manchester City Council,Regeneration Finance,Taxi Vehicle Materia,08.04.2015,5100784712,"2,823.50",New Auto Ltd T/A Mogo (Uk)
Manchester City Council,Adult Social Care,Agency staff provision,09.04.2015,5100785496,"16,650.00",Jim Wilson Consulting Ltd
Manchester City Council,Adult Social Care,Agency staff provision,09.04.2015,5100785494,"6,975.00",Jim Wilson Consulting Ltd
Manchester City Council,Adult Social Care,Agency staff provision,09.04.2015,5100784394,"1,204.00",Liquid Personnel Ltd
Manchester City Council,Adult Social Care,Agency staff provision,09.04.2015,5100784394,"1,204.00",Liquid Personnel Ltd
Manchester City Council,Adult Social Care,Agency staff provision,09.04.2015,5100784359,916.30,Medicare First
Manchester City Council,Adult Social Care,Agency staff provision,09.04.2015,5100784383,770.03,Fawkes and Reece Ltd
Manchester City Council,Adult Social Care,Agency staff provision,09.04.2015,5100784394,727.30,Liquid Personnel Ltd
Manchester City Council,Adult Social Care,Cleaning Equipment and Materials,09.04.2015,5100784601,682.02,Alliance Disposables Ltd
Manchester City Council,Adult Social Care,Day Care Payments,09.04.2015,5100785295,"2,074.92",Central Manchester University Hosp
Manchester City Council,Adult Social Care,Equipment,09.04.2015,5100785149,"2,235.90",Tunstall Healthcare (UK) Ltd
Manchester City Council,Adult Social Care,Equipment,09.04.2015,5100785160,"1,216.70",Aidapt Bathrooms Ltd
Manchester City Council,Adult Social Care,Equipment,09.04.2015,5100785292,"1,124.20",Drive Medical Limited
Manchester City Council,Adult Social Care,Equipment,09.04.2015,5100785531,950.00,NRS Healthcare
Manchester City Council,Adult Social Care,Fixtures and Fitting,09.04.2015,1904579909,"4,406.00",TDG Contracts Ltd.
Manchester City Council,Adult Social Care,Foster Payments,09.04.2015,1904589253,"1,200.72",Redacted Personal Information
Manchester City Council,Adult Social Care,Foster Payments,09.04.2015,1904589256,"1,130.76",Redacted Personal Information
Manchester City Council,Adult Social Care,Foster Payments,09.04.2015,1904589251,774.20,Redacted Personal Information
Manchester City Council,Adult Social Care,Foster Payments,09.04.2015,1904589250,561.32,Redacted Personal Information
Manchester City Council,Adult Social Care,Foster Payments,09.04.2015,1904589254,507.12,Redacted Personal Information
Manchester City Council,Adult Social Care,Funeral and coroner related services,09.04.2015,5100785150,"3,907.17",Funeral Prtnrs t/a Michael Kennedy
Manchester City Council,Adult Social Care,Funeral and coroner related services,09.04.2015,5100785145,"1,090.00",Funeral Prtnrs t/a Michael Kennedy
Manchester City Council,Adult Social Care,Gas,09.04.2015,1904589228,601.71,British Gas Plc
Manchester City Council,Adult Social Care,Grant and subscriptions awarded,09.04.2015,5100785142,"1,166.75",Wythenshawe Community Initiative
Manchester City Council,Adult Social Care,Home Care ,09.04.2015,5100785408,577.89,Cooperative Childcare
Manchester City Council,Adult Social Care,Home Care ,09.04.2015,5100785464,577.89,Cooperative Childcare
Manchester City Council,Adult Social Care,I T Provision,09.04.2015,5100785545,"25,150.00",One Education Ltd
Manchester City Council,Adult Social Care,Payments for services,09.04.2015,5100785558,"3,013.91",H.G. Care Services Ltd
Manchester City Council,Adult Social Care,Payments for services,09.04.2015,5100785555,"2,837.49",H.G. Care Services Ltd
Manchester City Council,Adult Social Care,Payments for services,09.04.2015,5100785387,"2,352.00",Stockport Cerebral Palsy Society
Manchester City Council,Adult Social Care,Payments for services,09.04.2015,5100785555,"1,471.29",H.G. Care Services Ltd
Manchester City Council,Adult Social Care,Payments for services,09.04.2015,5100785555,"1,366.20",H.G. Care Services Ltd
Manchester City Council,Adult Social Care,Payments for services,09.04.2015,5100785555,"1,103.47",H.G. Care Services Ltd
Manchester City Council,Adult Social Care,Payments for services,09.04.2015,5100785555,735.65,H.G. Care Services Ltd
Manchester City Council,Adult Social Care,Payments for services,09.04.2015,5100784519,732.90,University Of Manchester
Manchester City Council,Adult Social Care,Payments for services,09.04.2015,5100784521,732.90,University Of Manchester
Manchester City Council,Adult Social Care,Payments for services,09.04.2015,5100785555,630.55,H.G. Care Services Ltd
Manchester City Council,Adult Social Care,Payments for services,09.04.2015,5100785555,551.74,H.G. Care Services Ltd
Manchester City Council,Adult Social Care,Payments for services,09.04.2015,5100785558,538.13,H.G. Care Services Ltd
Manchester City Council,Adult Social Care,Payments for services,09.04.2015,5100785555,525.46,H.G. Care Services Ltd
Manchester City Council,Adult Social Care,Personal needs of client,09.04.2015,1904576195,"4,500.00",Redacted Personal Information
Manchester City Council,Adult Social Care,Professional fees,09.04.2015,5100785021,"-2,000.00",Capita Asset Services
Manchester City Council,Adult Social Care,Rents,09.04.2015,5100785254,943.99,Omega
Manchester City Council,Adult Social Care,Subsistence and Conference Expenses,09.04.2015,5100785210,"1,375.00",The Victoria Hotel
Manchester City Council,Adult Social Care,Supported Accommodation,09.04.2015,5100785483,850.00,Step Ahead Resouce Services Ltd
Manchester City Council,Adult Social Care,Supported Accommodation,09.04.2015,5100785539,850.00,Step Ahead Resouce Services Ltd
Manchester City Council,Adult Social Care,Supporting People Payments,09.04.2015,5100785488,"30,000.00",Riverside ECHG
Manchester City Council,Adult Social Care,Supporting People Payments,09.04.2015,5100784750,"3,980.89",Adactus Housing Group Ltd
Manchester City Council,Adult Social Care,Supporting People Payments,09.04.2015,5100784753,"3,804.72",Adactus Housing Group Ltd
Manchester City Council,Adult Social Care,Supporting People Payments,09.04.2015,5100785129,"1,007.76",Arawak Walton Housing Association
Manchester City Council,Adult Social Care,Supporting People Payments,09.04.2015,5100784689,839.59,City Of Salford Community & Social
Manchester City Council,Adult Social Care,Supporting People Payments,09.04.2015,5100785129,660.44,Arawak Walton Housing Association
Manchester City Council,Adult Social Care,Supporting People Payments,09.04.2015,5100785129,637.49,Arawak Walton Housing Association
Manchester City Council,Adult Social Care,Supporting People Payments,09.04.2015,5100784462,633.98,Equity Housing Group
Manchester City Council,Adult Social Care,Supporting People Payments,09.04.2015,5100785129,523.85,Arawak Walton Housing Association
Manchester City Council,Adult Social Care,Third party payments relating to Voluntary Organisations,09.04.2015,5100785443,"13,666.63",The Lesbian & Gay Foundation
Manchester City Council,Adult Social Care,Third party payments relating to Voluntary Organisations,09.04.2015,5100785216,"6,498.60",Wai Yin Society
Manchester City Council,Adult Social Care,Third party payments relating to Voluntary Organisations,09.04.2015,5100785443,"4,666.70",The Lesbian & Gay Foundation
Manchester City Council,Adult Social Care,Third party payments to other Local Authorities,09.04.2015,5100785374,"4,725.60",Lancashire County Council
Manchester City Council,Adult Social Care,Water - Unmetered,09.04.2015,1904589226,"1,414.40",United Utilities Water Plc
Manchester City Council,Adult Social Care,Water - Unmetered,09.04.2015,1904589134,"1,010.37",United Utilities Water Plc
Manchester City Council,Adult Social Care,Water - Unmetered,09.04.2015,1904589131,"1,010.37",United Utilities Water Plc
Manchester City Council,Adult Social Care,Water - Unmetered,09.04.2015,1904589079,990.42,United Utilities Water Plc
Manchester City Council,Adult Social Care,Water - Unmetered,09.04.2015,1904589078,915.60,United Utilities Water Plc
Manchester City Council,Adult Social Care,Water - Unmetered,09.04.2015,1904589219,915.60,United Utilities Water Plc
Manchester City Council,Adult Social Care,Water - Unmetered,09.04.2015,1904589217,915.60,United Utilities Water Plc
Manchester City Council,Adult Social Care,Water - Unmetered,09.04.2015,1904589136,768.45,United Utilities Water Plc
Manchester City Council,Adult Social Care,Water - Unmetered,09.04.2015,1904589128,673.68,United Utilities Water Plc
Manchester City Council,Adult Social Care,Water - Unmetered,09.04.2015,1904589227,673.68,United Utilities Water Plc
Manchester City Council,Adult Social Care,Water - Unmetered,09.04.2015,1904589133,673.68,United Utilities Water Plc
Manchester City Council,Adult Social Care,Water - Unmetered,09.04.2015,1904589080,673.68,United Utilities Water Plc
Manchester City Council,Adult Social Care,Water - Unmetered,09.04.2015,1904589135,673.68,United Utilities Water Plc
Manchester City Council,Adult Social Care,Water - Unmetered,09.04.2015,1904589130,668.69,United Utilities Water Plc
Manchester City Council,Adult Social Care,Water - Unmetered,09.04.2015,1904589129,631.28,United Utilities Water Plc
Manchester City Council,Adult Social Care,Water - Unmetered,09.04.2015,1904589140,621.31,United Utilities Water Plc
Manchester City Council,Adult Social Care,Water - Unmetered,09.04.2015,1904589139,621.31,United Utilities Water Plc
Manchester City Council,Adult Social Care,Water - Unmetered,09.04.2015,1904589210,618.81,United Utilities Water Plc
Manchester City Council,Adult Social Care,Water - Unmetered,09.04.2015,1904589083,618.81,United Utilities Water Plc
Manchester City Council,Adult Social Care,Water - Unmetered,09.04.2015,1904589112,608.84,United Utilities Water Plc
Manchester City Council,Adult Social Care,Water - Unmetered,09.04.2015,1904589216,581.40,United Utilities Water Plc
Manchester City Council,Adult Social Care,Water - Unmetered,09.04.2015,1904589138,566.44,United Utilities Water Plc
Manchester City Council,Adult Social Care,Water - Unmetered,09.04.2015,1904589137,566.44,United Utilities Water Plc
Manchester City Council,Adult Social Care,Water - Unmetered,09.04.2015,1904589222,566.44,United Utilities Water Plc
Manchester City Council,Adult Social Care,Water - Unmetered,09.04.2015,1904589151,506.58,United Utilities Water Plc
Manchester City Council,Chief Executives,Advertising,09.04.2015,5100785226,"4,080.00",Bay Media
Manchester City Council,Chief Executives,Advertising,09.04.2015,5100784897,"1,200.00",Bay Media
Manchester City Council,Chief Executives,Advertising,09.04.2015,5100785227,"-4,080.00",Bay Media
Manchester City Council,Chief Executives,Agency staff provision,09.04.2015,5100784394,"6,772.71",Liquid Personnel Ltd
Manchester City Council,Chief Executives,Data Links,09.04.2015,5100785516,"2,000.00",Metronet UK
Manchester City Council,Chief Executives,Examination Fees,09.04.2015,5100785262,"3,325.00",ROAR Forensics Ltd
Manchester City Council,Chief Executives,Examination Fees,09.04.2015,5100785260,"2,465.00",ROAR Forensics Ltd
Manchester City Council,Chief Executives,Examination Fees,09.04.2015,5100785259,"1,505.00",ROAR Forensics Ltd
Manchester City Council,Chief Executives,Examination Fees,09.04.2015,5100785230,750.00,ROAR Forensics Ltd
Manchester City Council,Chief Executives,Examination Fees,09.04.2015,5100785236,510.00,ROAR Forensics Ltd
Manchester City Council,Chief Executives,Examination Fees,09.04.2015,5100785245,510.00,ROAR Forensics Ltd
Manchester City Council,Chief Executives,Examination Fees,09.04.2015,5100785251,510.00,ROAR Forensics Ltd
Manchester City Council,Chief Executives,Examination Fees,09.04.2015,5100785255,510.00,ROAR Forensics Ltd
Manchester City Council,Chief Executives,Examination Fees,09.04.2015,5100785265,510.00,ROAR Forensics Ltd
Manchester City Council,Chief Executives,Examination Fees,09.04.2015,5100785276,510.00,ROAR Forensics Ltd
Manchester City Council,Chief Executives,Examination Fees,09.04.2015,5100785261,505.00,ROAR Forensics Ltd
Manchester City Council,Chief Executives,Hire of Equipment,09.04.2015,5100784377,"4,730.00",Universal Live
Manchester City Council,Chief Executives,Hire of Equipment,09.04.2015,5100785471,"1,119.51",Xerox Finance Ltd
Manchester City Council,Chief Executives,Hire of Premises,09.04.2015,5100785310,-525.00,Quaker Trading Ltd
Manchester City Council,Chief Executives,ICT Sup & Maintnance,09.04.2015,5100784588,"11,347.10",Open Text Ltd
Manchester City Council,Chief Executives,Payments to Sub-Contractors,09.04.2015,5100784378,"9,200.00",Universal Live
Manchester City Council,Chief Executives,Printing,09.04.2015,5100785707,"16,300.00",Astra Signs
Manchester City Council,Chief Executives,Printing,09.04.2015,5100785704,"3,955.00",Astra Signs
Manchester City Council,Chief Executives,Printing,09.04.2015,5100784943,"1,295.00",Alphatec 2000 Ltd
Manchester City Council,Chief Executives,Printing,09.04.2015,5100785499,"1,120.00",Contact Photographic Services Ltd
Manchester City Council,Chief Executives,Printing,09.04.2015,5100785695,"1,035.00",Astra Signs
Manchester City Council,Chief Executives,Printing,09.04.2015,5100785413,980.00,Wedgwood AV Ltd
Manchester City Council,Chief Executives,Printing,09.04.2015,5100785701,895.00,Astra Signs
Manchester City Council,Chief Executives,Printing,09.04.2015,5100785703,660.00,Astra Signs
Manchester City Council,Chief Executives,Professional fees,09.04.2015,5100785167,"22,844.63",Actinista Limited
Manchester City Council,Chief Executives,Vehicle Plant Furniture and Equipment,09.04.2015,5100784641,"4,080.00",Cofely Ltd
Manchester City Council,Chief Executives,Works and associated costs for Land and Buildings,09.04.2015,1904563919,"17,000.00",Connell Sixth Form College
Manchester City Council,Chief Executives,Works and associated costs for Land and Buildings,09.04.2015,5100785404,"2,469.50",Keelagher Okey Associates Ltd t/a
Manchester City Council,Childrens Services,Building Works,09.04.2015,5100785452,"279,350.92",Diocese of Salford
Manchester City Council,Childrens Services,Works and associated costs for Land and Buildings,09.04.2015,5100785369,"1,602.00",Manchester Working Ltd
Manchester City Council,Corporate Services,Fees,09.04.2015,5100784775,730.00,Pannone Corporate LLP
Manchester City Council,Corporate Services,Professional fees,09.04.2015,5100784857,"5,702.40",Aecom Infrastructure & Environment
Manchester City Council,Corporate Services,Professional fees,09.04.2015,5100783979,"4,219.01",Wilde Consultants Ltd
Manchester City Council,Corporate Services,Training and Development,09.04.2015,5100785335,650.00,Capita Business Services Ltd
Manchester City Council,Corporate Services,Water - Unmetered,09.04.2015,1904589150,"1,289.70",United Utilities Water Plc
Manchester City Council,Corporate Services,Water - Unmetered,09.04.2015,1904589124,865.72,United Utilities Water Plc
Manchester City Council,Corporate Services,Works and associated costs for Land and Buildings,09.04.2015,1904589257,"14,400.00",H M Revenues and Customs
Manchester City Council,Corporate Services,Works and associated costs for Land and Buildings,09.04.2015,1904588985,"11,700.00",H M Revenues and Customs
Manchester City Council,Corporate Services,Works and associated costs for Land and Buildings,09.04.2015,5100785565,"8,537.00",Manchester Working Ltd
Manchester City Council,Corporate Services,Works and associated costs for Land and Buildings,09.04.2015,5100785566,912.00,Manchester Working Ltd
Manchester City Council,Environment and Operations,Agency staff provision,09.04.2015,5100785549,"15,000.00",Oldham Metropolitan Borough Council
Manchester City Council,Environment and Operations,Construction Works,09.04.2015,5100783916,"80,000.00",J.Hopkins (Contractors) Ltd.
Manchester City Council,Environment and Operations,Construction Works,09.04.2015,5100783850,"45,000.00",J.Hopkins (Contractors) Ltd.
Manchester City Council,Environment and Operations,Construction Works,09.04.2015,5100783928,"12,733.53",J.Hopkins (Contractors) Ltd.
Manchester City Council,Environment and Operations,Construction Works,09.04.2015,5100785155,"3,505.43",J.Hopkins (Contractors) Ltd.
Manchester City Council,Environment and Operations,Equipment,09.04.2015,5100785009,"2,397.12",Enterprise Manchester DOMESTIC
Manchester City Council,Environment and Operations,External repairs and maintenance for buildings,09.04.2015,5100784446,980.05,The Fountain Company Ltd
Manchester City Council,Environment and Operations,External repairs and maintenance for buildings,09.04.2015,5100784477,965.00,The Fountain Company Ltd
Manchester City Council,Environment and Operations,External repairs and maintenance for buildings,09.04.2015,5100785083,631.25,The Fountain Company Ltd
Manchester City Council,Environment and Operations,External repairs and maintenance for buildings,09.04.2015,5100784450,574.00,The Fountain Company Ltd
Manchester City Council,Environment and Operations,Hire of Machinery,09.04.2015,5100785153,"2,240.00",Balmers GM Ltd
Manchester City Council,Environment and Operations,Payments to Sub-Contractors,09.04.2015,5100785084,"2,551.00",Vaisala Ltd
Manchester City Council,Environment and Operations,Security,09.04.2015,5100785329,"7,500.00",Metronet UK
Manchester City Council,GMIST (Greater Mcr Integrated),Grant Payments,09.04.2015,5100785415,"3,657.50",LGBT Youth North West
Manchester City Council,GMIST (Greater Mcr Integrated),Professional fees,09.04.2015,5100784371,"1,960.00",Wigan Metropolitan Borough Council
Manchester City Council,GMIST (Greater Mcr Integrated),Third party payments to other Local Authorities,09.04.2015,1904579010,"49,725.00",Bolton Mbc
Manchester City Council,GMIST (Greater Mcr Integrated),Third party payments to other Local Authorities,09.04.2015,1904579038,"37,400.00",Bury M.B.C.
Manchester City Council,Hospitality + Trading Services,Building Materials for direct delivery,09.04.2015,5100785536,"2,152.08",Lafarge Tarmac Trading Ltd
Manchester City Council,Hospitality + Trading Services,Building Materials for direct delivery,09.04.2015,5100785533,"1,765.79",Lafarge Tarmac Trading Ltd
Manchester City Council,Hospitality + Trading Services,Building Materials for direct delivery,09.04.2015,1904589016,"1,117.50",Ecomix Concrete Ltd
Manchester City Council,Hospitality + Trading Services,Building Materials for direct delivery,09.04.2015,5100785528,855.36,Lafarge Tarmac Trading Ltd
Manchester City Council,Hospitality + Trading Services,Catering Provisions,09.04.2015,1904588912,904.67,BRAMBLES FOODS LTD
Manchester City Council,Hospitality + Trading Services,Catering Provisions,09.04.2015,1904588913,904.67,BRAMBLES FOODS LTD
Manchester City Council,Hospitality + Trading Services,Catering Provisions,09.04.2015,1904588911,847.22,BRAMBLES FOODS LTD
Manchester City Council,Hospitality + Trading Services,Equipment,09.04.2015,5100785220,"24,318.00",Oakenclough Buildings Ltd
Manchester City Council,Hospitality + Trading Services,Equipment,09.04.2015,5100785042,"1,561.00",Technology Solutions Ltd
Manchester City Council,Hospitality + Trading Services,Equipment,09.04.2015,5100785330,600.00,Metronet UK
Manchester City Council,Hospitality + Trading Services,Goods purchased for resale in Council outlets,09.04.2015,5100785279,565.25,Treasured Memories Ltd
Manchester City Council,Hospitality + Trading Services,Hire of Equipment,09.04.2015,5100785215,"2,469.96",Briggs Equipment UK Limited
Manchester City Council,Hospitality + Trading Services,Internal Repairs and Maintenance for buildings,09.04.2015,5100785384,"5,000.00",Manchester Working Ltd
Manchester City Council,Hospitality + Trading Services,Machinery and equipment repairs,09.04.2015,5100785393,643.66,Fast Hire UK
Manchester City Council,Hospitality + Trading Services,Payments to Sub-Contractors,09.04.2015,5100785331,"1,500.00",Metronet UK
Manchester City Council,Hospitality + Trading Services,Routine Repair&M Ext,09.04.2015,5100784510,"1,142.88",Bike Right
Manchester City Council,Hospitality + Trading Services,Vehicle Parts/Spares,09.04.2015,5100785307,941.89,Johnston Sweepers
Manchester City Council,Hospitality + Trading Services,Vehicle Parts/Spares,09.04.2015,5100785303,790.46,Johnston Sweepers
Manchester City Council,Hospitality + Trading Services,Vehicle Parts/Spares,09.04.2015,5100785309,661.58,Johnston Sweepers
Manchester City Council,Hospitality + Trading Services,Vehicle Repairs,09.04.2015,5100785389,"3,032.43",Manchester Van Hire Ltd
Manchester City Council,Housing General Fund,Surplus property Fees,09.04.2015,1904589261,"70,000.00",Bevan Brittan LLP
Manchester City Council,Housing General Fund,Works and associated costs for Land and Buildings,09.04.2015,5100784652,"81,165.71",Keepmoat Regeneration Ltd
Manchester City Council,Housing Revenue Account,Council Dwelling Adaptations,09.04.2015,5100785505,632.00,Edmundson Electrical Ltd
Manchester City Council,Housing Revenue Account,Private Finance and Public Private partnership initiatives,09.04.2015,5100785535,"41,626.02",Manchester Energy Company Limited
Manchester City Council,Insurance Fund,Engineering Ins,09.04.2015,5100785159,"104,453.27",Zurich Insurance
Manchester City Council,Insurance Fund,Engineering Ins,09.04.2015,5100785154,"15,726.20",Zurich Insurance
Manchester City Council,Insurance Fund,Engineering Ins,09.04.2015,5100785156,"-15,726.20",Zurich Insurance
Manchester City Council,Insurance Fund,Engineering Ins,09.04.2015,5100785162,"-15,726.20",Zurich Insurance
Manchester City Council,Libraries and Theatres,Vehicle Plant Furniture and Equipment,09.04.2015,5100785148,"15,625.45",thedesignconcept
Manchester City Council,Manchester Leisure,Building Materials for direct delivery,09.04.2015,5100785556,"1,100.00",Cocklestorm Fencing  Ltd
Manchester City Council,Manchester Leisure,"Consumable items eg Toilet rolls, soap etc",09.04.2015,5100785181,"1,321.67",Smiths Sectional Buildings
Manchester City Council,Manchester Leisure,Contract Cleaning External,09.04.2015,5100784718,639.20,Clearview Event Services Limited
Manchester City Council,Manchester Leisure,Contract Cleaning External,09.04.2015,5100784722,615.00,Clearview Event Services Limited
Manchester City Council,Manchester Leisure,Equipment,09.04.2015,5100785475,"1,750.00",New Era Decorators & Maint. Svs Ltd
Manchester City Council,Manchester Leisure,Equipment,09.04.2015,5100785158,550.00,Integrated Water Services
Manchester City Council,Manchester Leisure,Goods purchased for resale in Council outlets,09.04.2015,5100785399,573.50,Grantham Book Services Ltd
Manchester City Council,Manchester Leisure,Grant and subscriptions awarded,09.04.2015,5100785553,"154,166.66",National Football Museum
Manchester City Council,Manchester Leisure,Grounds Maintenance,09.04.2015,5100784969,"24,580.00",Biomatrix Water Solutions Ltd
Manchester City Council,Manchester Leisure,Payments for services,09.04.2015,5100785382,"1,998.00",YourTel Communications Limited
Manchester City Council,Manchester Leisure,Payments for services,09.04.2015,5100785378,"1,949.69",YourTel Communications Limited
Manchester City Council,Manchester Leisure,Payments to Sub-Contractors,09.04.2015,5100785284,"1,150.00",Clearview Event Services Limited
Manchester City Council,Manchester Leisure,Professional fees,09.04.2015,5100784586,"2,156.00",Manchester Metropolitan University
Manchester City Council,Regeneration Finance,Grant and subscriptions awarded,09.04.2015,5100785563,"5,000.00",Southway Housing Trust
Manchester City Council,Regeneration Finance,Grant and subscriptions awarded,09.04.2015,1904587810,"2,391.51",West Didsbury Residents Assoc
Manchester City Council,Regeneration Finance,Grant and subscriptions awarded,09.04.2015,1904579000,"2,280.00",Friends of Northenden Riverside
Manchester City Council,Regeneration Finance,Grant and subscriptions awarded,09.04.2015,5100785560,"1,500.00",Southway Housing Trust
Manchester City Council,Regeneration Finance,Grant and subscriptions awarded,09.04.2015,5100784822,"1,400.00",4CT Limited
Manchester City Council,Regeneration Finance,Professional fees,09.04.2015,5100785169,"1,200.00",Image Everything Ltd
Manchester City Council,Regeneration Finance,Professional fees,09.04.2015,5100784336,"5,337.50",Daood Akram T/A Abacus Training
Manchester City Council,Adult Social Care,Agency staff provision,10.04.2015,5100785589,"2,195.20",Morgan Hunt Public Sector Ltd
Manchester City Council,Adult Social Care,Agency staff provision,10.04.2015,5100785589,"1,851.85",Morgan Hunt Public Sector Ltd
Manchester City Council,Adult Social Care,Agency staff provision,10.04.2015,5100784180,"1,554.08",Eyears
Manchester City Council,Adult Social Care,Agency staff provision,10.04.2015,5100785589,"1,446.20",Morgan Hunt Public Sector Ltd
Manchester City Council,Adult Social Care,Agency staff provision,10.04.2015,5100785689,"1,122.31",247 Professional Health
Manchester City Council,Adult Social Care,Equipment,10.04.2015,5100785290,"3,649.65",Connevans Ltd
Manchester City Council,Adult Social Care,Foster Payments,10.04.2015,1904589580,"1,360.82",Redacted Personal Information
Manchester City Council,Adult Social Care,Furniture,10.04.2015,5100785833,782.20,The Furnishing Service Ltd
Manchester City Council,Adult Social Care,Furniture,10.04.2015,5100785835,663.38,The Furnishing Service Ltd
Manchester City Council,Adult Social Care,Furniture,10.04.2015,5100785834,651.93,The Furnishing Service Ltd
Manchester City Council,Adult Social Care,Furniture,10.04.2015,5100785838,651.93,The Furnishing Service Ltd
Manchester City Council,Adult Social Care,Furniture,10.04.2015,5100785840,651.93,The Furnishing Service Ltd
Manchester City Council,Adult Social Care,Furniture,10.04.2015,5100785841,651.93,The Furnishing Service Ltd
Manchester City Council,Adult Social Care,Furniture,10.04.2015,5100785836,589.66,The Furnishing Service Ltd
Manchester City Council,Adult Social Care,Grant and subscriptions awarded,10.04.2015,5100783915,"3,500.00",Manchester Community Giants CIC
Manchester City Council,Adult Social Care,Grant and subscriptions awarded,10.04.2015,5100784717,"1,414.55",Barlow Moor Community Association
Manchester City Council,Adult Social Care,Grant and subscriptions awarded,10.04.2015,5100784721,"1,408.85",Youth Project @ Apostles &
Manchester City Council,Adult Social Care,Grant and subscriptions awarded,10.04.2015,5100784715,"1,401.15",Barlow Moor Community Association
Manchester City Council,Adult Social Care,I T Provision,10.04.2015,5100785879,"4,496.00",Loquela Ltd
Manchester City Council,Adult Social Care,Payments for services,10.04.2015,5100784810,"5,539.99",Manchester Community Transport
Manchester City Council,Adult Social Care,Payments for services,10.04.2015,5100783857,"4,777.68",Rossendale School Priory
Manchester City Council,Adult Social Care,Payments for services,10.04.2015,5100784891,942.75,Alere Toxicology Plc
Manchester City Council,Adult Social Care,Personal needs of client,10.04.2015,5100785867,"6,116.64",Prism UK Medical Ltd t/a Carefree
Manchester City Council,Adult Social Care,Personal needs of client,10.04.2015,5100785830,512.57,The Furnishing Service Ltd
Manchester City Council,Adult Social Care,Professional Services Provision,10.04.2015,5100785568,"9,527.80",Percy Westhead & Company
Manchester City Council,Adult Social Care,Signers/Interpreters,10.04.2015,5100784669,"2,692.60",Interpreter Booking Services
Manchester City Council,Adult Social Care,Subsistence and Conference Expenses,10.04.2015,5100784930,"4,957.50",Lewis Live Ltd
Manchester City Council,Adult Social Care,Subsistence and Conference Expenses,10.04.2015,5100784708,"3,850.00",The Work Company
Manchester City Council,Adult Social Care,Supporting People Payments,10.04.2015,5100785457,"4,575.71",Praxis Care Group
Manchester City Council,Adult Social Care,Third party payments relating to Voluntary Organisations,10.04.2015,5100784361,"17,518.00",Carers Federation Limited
Manchester City Council,Adult Social Care,Third party payments relating to Voluntary Organisations,10.04.2015,5100784165,"17,490.00",Back On Track
Manchester City Council,Adult Social Care,Third party payments relating to Voluntary Organisations,10.04.2015,5100784019,"11,808.04",HCL Social Care
Manchester City Council,Adult Social Care,Third party payments relating to Voluntary Organisations,10.04.2015,5100785785,"3,898.00",United Response
Manchester City Council,Adult Social Care,Third party payments relating to Voluntary Organisations,10.04.2015,5100785786,"3,898.00",United Response
Manchester City Council,Adult Social Care,Third party payments relating to Voluntary Organisations,10.04.2015,5100785787,"3,898.00",United Response
Manchester City Council,Adult Social Care,Third party payments relating to Voluntary Organisations,10.04.2015,5100785789,"3,898.00",United Response
Manchester City Council,Adult Social Care,Third party payments relating to Voluntary Organisations,10.04.2015,5100784412,"2,640.00",TTP Communities Ltd
Manchester City Council,Adult Social Care,Third party payments relating to Voluntary Organisations,10.04.2015,5100784417,"2,640.00",TTP Communities Ltd
Manchester City Council,Adult Social Care,Third party payments relating to Voluntary Organisations,10.04.2015,5100784429,"2,640.00",TTP Communities Ltd
Manchester City Council,Adult Social Care,Third party payments relating to Voluntary Organisations,10.04.2015,5100784433,"2,640.00",TTP Communities Ltd
Manchester City Council,Adult Social Care,Third party payments relating to Voluntary Organisations,10.04.2015,5100784419,"1,848.00",TTP Communities Ltd
Manchester City Council,Adult Social Care,Third party payments relating to Voluntary Organisations,10.04.2015,5100785379,"1,521.00",Wai Yin Society
Manchester City Council,Adult Social Care,Third party payments to other Local Authorities,10.04.2015,5100785492,"50,558.74",Stockport Mbc
Manchester City Council,Adult Social Care,Third party payments to other Local Authorities,10.04.2015,5100785581,"17,878.29",Stockport Mbc
Manchester City Council,Adult Social Care,Training and Development,10.04.2015,5100785796,"2,000.00",Daycare Trust
Manchester City Council,Adult Social Care,Transport Coach Hire,10.04.2015,5100785572,"70,499.00",Communitytransportservices.co.uk
Manchester City Council,Adult Social Care,Transport Coach Hire,10.04.2015,5100785383,"59,176.50",APTSL
Manchester City Council,Adult Social Care,Transport Coach Hire,10.04.2015,5100785580,"32,521.50",Communitytransportservices.co.uk
Manchester City Council,Adult Social Care,Transport Coach Hire,10.04.2015,5100785388,"13,376.00",APTSL
Manchester City Council,Adult Social Care,Transport Coach Hire,10.04.2015,5100784628,"12,981.00",T/A TC Travel Svs Ltd
Manchester City Council,Adult Social Care,Transport Coach Hire,10.04.2015,5100784634,"9,642.50",Parkway Cabs & Cars
Manchester City Council,Adult Social Care,Transport Coach Hire,10.04.2015,5100783862,"6,226.00",AAB Travel
Manchester City Council,Adult Social Care,Transport Coach Hire,10.04.2015,5100784665,"5,610.00",D.J. Minibus Travel
Manchester City Council,Adult Social Care,Transport Coach Hire,10.04.2015,5100783852,"4,290.00",AAB Travel
Manchester City Council,Adult Social Care,Transport Coach Hire,10.04.2015,5100784928,"4,004.00",Redacted Personal Information
Manchester City Council,Adult Social Care,Transport Coach Hire,10.04.2015,5100784667,"2,640.00",DMC Travel
Manchester City Council,Adult Social Care,Transport Coach Hire,10.04.2015,5100785711,"2,310.00",Ricks Travel
Manchester City Council,Adult Social Care,Transport Coach Hire,10.04.2015,5100784882,"2,200.00",Youbus Ltd
Manchester City Council,Adult Social Care,Transport Coach Hire,10.04.2015,5100785333,"2,146.00",APL Coachhire
Manchester City Council,Adult Social Care,Transport Coach Hire,10.04.2015,5100784880,"2,068.00",Youbus Ltd
Manchester City Council,Adult Social Care,Transport Coach Hire,10.04.2015,5100785806,"2,016.00",Mike Davies Transport
Manchester City Council,Adult Social Care,Transport Coach Hire,10.04.2015,5100784666,"1,958.00",DMC Travel
Manchester City Council,Adult Social Care,Transport Taxis,10.04.2015,5100784179,"27,367.00",Redacted Personal Information
Manchester City Council,Adult Social Care,Transport Taxis,10.04.2015,5100785788,"4,504.00",Redacted Personal Information
Manchester City Council,Adult Social Care,Transport Taxis,10.04.2015,5100784638,"1,980.00",JKR Travel
Manchester City Council,Chief Executives,Agency staff provision,10.04.2015,5100785185,"16,718.35",Squire Sanders (UK) LLP
Manchester City Council,Chief Executives,Agency staff provision,10.04.2015,5100785689,"5,750.63",247 Professional Health
Manchester City Council,Chief Executives,Agency staff provision,10.04.2015,5100785589,"2,668.92",Morgan Hunt Public Sector Ltd
Manchester City Council,Chief Executives,Agency staff provision,10.04.2015,5100784188,862.02,LAW Absolute
Manchester City Council,Chief Executives,Construction Works,10.04.2015,5100785293,"543,351.00",Transport for Greater Manchester
Manchester City Council,Chief Executives,I T Provision,10.04.2015,5100785328,"22,400.00",Norwel Computer Services Ltd
Manchester City Council,Chief Executives,Payments to Sub-Contractors,10.04.2015,5100785639,"1,605.50",BTC Group
Manchester City Council,Chief Executives,Printing,10.04.2015,5100785274,"5,190.00",Browns CTP Ltd
Manchester City Council,Chief Executives,Printing,10.04.2015,5100785420,"3,280.00",Browns CTP Ltd
Manchester City Council,Chief Executives,Printing,10.04.2015,5100785600,"1,478.34",The Plastic Art Company
Manchester City Council,Chief Executives,Printing,10.04.2015,5100785271,"1,400.00",Browns CTP Ltd
Manchester City Council,Chief Executives,Printing,10.04.2015,5100785135,926.00,Chapel Press Ltd
Manchester City Council,Chief Executives,Vehicle Plant Furniture and Equipment,10.04.2015,5100785010,555.00,T.I.S. Limited
Manchester City Council,Chief Executives,Works and associated costs for Land and Buildings,10.04.2015,5100784968,"2,500.00",AECOM Professional Services LLP
Manchester City Council,Childrens Services,Works and associated costs for Land and Buildings,10.04.2015,5100784104,"49,152.68",Capita IT Services (BSF) Limited
Manchester City Council,Childrens Services,Works and associated costs for Land and Buildings,10.04.2015,5100784685,"23,384.15",Capita IT Services (BSF) Limited
Manchester City Council,Childrens Services,Works and associated costs for Land and Buildings,10.04.2015,5100784683,"23,270.04",Capita IT Services (BSF) Limited
Manchester City Council,Childrens Services,Works and associated costs for Land and Buildings,10.04.2015,5100784703,"11,847.23",Conlon Construction Ltd
Manchester City Council,Collection Fund,CTax-Overpayments,10.04.2015,1904589581,995.11,Redacted Personal Information
Manchester City Council,Corporate Services,Construction Works,10.04.2015,5100784869,"1,929.20",Utilities Design & Planning Ltd
Manchester City Council,Corporate Services,Contract Cleaning External,10.04.2015,5100784970,814.49,M & M Cleaning Services Ltd
Manchester City Council,Corporate Services,Contract Cleaning External,10.04.2015,5100784971,784.01,M & M Cleaning Services Ltd
Manchester City Council,Corporate Services,Contract Cleaning External,10.04.2015,5100784966,778.74,M & M Cleaning Services Ltd
Manchester City Council,Corporate Services,Professional fees,10.04.2015,5100785616,"3,247.31",AECOM Limited
Manchester City Council,Corporate Services,Professional fees,10.04.2015,5100785765,"-3,247.31",AECOM Limited
Manchester City Council,Corporate Services,Travel,10.04.2015,1904587314,"24,544.55",Trainline.com Limited
Manchester City Council,Corporate Services,Travel Season TLS,10.04.2015,5100785776,530.00,Stagecoach Manchester
Manchester City Council,Corporate Services,Travel Season TLS,10.04.2015,5100785776,530.00,Stagecoach Manchester
Manchester City Council,Corporate Services,Travel Season TLS,10.04.2015,5100785776,530.00,Stagecoach Manchester
Manchester City Council,Corporate Services,Travel Season TLS,10.04.2015,5100785776,530.00,Stagecoach Manchester
Manchester City Council,Corporate Services,Travel Season TLS,10.04.2015,5100785776,530.00,Stagecoach Manchester
Manchester City Council,Corporate Services,Travel Season TLS,10.04.2015,5100785776,530.00,Stagecoach Manchester
Manchester City Council,Environment and Operations,Building Materials for direct delivery,10.04.2015,5100785500,"1,763.10",Lbs Horticulture Worldwide Ltd
Manchester City Council,Environment and Operations,Construction Works,10.04.2015,5100785554,"75,104.82",Colas Limited
Manchester City Council,Environment and Operations,Construction Works,10.04.2015,5100785385,"12,792.32",Electricity North West Limited
Manchester City Council,Environment and Operations,Construction Works,10.04.2015,5100785001,"2,940.00",ITS Testing Services (UK) Ltd
Manchester City Council,Environment and Operations,Construction Works,10.04.2015,5100784999,"1,720.00",ITS Testing Services (UK) Ltd
Manchester City Council,Environment and Operations,Construction Works,10.04.2015,5100785014,"1,400.00",Transport for Greater Manchester
Manchester City Council,Environment and Operations,Payments to Sub-Contractors,10.04.2015,5100784643,"1,650.00",Willfab Ltd
Manchester City Council,Environment and Operations,Payments to Sub-Contractors,10.04.2015,5100784648,"1,100.00",Willfab Ltd
Manchester City Council,Hospitality + Trading Services,Building Materials for direct delivery,10.04.2015,5100785540,767.93,Lafarge Tarmac Trading Ltd
Manchester City Council,Hospitality + Trading Services,Cleaning Equipment and Materials,10.04.2015,5100785750,509.70,Alliance Disposables Ltd
Manchester City Council,Hospitality + Trading Services,Expenditure re Internal Trading Ordered Externally,10.04.2015,5100785546,946.50,United Flags & Flagstaffs Ltd
Manchester City Council,Hospitality + Trading Services,Hire of Equipment,10.04.2015,5100785858,750.00,Briggs Equipment UK Limited
Manchester City Council,Hospitality + Trading Services,I T Provision,10.04.2015,5100785811,845.00,Ncc Services Limited
Manchester City Council,Hospitality + Trading Services,Payments to Sub-Contractors,10.04.2015,5100784686,"50,000.00",J.Hopkins (Contractors) Ltd.
Manchester City Council,Hospitality + Trading Services,Payments to Sub-Contractors,10.04.2015,5100784751,"34,452.70",Kenny Bros (Civil Eng) Ltd
Manchester City Council,Hospitality + Trading Services,Professional fees,10.04.2015,5100784356,"747,592.00",Transport for Greater Manchester
Manchester City Council,Hospitality + Trading Services,Security,10.04.2015,5100785763,"526,727.01",Group 4 Total Security Ltd T/A G4S
Manchester City Council,Hospitality + Trading Services,Security,10.04.2015,5100785780,827.90,Chubb Systems Ltd
Manchester City Council,Hospitality + Trading Services,Vehicle Fuel Costs,10.04.2015,5100784941,913.00,Carlton Fuels Ltd
Manchester City Council,Housing General Fund,Building Works,10.04.2015,1904589572,"9,152.88",Kier Services Ltd - Maint West
Manchester City Council,Housing General Fund,Building Works,10.04.2015,1904589573,"5,550.00",FT Finley & Co Ltd
Manchester City Council,Housing General Fund,Building Works,10.04.2015,1904589579,"4,659.67",Kier Services Ltd - Maint West
Manchester City Council,Housing General Fund,Building Works,10.04.2015,1904589565,"4,488.00",Stannah Lift Services Ltd
Manchester City Council,Housing General Fund,Building Works,10.04.2015,1904589578,"4,227.81",Kier Services Ltd - Maint West
Manchester City Council,Housing General Fund,Building Works,10.04.2015,1904589566,"4,064.00",Stannah Lift Services Ltd
Manchester City Council,Housing General Fund,Building Works,10.04.2015,1904589570,"4,029.85",Kier Services Ltd - Maint West
Manchester City Council,Housing General Fund,Building Works,10.04.2015,1904589574,"4,003.01",Kier Services Ltd - Maint West
Manchester City Council,Housing General Fund,Building Works,10.04.2015,1904589568,"3,909.16",Kier Services Ltd - Maint West
Manchester City Council,Housing General Fund,Building Works,10.04.2015,1904589577,"3,009.69",FT Finley & Co Ltd
Manchester City Council,Housing General Fund,Building Works,10.04.2015,1904589571,"2,976.55",FT Finley & Co Ltd
Manchester City Council,Housing General Fund,Building Works,10.04.2015,1904589562,"2,359.96",Mears Home Improvement Ltd
Manchester City Council,Housing General Fund,Building Works,10.04.2015,1904589567,"1,689.00",Stannah Lift Services Ltd
Manchester City Council,Housing General Fund,Building Works,10.04.2015,1904589576,"1,387.20",Kier Services Ltd - Maint West
Manchester City Council,Housing General Fund,Building Works,10.04.2015,1904589561,"1,066.14",Mears Home Improvement Ltd
Manchester City Council,Housing General Fund,Building Works,10.04.2015,1904589560,935.55,Mears Home Improvement Ltd
Manchester City Council,Housing General Fund,Building Works,10.04.2015,1904589575,620.73,Kier Services Ltd - Maint West
Manchester City Council,Housing General Fund,Surplus property Fees,10.04.2015,5100785603,"2,470.00",Roger Hannah & Co
Manchester City Council,Housing Revenue Account,CD - Demolition,10.04.2015,5100784532,"42,778.28",Morrison Facilities Services Ltd
Manchester City Council,Housing Revenue Account,CD - Demolition,10.04.2015,5100784543,"21,837.78",Morrison Facilities Services Ltd
Manchester City Council,Housing Revenue Account,Northwards Reps Fee,10.04.2015,5100785860,"1,784,120.67",Northwards Housing Limited
Manchester City Council,Housing Revenue Account,Works and associated costs for Land and Buildings,10.04.2015,5100785089,"133,000.00",Mears Limited
Manchester City Council,Libraries and Theatres,Training and Development,10.04.2015,5100785478,885.00,Serco Limited
Manchester City Council,Libraries and Theatres,Training and Development,10.04.2015,5100785481,885.00,Serco Limited
Manchester City Council,Manchester Leisure,Agency staff provision,10.04.2015,5100784339,"8,153.24",Bury M.B.C.
Manchester City Council,Manchester Leisure,Building Materials for direct delivery,10.04.2015,5100784415,"1,975.00",Groundwork Landscapes Ltd
Manchester City Council,Manchester Leisure,CA-Construction,10.04.2015,5100784621,950.00,Massey & Harris (Engrg) Ltd
Manchester City Council,Manchester Leisure,Equipment,10.04.2015,5100784623,"3,718.75",Reading Room
Manchester City Council,Manchester Leisure,Grounds Maintenance,10.04.2015,5100784720,"6,388.95",Continental Landscapes Limited
Manchester City Council,Manchester Leisure,I T Provision,10.04.2015,5100785633,"3,285.00",Kinetic Solutions Ltd
Manchester City Council,Manchester Leisure,Payments to Sub-Contractors,10.04.2015,5100784811,"1,878.71",Continental Landscapes Limited
Manchester City Council,Manchester Leisure,Professional fees,10.04.2015,5100784802,"2,453.15",Eastlands Trust Limited
Manchester City Council,Manchester Leisure,Training and Development,10.04.2015,5100785380,"1,900.00",The Fitness Training Academy Ltd
Manchester City Council,Manchester Leisure,Transport Coach Hire,10.04.2015,5100785479,650.00,Belle Vue Manchester
Manchester City Council,Regeneration Finance,Grant and subscriptions awarded,10.04.2015,5100785790,"395,000.00",Marketing Manchester
Manchester City Council,Regeneration Finance,I T Provision,10.04.2015,5100784651,"2,736.90",Reason Digital Ltd
Manchester City Council,Regeneration Finance,I T Provision,10.04.2015,5100785130,600.00,Ncc Services Limited
Manchester City Council,Regeneration Finance,Professional fees,10.04.2015,5100784027,"67,831.00",Transport for Greater Manchester
Manchester City Council,Regeneration Finance,Professional fees,10.04.2015,5100785502,"30,000.00",Ian Simpson Architects
Manchester City Council,Regeneration Finance,Subsistence and Conference Expenses,10.04.2015,5100785819,"1,252.87",Marketing Manchester
Manchester City Council,Adult Social Care,Agency staff provision,13.04.2015,5100785665,"1,832.60",Badenoch & Clark
Manchester City Council,Adult Social Care,Agency staff provision,13.04.2015,5100784135,"1,204.00",Capita  Resourcing Ltd
Manchester City Council,Adult Social Care,Agency staff provision,13.04.2015,5100784201,"1,204.00",Capita  Resourcing Ltd
Manchester City Council,Adult Social Care,Agency staff provision,13.04.2015,5100784174,"1,145.70",Cardea Resourcing Limited
Manchester City Council,Adult Social Care,Agency staff provision,13.04.2015,5100784255,"1,002.01",4Social Work Ltd
Manchester City Council,Adult Social Care,Agency staff provision,13.04.2015,5100785595,823.99,Search Consultancy Ltd
Manchester City Council,Adult Social Care,Agency staff provision,13.04.2015,5100785949,814.40,Ashberry Recruitment Ltd
Manchester City Council,Adult Social Care,Agency staff provision,13.04.2015,5100785949,746.88,Ashberry Recruitment Ltd
Manchester City Council,Adult Social Care,Agency staff provision,13.04.2015,5100785899,727.30,Reed Employment Plc
Manchester City Council,Adult Social Care,Agency staff provision,13.04.2015,5100785949,533.05,Ashberry Recruitment Ltd
Manchester City Council,Adult Social Care,Furniture,13.04.2015,5100786012,984.23,The Furnishing Service Ltd
Manchester City Council,Adult Social Care,Furniture,13.04.2015,5100786005,897.00,The Furnishing Service Ltd
Manchester City Council,Adult Social Care,Furniture,13.04.2015,5100786008,793.42,The Furnishing Service Ltd
Manchester City Council,Adult Social Care,Furniture,13.04.2015,5100786013,651.93,The Furnishing Service Ltd
Manchester City Council,Adult Social Care,Furniture,13.04.2015,5100786009,648.39,The Furnishing Service Ltd
Manchester City Council,Adult Social Care,Furniture,13.04.2015,5100786006,637.90,The Furnishing Service Ltd
Manchester City Council,Adult Social Care,Furniture,13.04.2015,5100786010,598.31,The Furnishing Service Ltd
Manchester City Council,Adult Social Care,Grant and subscriptions awarded,13.04.2015,5100785974,"3,715.00",Great Places Housing Association
Manchester City Council,Adult Social Care,Grant and subscriptions awarded,13.04.2015,5100785892,"1,660.00",MaD Theatre Company
Manchester City Council,Adult Social Care,Grant and subscriptions awarded,13.04.2015,5100785456,812.04,GAYDIO Community Interest Company
Manchester City Council,Adult Social Care,I T Provision,13.04.2015,5100785529,"1,980.00",Trojan Consultants Ltd (CASPAR)
Manchester City Council,Adult Social Care,Personal needs of client,13.04.2015,5100786021,629.37,The Furnishing Service Ltd
Manchester City Council,Adult Social Care,Professional fees,13.04.2015,5100784445,811.30,Manchester School Services Limited
Manchester City Council,Adult Social Care,Professional fees,13.04.2015,5100784456,811.30,Manchester School Services Limited
Manchester City Council,Adult Social Care,Professional fees,13.04.2015,1904589540,749.98,Redacted Personal Information
Manchester City Council,Adult Social Care,Rents,13.04.2015,5100785948,"1,127.70",Brighter Beginnings (Cheetham)
Manchester City Council,Adult Social Care,Third party payments relating to Voluntary Organisations,13.04.2015,5100785269,"1,739.00",HCL Social Care
Manchester City Council,Adult Social Care,Third party payments relating to Voluntary Organisations,13.04.2015,5100785370,"1,380.00",ALL FM 96.9 Ltd
Manchester City Council,Adult Social Care,Third party payments to Health Authority,13.04.2015,1904589353,"1,051.00",East Cheshire NHS Trust
Manchester City Council,Adult Social Care,Third party payments to Health Authority,13.04.2015,1904589349,502.54,North West London Hospitals
Manchester City Council,Adult Social Care,Training and Development,13.04.2015,5100785983,"5,012.00",Ncfe
Manchester City Council,Adult Social Care,Transport Coach Hire,13.04.2015,5100785222,"6,672.00",Saltax Ltd
Manchester City Council,Adult Social Care,Transport Coach Hire,13.04.2015,5100785077,"5,016.00",Redacted Personal Information
Manchester City Council,Adult Social Care,Transport Coach Hire,13.04.2015,5100785823,-580.00,Saltax Ltd
Manchester City Council,Adult Social Care,Travel,13.04.2015,5100785938,548.92,Cresta World Travel t/a Uniglobe
Manchester City Council,Chief Executives,Agency staff provision,13.04.2015,5100784174,"39,515.43",Cardea Resourcing Limited
Manchester City Council,Chief Executives,Agency staff provision,13.04.2015,5100785901,"7,842.82",SRA Cover Staff Ltd
Manchester City Council,Chief Executives,Agency staff provision,13.04.2015,5100784201,"5,977.26",Capita  Resourcing Ltd
Manchester City Council,Chief Executives,Agency staff provision,13.04.2015,5100785899,"4,635.00",Reed Employment Plc
Manchester City Council,Chief Executives,Agency staff provision,13.04.2015,5100784136,"4,538.59",4Social Work Ltd
Manchester City Council,Chief Executives,Agency staff provision,13.04.2015,5100785899,"4,345.03",Reed Employment Plc
Manchester City Council,Chief Executives,Agency staff provision,13.04.2015,5100785949,"3,994.11",Ashberry Recruitment Ltd
Manchester City Council,Chief Executives,Agency staff provision,13.04.2015,5100785981,"2,670.76",Hays Personnel
Manchester City Council,Chief Executives,Agency staff provision,13.04.2015,5100785595,"1,978.41",Search Consultancy Ltd
Manchester City Council,Chief Executives,Agency staff provision,13.04.2015,5100785975,"1,725.00",Hays Personnel
Manchester City Council,Chief Executives,Agency staff provision,13.04.2015,5100785660,"1,626.78",Aptus Personnel Ltd t/a Jark
Manchester City Council,Chief Executives,Agency staff provision,13.04.2015,5100785899,"1,617.65",Reed Employment Plc
Manchester City Council,Chief Executives,Agency staff provision,13.04.2015,5100785972,"1,500.00",Hays Personnel
Manchester City Council,Chief Executives,Agency staff provision,13.04.2015,5100786003,"1,416.17",HCL Social Care
Manchester City Council,Chief Executives,Agency staff provision,13.04.2015,5100785679,840.00,Entrust Social Care
Manchester City Council,Chief Executives,Agency staff provision,13.04.2015,5100785899,600.60,Reed Employment Plc
Manchester City Council,Chief Executives,Compensation Payments,13.04.2015,1904589361,"1,900.00",Redacted Personal Information
Manchester City Council,Chief Executives,Compensation Payments,13.04.2015,1904589542,"1,500.00",Redacted Personal Information
Manchester City Council,Chief Executives,Data Links,13.04.2015,1904589548,"182,297.05",BT PLC
Manchester City Council,Chief Executives,Funeral and coroner related services,13.04.2015,5100785094,"2,606.76",The Pennine Acute Hospital Nhs Trus
Manchester City Council,Chief Executives,Funeral and coroner related services,13.04.2015,5100784927,"2,055.00",The Pennine Acute Hospital Nhs Trus
Manchester City Council,Chief Executives,I T Provision,13.04.2015,5100785569,"3,650.00",Softbox Ltd
Manchester City Council,Chief Executives,ICT Sup & Maintnance,13.04.2015,5100785367,"60,974.00",Jadu Ltd
Manchester City Council,Chief Executives,ICT Sup & Maintnance,13.04.2015,5100785685,"13,780.00",Ibm United Kingdom Financial Serv.L
Manchester City Council,Chief Executives,Infrastructure Fees,13.04.2015,5100785899,"2,587.50",Reed Employment Plc
Manchester City Council,Chief Executives,Infrastructure Fees,13.04.2015,5100785899,"2,117.64",Reed Employment Plc
Manchester City Council,Chief Executives,Infrastructure Fees,13.04.2015,5100785973,"2,000.00",Hays Personnel
Manchester City Council,Chief Executives,Infrastructure Fees,13.04.2015,5100785977,"1,870.00",Hays Personnel
Manchester City Council,Chief Executives,Infrastructure Fees,13.04.2015,5100785982,"1,600.00",Hays Personnel
Manchester City Council,Chief Executives,Printing,13.04.2015,5100785862,830.00,Contact Photographic Services Ltd
Manchester City Council,Chief Executives,Printing,13.04.2015,5100785854,620.00,Contact Photographic Services Ltd
Manchester City Council,Chief Executives,Subsistence and Conference Expenses,13.04.2015,5100785916,840.67,Cresta World Travel t/a Uniglobe
Manchester City Council,Chief Executives,Training and Development,13.04.2015,5100785809,600.00,Arc People Development Ltd
Manchester City Council,Chief Executives,Vehicle Plant Furniture and Equipment,13.04.2015,5100784354,"5,921.54",Dell Corporation Ltd
Manchester City Council,Chief Executives,Vehicle Plant Furniture and Equipment,13.04.2015,5100784311,903.12,Computerland Uk Ltd
Manchester City Council,Chief Executives,Works and associated costs for Land and Buildings,13.04.2015,5100785519,"9,405.00",Turner & Townsend Cost
Manchester City Council,Chief Executives,Works and associated costs for Land and Buildings,13.04.2015,5100785519,"5,700.00",Turner & Townsend Cost
Manchester City Council,Childrens Services,Works and associated costs for Land and Buildings,13.04.2015,5100785372,"5,699.00",Keepmoat Regeneration Ltd
Manchester City Council,Corporate Services,Agency staff provision,13.04.2015,5100785976,615.30,Hays Personnel
Manchester City Council,Corporate Services,I T Provision,13.04.2015,5100785815,"1,838.00",Complete Network Services Ltd
Manchester City Council,Corporate Services,I T Provision,13.04.2015,5100785438,719.48,Computerland Uk Ltd
Manchester City Council,Corporate Services,Professional fees,13.04.2015,5100784915,"20,116.67",Wilkinson Cowan Partnership Ltd
Manchester City Council,Corporate Services,Professional fees,13.04.2015,5100784922,"16,311.60",Wilkinson Cowan Partnership Ltd
Manchester City Council,Corporate Services,Professional fees,13.04.2015,5100785669,"6,352.97",Mott Macdonald Uk Limited
Manchester City Council,Corporate Services,Professional fees,13.04.2015,5100785647,"3,170.80",Mott Macdonald Uk Limited
Manchester City Council,Corporate Services,Professional fees,13.04.2015,5100785661,"2,407.34",Mott Macdonald Uk Limited
Manchester City Council,Corporate Services,Professional fees,13.04.2015,5100785653,"2,119.95",Mott Macdonald Uk Limited
Manchester City Council,Corporate Services,Professional fees,13.04.2015,5100785664,"1,519.83",Mott Macdonald Uk Limited
Manchester City Council,Corporate Services,Professional fees,13.04.2015,5100785658,"1,497.22",Mott Macdonald Uk Limited
Manchester City Council,Corporate Services,Professional fees,13.04.2015,5100785057,"3,778.44",Aecom Infrastructure & Environment
Manchester City Council,Corporate Services,Transport Taxis,13.04.2015,1904590565,"6,814.02",Mantax Radio Taxis Ltd
Manchester City Council,Corporate Services,Transport Taxis,13.04.2015,1904590566,"3,027.90",Manchester Cars
Manchester City Council,Corporate Services,Works and associated costs for Land and Buildings,13.04.2015,5100785332,"57,973.36",Cruden Group Ltd
Manchester City Council,Corporate Services,Works and associated costs for Land and Buildings,13.04.2015,5100785959,"5,050.00",Cruden Group Ltd
Manchester City Council,Corporate Services,Works and associated costs for Land and Buildings,13.04.2015,5100785375,"4,216.94",Cruden Group Ltd
Manchester City Council,Environment and Operations,Agency staff provision,13.04.2015,5100785979,715.40,Hays Personnel
Manchester City Council,Environment and Operations,Agency staff provision,13.04.2015,5100785980,528.47,Hays Personnel
Manchester City Council,Environment and Operations,Construction Works,13.04.2015,5100785587,"1,244.80",Virgin Media Limited
Manchester City Council,Environment and Operations,I T Provision,13.04.2015,5100785433,719.48,Computerland Uk Ltd
Manchester City Council,Environment and Operations,Professional fees,13.04.2015,5100785641,"3,247.31",Aecom Infrastructure & Environment
Manchester City Council,Environment and Operations,Professional fees,13.04.2015,5100785888,949.07,Charles Beresford + Co Ltd
Manchester City Council,General Fund,Levies,13.04.2015,1904582280,"3,697,100.00",GMCA
Manchester City Council,Hospitality + Trading Services,Agency staff provision,13.04.2015,5100785660,730.80,Aptus Personnel Ltd t/a Jark
Manchester City Council,Hospitality + Trading Services,Building Materials for direct delivery,13.04.2015,5100785988,"5,770.00",Marshalls Mono Ltd
Manchester City Council,Hospitality + Trading Services,Building Materials for direct delivery,13.04.2015,1904590563,808.00,Ecomix Concrete Ltd
Manchester City Council,Hospitality + Trading Services,Cash Collection,13.04.2015,5100785957,"4,594.25",G4S Cash Solutions (Uk) Ltd
Manchester City Council,Hospitality + Trading Services,Data Registration,13.04.2015,1904589345,"9,100.00",HMCS Traffic EC
Manchester City Council,Hospitality + Trading Services,Data Registration,13.04.2015,1904589351,"4,893.00",HMCS Traffic EC
Manchester City Council,Hospitality + Trading Services,Hire of Machinery,13.04.2015,5100785997,"4,706.00",Fast Hire UK
Manchester City Council,Hospitality + Trading Services,Hire of Machinery,13.04.2015,5100785955,"1,905.92",F.R.Sharrock Ltd
Manchester City Council,Hospitality + Trading Services,Internal Repairs and Maintenance for buildings,13.04.2015,5100784955,"1,482.41",Event Technical Support
Manchester City Council,Hospitality + Trading Services,Payments to Sub-Contractors,13.04.2015,5100784587,"47,926.10",Groundwork Landscapes Ltd
Manchester City Council,Hospitality + Trading Services,Vehicle Hire Costs,13.04.2015,5100785960,"2,596.00",Dawson Rentals Sweepers
Manchester City Council,Hospitality + Trading Services,Vehicle Hire Costs,13.04.2015,5100785965,"2,596.00",Dawson Rentals Sweepers
Manchester City Council,Hospitality + Trading Services,Vehicle Hire Costs,13.04.2015,5100785961,"2,134.00",Dawson Rentals Sweepers
Manchester City Council,Hospitality + Trading Services,Vehicle Hire Costs,13.04.2015,5100785962,"2,134.00",Dawson Rentals Sweepers
Manchester City Council,Hospitality + Trading Services,Vehicle Hire Costs,13.04.2015,5100785963,"2,134.00",Dawson Rentals Sweepers
Manchester City Council,Hospitality + Trading Services,Vehicle Hire Costs,13.04.2015,5100785946,822.35,Specialist Vehicle rental
Manchester City Council,Insurance Fund,Vehicle & Plant Ins,13.04.2015,5100784972,"1,354.30",Motor Accident Protection
Manchester City Council,Libraries and Theatres,Works and associated costs for Land and Buildings,13.04.2015,5100785221,"19,730.00",Pierre Angulaire Limited
Manchester City Council,Libraries and Theatres,Works and associated costs for Land and Buildings,13.04.2015,5100785853,"19,730.00",Pierre Angulaire Limited
Manchester City Council,Libraries and Theatres,Works and associated costs for Land and Buildings,13.04.2015,5100785851,"-19,730.00",Pierre Angulaire Limited
Manchester City Council,Manchester Leisure,Equipment,13.04.2015,5100785783,"1,580.00",Kent Services Ltd
Manchester City Council,Manchester Leisure,Equipment,13.04.2015,5100784755,"1,500.00",Kenny Bros (Civil Eng) Ltd
Manchester City Council,Manchester Leisure,Equipment,13.04.2015,5100785606,"1,400.00",Cocklestorm Fencing  Ltd
Manchester City Council,Manchester Leisure,Equipment,13.04.2015,5100785607,750.00,Cocklestorm Fencing  Ltd
Manchester City Council,Manchester Leisure,Equipment,13.04.2015,5100785407,750.00,Talurit (UK) Ltd
Manchester City Council,Manchester Leisure,Grant and subscriptions awarded,13.04.2015,5100785334,750.00,Manchester Digital Laboratory
Manchester City Council,Manchester Leisure,Payments for services,13.04.2015,5100785048,"1,875.00",Street Dance and Fitness Ltd
Manchester City Council,Manchester Leisure,Payments for services,13.04.2015,5100785045,"1,525.00",Street Dance and Fitness Ltd
Manchester City Council,Manchester Leisure,Payments for services,13.04.2015,5100785598,"1,275.00",Didsbury Northern Fitness
Manchester City Council,Manchester Leisure,Payments for services,13.04.2015,5100785891,"1,153.00",Collyhurst & Moston Lads Club
Manchester City Council,Manchester Leisure,Transport and Driver Hire,13.04.2015,1904589594,800.00,Blue Apron Transport Ltd
Manchester City Council,Manchester Leisure,Works and associated costs for Land and Buildings,13.04.2015,5100785406,"737,892.55",Laing O'Rourke Construction Ltd
Manchester City Council,Manchester Leisure,Works and associated costs for Land and Buildings,13.04.2015,5100785523,"3,531.00",Turner & Townsend Cost
Manchester City Council,Manchester Leisure,Works and associated costs for Land and Buildings,13.04.2015,5100785523,"3,531.00",Turner & Townsend Cost
Manchester City Council,Regeneration Finance,Agency staff provision,13.04.2015,5100784135,"1,012.20",Capita  Resourcing Ltd
Manchester City Council,Regeneration Finance,Agency staff provision,13.04.2015,5100784201,"1,012.20",Capita  Resourcing Ltd
Manchester City Council,Regeneration Finance,Agency staff provision,13.04.2015,5100785978,570.57,Hays Personnel
Manchester City Council,Regeneration Finance,Expenditure re Internal Trading Ordered Externally,13.04.2015,1904579028,500.00,New Image Lighting
Manchester City Council,Regeneration Finance,General Payments not otherwise categorised,13.04.2015,1904589552,"14,221.60",Homes and Communities Agency
Manchester City Council,Regeneration Finance,Grant and subscriptions awarded,13.04.2015,5100785524,"395,000.00",Marketing Manchester
Manchester City Council,Regeneration Finance,Grant and subscriptions awarded,13.04.2015,5100785812,"42,397.25",Pathways CIC
Manchester City Council,Regeneration Finance,Grant and subscriptions awarded,13.04.2015,5100785894,"-42,397.25",Pathways CIC
Manchester City Council,Regeneration Finance,Grant and subscriptions awarded,13.04.2015,5100785878,"-395,000.00",Marketing Manchester
Manchester City Council,Regeneration Finance,Professional fees,13.04.2015,5100785484,"13,880.00",Ekos Consulting (Uk) Ltd
Manchester City Council,Regeneration Finance,Professional fees,13.04.2015,5100785634,"6,000.00",Building Design Partnership Limited
Manchester City Council,Regeneration Finance,Professional fees,13.04.2015,5100784963,"2,250.00",Ekos Consulting (Uk) Ltd
Manchester City Council,Regeneration Finance,Professional fees,13.04.2015,5100785778,"3,543.75",Smart Green Sustainabilty Limited
Manchester City Council,Adult Social Care,Agency staff provision,14.04.2015,5100786043,"1,663.31",Ashberry Recruitment Ltd
Manchester City Council,Adult Social Care,Agency staff provision,14.04.2015,5100785954,"1,161.30",Bs Project Services Ltd T/A
Manchester City Council,Adult Social Care,Agency staff provision,14.04.2015,5100786043,"1,059.70",Ashberry Recruitment Ltd
Manchester City Council,Adult Social Care,Agency staff provision,14.04.2015,5100786043,746.88,Ashberry Recruitment Ltd
Manchester City Council,Adult Social Care,Agency staff provision,14.04.2015,5100786043,552.38,Ashberry Recruitment Ltd
Manchester City Council,Adult Social Care,Agency staff provision,14.04.2015,5100786269,539.28,Eden Brown Ltd
Manchester City Council,Adult Social Care,Agency staff provision,14.04.2015,5100786271,513.47,Eden Brown Ltd
Manchester City Council,Adult Social Care,Bed & Breakfast Acc,14.04.2015,5100785584,"5,790.00",Redacted Personal Information
Manchester City Council,Adult Social Care,Childrens Allowances,14.04.2015,1904589550,"1,720.50",Barnardos Manchester Leaving Care S
Manchester City Council,Adult Social Care,Communications,14.04.2015,5100785690,995.00,Jobs Go Public Limited
Manchester City Council,Adult Social Care,Communications,14.04.2015,5100786242,900.00,Guardian News and Media Limited
Manchester City Council,Adult Social Care,Compensation Payments,14.04.2015,1904591043,"1,375.00",Abney Garsden Mcdonald
Manchester City Council,Adult Social Care,Contract Cleaning External,14.04.2015,5100786049,"4,004.00",Paint Pots (Manchester) Ltd
Manchester City Council,Adult Social Care,Electricity,14.04.2015,5100785781,"6,967.62",The Manchester College
Manchester City Council,Adult Social Care,Equipment,14.04.2015,5100786115,"1,445.00",Arjo Med Ab Ltd
Manchester City Council,Adult Social Care,External repairs and maintenance for buildings,14.04.2015,5100786165,"6,376.00",Morrison Facilities Services Ltd
Manchester City Council,Adult Social Care,Fixtures and Fitting,14.04.2015,1904589550,"5,263.29",Barnardos Manchester Leaving Care S
Manchester City Council,Adult Social Care,Furniture,14.04.2015,5100786376,793.32,The Furnishing Service Ltd
Manchester City Council,Adult Social Care,Furniture,14.04.2015,5100786379,651.93,The Furnishing Service Ltd
Manchester City Council,Adult Social Care,Furniture,14.04.2015,5100786377,626.99,The Furnishing Service Ltd
Manchester City Council,Adult Social Care,Furniture,14.04.2015,5100786378,611.58,The Furnishing Service Ltd
Manchester City Council,Adult Social Care,Furniture,14.04.2015,5100786392,590.58,The Furnishing Service Ltd
Manchester City Council,Adult Social Care,Furniture,14.04.2015,5100786380,547.81,The Furnishing Service Ltd
Manchester City Council,Adult Social Care,Gas,14.04.2015,5100785781,"2,978.53",The Manchester College
Manchester City Council,Adult Social Care,Grant and subscriptions awarded,14.04.2015,5100785614,"6,335.37",Collyhurst Nursery School
Manchester City Council,Adult Social Care,Grant and subscriptions awarded,14.04.2015,5100786103,"3,971.68",LGBT Youth North West
Manchester City Council,Adult Social Care,Legal Fees,14.04.2015,1904589642,610.00,Redacted Personal Information
Manchester City Council,Adult Social Care,Payments for services,14.04.2015,5100786197,730.71,Redacted Personal Information
Manchester City Council,Adult Social Care,Payments for services,14.04.2015,5100786198,730.71,Redacted Personal Information
Manchester City Council,Adult Social Care,Personal needs of client,14.04.2015,1904589550,717.00,Barnardos Manchester Leaving Care S
Manchester City Council,Adult Social Care,PNOR-Other Amenities,14.04.2015,1904589550,"1,503.94",Barnardos Manchester Leaving Care S
Manchester City Council,Adult Social Care,Professional fees,14.04.2015,5100785714,"5,135.00",Manchester Metropolitan University
Manchester City Council,Adult Social Care,Professional fees,14.04.2015,5100785713,"5,134.00",Manchester Metropolitan University
Manchester City Council,Adult Social Care,Professional fees,14.04.2015,5100786075,"4,825.88",H.G. Care Services Ltd
Manchester City Council,Adult Social Care,Professional fees,14.04.2015,5100785852,"3,000.00",Virtual College Ltd
Manchester City Council,Adult Social Care,Professional fees,14.04.2015,5100786074,"2,976.15",H.G. Care Services Ltd
Manchester City Council,Adult Social Care,Professional fees,14.04.2015,5100786257,"1,969.88",H.G. Care Services Ltd
Manchester City Council,Adult Social Care,Professional fees,14.04.2015,5100786052,"1,080.00",Action First iPeople Ltd
Manchester City Council,Adult Social Care,Professional fees,14.04.2015,1904589604,"1,000.00",Crown Commercial Service
Manchester City Council,Adult Social Care,Professional fees,14.04.2015,1904589362,925.80,Redacted Personal Information
Manchester City Council,Adult Social Care,Professional fees,14.04.2015,1904589363,850.00,Redacted Personal Information
Manchester City Council,Adult Social Care,Professional fees,14.04.2015,5100786055,720.00,Action First iPeople Ltd
Manchester City Council,Adult Social Care,Professional fees,14.04.2015,1904138347,500.00,Otten Penna Solicitors
Manchester City Council,Adult Social Care,Rents,14.04.2015,5100785620,"14,717.14",M & Q Properties Management Ltd
Manchester City Council,Adult Social Care,Rents,14.04.2015,5100786318,"14,717.14",M & Q Properties Management Ltd
Manchester City Council,Adult Social Care,Rents,14.04.2015,5100785623,"13,575.71",M & Q Properties Management Ltd
Manchester City Council,Adult Social Care,Rents,14.04.2015,5100785627,"11,972.86",M & Q Properties Management Ltd
Manchester City Council,Adult Social Care,Rents,14.04.2015,5100785624,"9,835.71",M & Q Properties Management Ltd
Manchester City Council,Adult Social Care,Rents,14.04.2015,5100785618,"3,037.81",B & A Properties
Manchester City Council,Adult Social Care,Rents,14.04.2015,5100786315,"-14,717.14",M & Q Properties Management Ltd
Manchester City Council,Adult Social Care,Third party payments relating to Voluntary Organisations,14.04.2015,5100785762,"8,162.00",Greater Manchester Immigration Aid
Manchester City Council,Adult Social Care,Third party payments relating to Voluntary Organisations,14.04.2015,5100785628,955.00,Manchester Settlement
Manchester City Council,Adult Social Care,Third party payments to Health Authority,14.04.2015,1904591065,931.34,Wigan Metropolitan Borough Council
Manchester City Council,Adult Social Care,Third party payments to Health Authority,14.04.2015,1904591039,831.44,Barts Health NHS Trust
Manchester City Council,Adult Social Care,Third party payments to Health Authority,14.04.2015,1904591061,819.87,Wigan Metropolitan Borough Council
Manchester City Council,Adult Social Care,Third party payments to Health Authority,14.04.2015,1904591038,734.00,Heart of England NHS FT
Manchester City Council,Adult Social Care,Third party payments to other Local Authorities,14.04.2015,5100786042,"1,500.00",The Manchester College
Manchester City Council,Adult Social Care,Training and Development,14.04.2015,1904589550,"1,230.80",Barnardos Manchester Leaving Care S
Manchester City Council,Adult Social Care,Training and Development,14.04.2015,5100786035,780.00,The Manchester College
Manchester City Council,Adult Social Care,Training and Development,14.04.2015,5100786082,780.00,The Manchester College
Manchester City Council,Adult Social Care,Training and Development,14.04.2015,5100786213,780.00,The Manchester College
Manchester City Council,Adult Social Care,Transport Coach Hire,14.04.2015,5100786102,"8,250.00",Redacted Personal Information
Manchester City Council,Adult Social Care,Transport Coach Hire,14.04.2015,5100785769,"4,080.00",Exec-Coach Services
Manchester City Council,Adult Social Care,Transport Coach Hire,14.04.2015,5100786070,"3,189.00",Belle Vue Manchester
Manchester City Council,Adult Social Care,Transport Coach Hire,14.04.2015,5100785668,"1,840.00",Hastings Private Hire
Manchester City Council,Adult Social Care,Transport Coach Hire,14.04.2015,5100785670,"1,645.00",Hastings Private Hire
Manchester City Council,Adult Social Care,Transport Coach Hire,14.04.2015,5100785674,"1,443.00",Hastings Private Hire
Manchester City Council,Adult Social Care,Transport Coach Hire,14.04.2015,5100785677,"1,397.50",Hastings Private Hire
Manchester City Council,Adult Social Care,Transport Coach Hire,14.04.2015,5100785672,"1,330.20",Hastings Private Hire
Manchester City Council,Adult Social Care,Transport Coach Hire,14.04.2015,5100785874,"1,104.00",Hastings Private Hire
Manchester City Council,Adult Social Care,Transport Coach Hire,14.04.2015,5100785676,792.00,Hastings Private Hire
Manchester City Council,Adult Social Care,Transport Coach Hire,14.04.2015,5100785871,710.00,Hastings Private Hire
Manchester City Council,Adult Social Care,Transport Coach Hire,14.04.2015,5100786263,560.00,Cartax Radio Cars Oldham Ltd
Manchester City Council,Adult Social Care,Transport Coach Hire,14.04.2015,5100786262,518.00,Cartax Radio Cars Oldham Ltd
Manchester City Council,Chief Executives,Agency staff provision,14.04.2015,5100785954,"1,869.33",Bs Project Services Ltd T/A
Manchester City Council,Chief Executives,Agency staff provision,14.04.2015,5100785954,"1,813.65",Bs Project Services Ltd T/A
Manchester City Council,Chief Executives,Agency staff provision,14.04.2015,5100785954,"1,053.92",Bs Project Services Ltd T/A
Manchester City Council,Chief Executives,Agency staff provision,14.04.2015,5100785673,"1,021.36",Proactive Personnel Ltd
Manchester City Council,Chief Executives,Agency staff provision,14.04.2015,5100785667,814.37,Proactive Personnel Ltd
Manchester City Council,Chief Executives,Agency staff provision,14.04.2015,5100785954,803.18,Bs Project Services Ltd T/A
Manchester City Council,Chief Executives,Building Works,14.04.2015,5100786237,"744,409.69",Laing O'Rourke Construction Ltd
Manchester City Council,Chief Executives,Building Works,14.04.2015,5100786113,"46,030.00",The Co-Operative Group
Manchester City Council,Chief Executives,Building Works,14.04.2015,5100786287,"42,333.70",The Co-Operative Group
Manchester City Council,Chief Executives,Building Works,14.04.2015,5100786289,"12,542.50",The Co-Operative Group
Manchester City Council,Chief Executives,Building Works,14.04.2015,5100786114,"-46,030.00",The Co-Operative Group
Manchester City Council,Chief Executives,Equipment,14.04.2015,5100786152,"1,345.74",Neopost Ltd (Consumables)
Manchester City Council,Chief Executives,I T Provision,14.04.2015,5100785927,567.86,Computerland Uk Ltd
Manchester City Council,Chief Executives,ICT Sup & Maintnance,14.04.2015,5100785067,"69,395.52",Idox Software Ltd
Manchester City Council,Chief Executives,ICT Sup & Maintnance,14.04.2015,5100786033,"69,395.52",Idox Software Ltd
Manchester City Council,Chief Executives,ICT Sup & Maintnance,14.04.2015,5100786031,"-69,395.52",Idox Software Ltd
Manchester City Council,Chief Executives,Occupational Health services,14.04.2015,1904591262,"3,000.00",Healthwork Ltd
Manchester City Council,Chief Executives,Payments to Sub-Contractors,14.04.2015,5100786193,"2,155.08",BTC Group
Manchester City Council,Chief Executives,Payments to Sub-Contractors,14.04.2015,5100786188,"1,610.00",BTC Group
Manchester City Council,Chief Executives,Payments to Sub-Contractors,14.04.2015,5100786191,534.60,BTC Group
Manchester City Council,Chief Executives,Postage,14.04.2015,5100786260,"18,863.99",Royal Mail Group Plc
Manchester City Council,Chief Executives,Postage,14.04.2015,5100786217,"3,495.00",Royal Mail Group Plc
Manchester City Council,Chief Executives,Postage,14.04.2015,1904588650,"1,515.52",Royal Mail Group Plc
Manchester City Council,Chief Executives,Postage,14.04.2015,5100785229,"1,127.13",Royal Mail Group Plc
Manchester City Council,Chief Executives,Printing,14.04.2015,5100785967,"13,404.00",Hudson & Pearson
Manchester City Council,Chief Executives,Printing,14.04.2015,5100785967,"1,870.00",Hudson & Pearson
Manchester City Council,Chief Executives,Printing,14.04.2015,5100785970,"1,238.00",Hudson & Pearson
Manchester City Council,Chief Executives,Printing,14.04.2015,5100786089,719.00,Hudson & Pearson
Manchester City Council,Chief Executives,Removal and Storage of Furniture,14.04.2015,5100786250,648.00,Master Moves Ltd
Manchester City Council,Chief Executives,Vehicle Plant Furniture and Equipment,14.04.2015,5100785635,"53,921.50",Computacenter (UK) Ltd
Manchester City Council,Childrens Services,Works and associated costs for Land and Buildings,14.04.2015,5100786047,650.00,Oswald Road Primary School
Manchester City Council,Corporate Services,Cleaning Equipment and Materials,14.04.2015,1904591312,"1,234.68",PHS Group
Manchester City Council,Corporate Services,I T Provision,14.04.2015,5100786298,"118,829.70",Capita Business Services Ltd
Manchester City Council,Corporate Services,I T Provision,14.04.2015,5100784935,"1,400.00",Pmoonline Limited
Manchester City Council,Corporate Services,Insurance,14.04.2015,5100783892,"1,209.78",Manchester Working Ltd
Manchester City Council,Corporate Services,Non Housing Rent Receipts,14.04.2015,1700056078,"-1,394.00",The Cheshire Watch Company Ltd
Manchester City Council,Corporate Services,Postage,14.04.2015,5100785418,"1,980.22",Royal Mail Group Plc
Manchester City Council,Corporate Services,Postage,14.04.2015,5100785320,"-12,510.68",Royal Mail Group Plc
Manchester City Council,Corporate Services,Professional fees,14.04.2015,5100786051,"38,368.00",Disclosure & Barring Service
Manchester City Council,Corporate Services,Rents,14.04.2015,5100786118,"3,023.50",Manchester Health Academy
Manchester City Council,Corporate Services,Training and Development,14.04.2015,5100786201,500.00,Construction Industry Training Boar
Manchester City Council,Corporate Services,Works and associated costs for Land and Buildings,14.04.2015,5100785115,"12,149.83",Realm Projects Limited
Manchester City Council,Environment and Operations,Building Materials for direct delivery,14.04.2015,5100786258,"1,900.00",A P Broome Landscapes Ltd
Manchester City Council,Environment and Operations,Building Materials for direct delivery,14.04.2015,5100786232,"1,885.00",A P Broome Landscapes Ltd
Manchester City Council,Environment and Operations,Building Materials for direct delivery,14.04.2015,5100786264,"1,850.00",A P Broome Landscapes Ltd
Manchester City Council,Environment and Operations,Building Materials for direct delivery,14.04.2015,5100786249,"1,435.00",A P Broome Landscapes Ltd
Manchester City Council,Environment and Operations,Building Materials for direct delivery,14.04.2015,5100786245,"1,028.00",A P Broome Landscapes Ltd
Manchester City Council,Environment and Operations,Building Materials for direct delivery,14.04.2015,5100786236,850.00,A P Broome Landscapes Ltd
Manchester City Council,Environment and Operations,Building Materials for direct delivery,14.04.2015,5100786204,-850.00,A P Broome Landscapes Ltd
Manchester City Council,Environment and Operations,Building Materials for direct delivery,14.04.2015,5100786206,"-1,028.00",A P Broome Landscapes Ltd
Manchester City Council,Environment and Operations,Building Materials for direct delivery,14.04.2015,5100786208,"-1,435.00",A P Broome Landscapes Ltd
Manchester City Council,Environment and Operations,Building Materials for direct delivery,14.04.2015,5100786212,"-1,850.00",A P Broome Landscapes Ltd
Manchester City Council,Environment and Operations,Building Materials for direct delivery,14.04.2015,5100786202,"-1,885.00",A P Broome Landscapes Ltd
Manchester City Council,Environment and Operations,Building Materials for direct delivery,14.04.2015,5100786210,"-1,900.00",A P Broome Landscapes Ltd
Manchester City Council,Environment and Operations,Compensation Payments,14.04.2015,1904579002,"3,500.00",Redacted Personal Information
Manchester City Council,Environment and Operations,Compensation Payments,14.04.2015,1904579081,"2,500.00",Redacted Personal Information
Manchester City Council,Environment and Operations,Compensation Payments,14.04.2015,1904579084,"2,500.00",Redacted Personal Information
Manchester City Council,Environment and Operations,Compensation Payments,14.04.2015,1904578963,"3,250.00",Peasegoods
Manchester City Council,Environment and Operations,Compensation Payments,14.04.2015,1904577593,"1,460.00",Curtis Law Solicitors LLP
Manchester City Council,Environment and Operations,Compensation Payments,14.04.2015,1904589549,"1,180.00",Russell & Russell
Manchester City Council,Environment and Operations,Environmental Services,14.04.2015,5100786063,634.00,Rigby Taylor Ltd
Manchester City Council,Environment and Operations,External repairs and maintenance for buildings,14.04.2015,5100786240,"1,842.00",A P Broome Landscapes Ltd
Manchester City Council,Environment and Operations,External repairs and maintenance for buildings,14.04.2015,5100786205,"-1,842.00",A P Broome Landscapes Ltd
Manchester City Council,Environment and Operations,I T Provision,14.04.2015,5100785593,"62,259.89",Civica UK Ltd
Manchester City Council,Environment and Operations,Testing Fees,14.04.2015,5100786281,"1,202.50",County Scientific Services
Manchester City Council,Environment and Operations,Testing Fees,14.04.2015,5100786279,"1,190.00",County Scientific Services
Manchester City Council,GMIST (Greater Mcr Integrated),Agency staff provision,14.04.2015,5100786223,"2,742.84",Salford City Council
Manchester City Council,GMIST (Greater Mcr Integrated),Agency staff provision,14.04.2015,5100786223,"1,015.69",Salford City Council
Manchester City Council,Hospitality + Trading Services,Agency staff provision,14.04.2015,5100785667,827.12,Proactive Personnel Ltd
Manchester City Council,Hospitality + Trading Services,Agency staff provision,14.04.2015,5100786340,739.91,Hays Personnel
Manchester City Council,Hospitality + Trading Services,Cleaning Equipment and Materials,14.04.2015,1904591352,846.23,PHS Group
Manchester City Council,Hospitality + Trading Services,Cleaning Equipment and Materials,14.04.2015,1904591292,780.86,PHS Group
Manchester City Council,Hospitality + Trading Services,Cleaning Equipment and Materials,14.04.2015,1904591338,688.78,PHS Group
Manchester City Council,Hospitality + Trading Services,Hire of Machinery,14.04.2015,5100786171,"16,455.40",Gibsons Garden Machinery Limited
Manchester City Council,Hospitality + Trading Services,Hire of Machinery,14.04.2015,5100786157,"3,344.21",Gibsons Garden Machinery Limited
Manchester City Council,Hospitality + Trading Services,Hire of Machinery,14.04.2015,5100786161,"2,501.36",Gibsons Garden Machinery Limited
Manchester City Council,Hospitality + Trading Services,Hire of Machinery,14.04.2015,5100786155,"2,178.00",Gibsons Garden Machinery Limited
Manchester City Council,Hospitality + Trading Services,Hire of Machinery,14.04.2015,5100786184,"1,848.00",Gibsons Garden Machinery Limited
Manchester City Council,Hospitality + Trading Services,Hire of Machinery,14.04.2015,5100786160,"1,634.93",Gibsons Garden Machinery Limited
Manchester City Council,Hospitality + Trading Services,Hire of Machinery,14.04.2015,5100786186,782.40,Gibsons Garden Machinery Limited
Manchester City Council,Hospitality + Trading Services,Payments to Sub-Contractors,14.04.2015,5100784845,"10,920.00",Clearway Drainage Systems Ltd
Manchester City Council,Hospitality + Trading Services,Payments to Sub-Contractors,14.04.2015,5100784839,"4,652.20",Clearway Drainage Systems Ltd
Manchester City Council,Hospitality + Trading Services,Payments to Sub-Contractors,14.04.2015,5100785552,"2,463.92",Fairway Landscapes Ltd
Manchester City Council,Hospitality + Trading Services,Refuse Collection,14.04.2015,5100785958,"19,980.00",Fairfield Environmental Serv Ltd
Manchester City Council,Hospitality + Trading Services,Vehicle Hire Costs,14.04.2015,5100786297,"3,500.00",John Martin Devine Ltd
Manchester City Council,Hospitality + Trading Services,Vehicle Hire Costs,14.04.2015,5100786088,"1,700.00",Peter Douglass Platforms
Manchester City Council,Hospitality + Trading Services,Vehicle Hire Costs,14.04.2015,5100786084,"1,320.00",Peter Douglass Platforms
Manchester City Council,Hospitality + Trading Services,Vehicle Hire Costs,14.04.2015,5100786085,"1,320.00",Peter Douglass Platforms
Manchester City Council,Hospitality + Trading Services,Vehicle Parts/Spares,14.04.2015,5100785724,504.75,Johnston Sweepers
Manchester City Council,Hospitality + Trading Services,Vehicle Repairs,14.04.2015,5100786061,678.48,Dawson Rentals Sweepers
Manchester City Council,Housing General Fund,Professional fees,14.04.2015,5100784910,"15,489.48",Manchester Care & Repair Ltd
Manchester City Council,Housing General Fund,Works and associated costs for Land and Buildings,14.04.2015,1904591255,"53,964.00",Stafford Young Jones Solicitors
Manchester City Council,Housing General Fund,Works and associated costs for Land and Buildings,14.04.2015,1904591255,"1,074.00",Stafford Young Jones Solicitors
Manchester City Council,Housing Revenue Account,Council Dwelling Adaptations,14.04.2015,5100786259,"1,950.00",Bespoke Composite Doors Ltd
Manchester City Council,Housing Revenue Account,Legal Fees,14.04.2015,5100786120,"6,230.60",Squire Sanders (UK) LLP
Manchester City Council,Housing Revenue Account,Professional fees,14.04.2015,5100786048,"4,970.00",Roger Hannah & Co
Manchester City Council,Housing Revenue Account,Surplus property Acquisitions,14.04.2015,1700056079,"-7,835.34",Redacted Personal Information
Manchester City Council,Insurance Fund,Marine Insurance,14.04.2015,5100786101,"5,670.53",Zurich Insurance
Manchester City Council,Insurance Fund,Marine Insurance,14.04.2015,5100786098,"5,349.56",Zurich Insurance
Manchester City Council,Insurance Fund,Marine Insurance,14.04.2015,5100786100,"-5,349.56",Zurich Insurance
Manchester City Council,Insurance Fund,Misc Insrnce Premium,14.04.2015,5100786099,"6,960.07",Zurich Insurance
Manchester City Council,Libraries and Theatres,Building Materials for direct delivery,14.04.2015,5100786229,"1,454.40",Lbs Horticulture Worldwide Ltd
Manchester City Council,Manchester Leisure,Building Materials for direct delivery,14.04.2015,5100785886,647.30,Chambers & Perkins
Manchester City Council,Manchester Leisure,Compensation Payments,14.04.2015,1904589643,"1,564.50",Department For Work & Pensions
Manchester City Council,Manchester Leisure,Equipment,14.04.2015,5100786121,"7,045.00",Russell Leisure Ltd
Manchester City Council,Manchester Leisure,Equipment,14.04.2015,5100786069,955.00,Micrographic Engineering Services
Manchester City Council,Manchester Leisure,Expenditure re Internal Trading Ordered Externally,14.04.2015,1904589591,"1,225.00",Proffitts Investing Communities CIC
Manchester City Council,Manchester Leisure,Grant and subscriptions awarded,14.04.2015,5100786304,"500,000.00",Eastlands Trust Limited
Manchester City Council,Manchester Leisure,Grant and subscriptions awarded,14.04.2015,5100785625,"6,000.00",Sharpfutures Manchester CIC
Manchester City Council,Manchester Leisure,Grant and subscriptions awarded,14.04.2015,5100785657,"1,500.00",Sharpfutures Manchester CIC
Manchester City Council,Manchester Leisure,Grant and subscriptions awarded,14.04.2015,5100785683,"1,000.00",Lancaster University
Manchester City Council,Manchester Leisure,Grant and subscriptions awarded,14.04.2015,5100786041,500.00,Brantwood Trust
Manchester City Council,Manchester Leisure,Professional fees,14.04.2015,1904587819,"30,000.00",World Academy of Sport
Manchester City Council,Manchester Leisure,Professional fees,14.04.2015,5100786185,"1,550.00",M/cr City Badminton Develop. Group
Manchester City Council,Manchester Leisure,Professional fees,14.04.2015,5100786037,819.00,Keelagher Okey Associates Ltd t/a
Manchester City Council,Manchester Leisure,Third party payments to other Local Authorities,14.04.2015,5100786038,"2,333.33",The Manchester College
Manchester City Council,Manchester Leisure,Works and associated costs for Land and Buildings,14.04.2015,5100786218,"86,451.20",Manchester & Cheshire Construction
Manchester City Council,Regeneration Finance,Agency staff provision,14.04.2015,5100786347,742.50,Hays Personnel
Manchester City Council,Regeneration Finance,General Payments not otherwise categorised,14.04.2015,1904589343,"14,350.36",Homes and Communities Agency
Manchester City Council,Regeneration Finance,Grant and subscriptions awarded,14.04.2015,1904551411,"1,300.00",Fallowfield Healthy Living Group
Manchester City Council,Regeneration Finance,Grant and subscriptions awarded,14.04.2015,5100786239,"1,057.63",Sanctuary Housing Association
Manchester City Council,Regeneration Finance,Printing,14.04.2015,5100786156,950.00,Respublica
Manchester City Council,Regeneration Finance,Travel,14.04.2015,5100786302,"1,001.24",Cresta World Travel t/a Uniglobe
Manchester City Council,Adult Social Care,Adult Placements,15.04.2015,5100786414,"1,174.72",Independent Options (Stockport) Ltd
Manchester City Council,Adult Social Care,Adult Placements,15.04.2015,5100786418,"1,174.72",Independent Options (Stockport) Ltd
Manchester City Council,Adult Social Care,Adult Placements,15.04.2015,5100786419,"1,174.72",Independent Options (Stockport) Ltd
Manchester City Council,Adult Social Care,Adult Placements,15.04.2015,5100786421,"1,174.72",Independent Options (Stockport) Ltd
Manchester City Council,Adult Social Care,Adult Placements,15.04.2015,5100786429,"1,174.72",Independent Options (Stockport) Ltd
Manchester City Council,Adult Social Care,Adult Placements,15.04.2015,5100786430,"1,174.72",Independent Options (Stockport) Ltd
Manchester City Council,Adult Social Care,Adult Placements,15.04.2015,5100786456,"1,174.72",Independent Options (Stockport) Ltd
Manchester City Council,Adult Social Care,Adult Placements,15.04.2015,5100786436,671.20,Independent Options (Stockport) Ltd
Manchester City Council,Adult Social Care,Bed & Breakfast Acc,15.04.2015,5100786453,"5,420.00",Redacted Personal Information
Manchester City Council,Adult Social Care,Building Materials for direct delivery,15.04.2015,5100786324,504.67,AKW Medicare
Manchester City Council,Adult Social Care,Catering,15.04.2015,5100786311,"1,212.50",Greater Manchester Police Sports &
Manchester City Council,Adult Social Care,Equipment,15.04.2015,5100786170,"3,125.00",Ultimate Healthcare
Manchester City Council,Adult Social Care,Equipment,15.04.2015,5100786182,"1,200.00",Ultimate Healthcare
Manchester City Council,Adult Social Care,Equipment,15.04.2015,5100786182,"1,160.00",Ultimate Healthcare
Manchester City Council,Adult Social Care,Equipment,15.04.2015,5100784862,556.20,Sidhil Ltd
Manchester City Council,Adult Social Care,Grant and subscriptions awarded,15.04.2015,5100784900,"7,467.45",Manchester Young Lives
Manchester City Council,Adult Social Care,Grant and subscriptions awarded,15.04.2015,5100784622,"5,790.29",Manchester Young Lives
Manchester City Council,Adult Social Care,Grant and subscriptions awarded,15.04.2015,5100785322,"4,511.60",Manchester United Foundation
Manchester City Council,Adult Social Care,Grant and subscriptions awarded,15.04.2015,5100785688,"4,344.50",Greater Manchester Coalition Of Dis
Manchester City Council,Adult Social Care,Grant and subscriptions awarded,15.04.2015,5100785321,"4,167.28",Manchester United Foundation
Manchester City Council,Adult Social Care,Payments for services,15.04.2015,5100786474,"8,573.08",Hulme Hall Grammar School
Manchester City Council,Adult Social Care,Payments for services,15.04.2015,5100786190,"8,099.05",Embrace All Ltd
Manchester City Council,Adult Social Care,Payments for services,15.04.2015,5100786196,"8,099.05",Embrace All Ltd
Manchester City Council,Adult Social Care,Payments for services,15.04.2015,5100786305,"8,099.05",Embrace All Ltd
Manchester City Council,Adult Social Care,Payments for services,15.04.2015,5100786307,"4,941.64",Embrace All Ltd
Manchester City Council,Adult Social Care,Professional fees,15.04.2015,5100786342,"7,578.08",Gatenby Sanderson
Manchester City Council,Adult Social Care,Professional fees,15.04.2015,5100786403,"3,410.00",Solace Enterprises Ltd
Manchester City Council,Adult Social Care,Professional fees,15.04.2015,5100784459,"2,233.50",Manchester School Services Limited
Manchester City Council,Adult Social Care,Rents,15.04.2015,5100786320,"18,602.86",M & Q Properties Management Ltd
Manchester City Council,Adult Social Care,Rents,15.04.2015,5100786445,"11,467.49",Happy Homes Uk Ltd
Manchester City Council,Adult Social Care,Subsistence and Conference Expenses,15.04.2015,1904596905,"1,250.00",CAMPANILE
Manchester City Council,Adult Social Care,Supporting People Payments,15.04.2015,5100786272,"40,798.53",North West Community Services Ltd
Manchester City Council,Adult Social Care,Supporting People Payments,15.04.2015,5100786363,"11,615.83",Sanctuary Housing Association
Manchester City Council,Adult Social Care,Supporting People Payments,15.04.2015,5100786363,"11,437.66",Sanctuary Housing Association
Manchester City Council,Adult Social Care,Supporting People Payments,15.04.2015,5100786272,"5,899.75",North West Community Services Ltd
Manchester City Council,Adult Social Care,Supporting People Payments,15.04.2015,5100786272,"5,246.22",North West Community Services Ltd
Manchester City Council,Adult Social Care,Supporting People Payments,15.04.2015,5100786363,"5,141.66",Sanctuary Housing Association
Manchester City Council,Adult Social Care,Supporting People Payments,15.04.2015,5100786348,"4,980.03",Irwell Valley Housing Association
Manchester City Council,Adult Social Care,Supporting People Payments,15.04.2015,5100786272,"3,893.68",North West Community Services Ltd
Manchester City Council,Adult Social Care,Supporting People Payments,15.04.2015,5100786349,"3,548.49",Irwell Valley Housing Association
Manchester City Council,Adult Social Care,Supporting People Payments,15.04.2015,5100786272,"1,855.85",North West Community Services Ltd
Manchester City Council,Adult Social Care,Supporting People Payments,15.04.2015,5100786123,"1,182.50","Northern Counties Housing Ass Ltd,."
Manchester City Council,Adult Social Care,Supporting People Payments,15.04.2015,5100786154,"1,182.50","Northern Counties Housing Ass Ltd,."
Manchester City Council,Adult Social Care,Supporting People Payments,15.04.2015,5100786159,"1,182.50","Northern Counties Housing Ass Ltd,."
Manchester City Council,Adult Social Care,Supporting People Payments,15.04.2015,5100786162,"1,182.50","Northern Counties Housing Ass Ltd,."
Manchester City Council,Adult Social Care,Supporting People Payments,15.04.2015,5100786166,"1,182.50","Northern Counties Housing Ass Ltd,."
Manchester City Council,Adult Social Care,Supporting People Payments,15.04.2015,5100786123,"1,111.62","Northern Counties Housing Ass Ltd,."
Manchester City Council,Adult Social Care,Supporting People Payments,15.04.2015,5100786154,"1,111.62","Northern Counties Housing Ass Ltd,."
Manchester City Council,Adult Social Care,Supporting People Payments,15.04.2015,5100786159,"1,111.62","Northern Counties Housing Ass Ltd,."
Manchester City Council,Adult Social Care,Supporting People Payments,15.04.2015,5100786162,"1,111.62","Northern Counties Housing Ass Ltd,."
Manchester City Council,Adult Social Care,Supporting People Payments,15.04.2015,5100786166,"1,111.62","Northern Counties Housing Ass Ltd,."
Manchester City Council,Adult Social Care,Supporting People Payments,15.04.2015,5100786123,903.55,"Northern Counties Housing Ass Ltd,."
Manchester City Council,Adult Social Care,Supporting People Payments,15.04.2015,5100786154,903.55,"Northern Counties Housing Ass Ltd,."
Manchester City Council,Adult Social Care,Supporting People Payments,15.04.2015,5100786159,903.55,"Northern Counties Housing Ass Ltd,."
Manchester City Council,Adult Social Care,Supporting People Payments,15.04.2015,5100786162,903.55,"Northern Counties Housing Ass Ltd,."
Manchester City Council,Adult Social Care,Supporting People Payments,15.04.2015,5100786166,903.55,"Northern Counties Housing Ass Ltd,."
Manchester City Council,Adult Social Care,Supporting People Payments,15.04.2015,5100786123,897.97,"Northern Counties Housing Ass Ltd,."
Manchester City Council,Adult Social Care,Supporting People Payments,15.04.2015,5100786154,897.97,"Northern Counties Housing Ass Ltd,."
Manchester City Council,Adult Social Care,Supporting People Payments,15.04.2015,5100786159,897.97,"Northern Counties Housing Ass Ltd,."
Manchester City Council,Adult Social Care,Supporting People Payments,15.04.2015,5100786162,897.97,"Northern Counties Housing Ass Ltd,."
Manchester City Council,Adult Social Care,Supporting People Payments,15.04.2015,5100786166,897.97,"Northern Counties Housing Ass Ltd,."
Manchester City Council,Adult Social Care,Supporting People Payments,15.04.2015,5100786344,868.72,Irwell Valley Housing Association
Manchester City Council,Adult Social Care,Supporting People Payments,15.04.2015,5100786123,795.14,"Northern Counties Housing Ass Ltd,."
Manchester City Council,Adult Social Care,Supporting People Payments,15.04.2015,5100786154,795.14,"Northern Counties Housing Ass Ltd,."
Manchester City Council,Adult Social Care,Supporting People Payments,15.04.2015,5100786159,795.14,"Northern Counties Housing Ass Ltd,."
Manchester City Council,Adult Social Care,Supporting People Payments,15.04.2015,5100786162,795.14,"Northern Counties Housing Ass Ltd,."
Manchester City Council,Adult Social Care,Supporting People Payments,15.04.2015,5100786166,795.14,"Northern Counties Housing Ass Ltd,."
Manchester City Council,Adult Social Care,Supporting People Payments,15.04.2015,5100786123,556.16,"Northern Counties Housing Ass Ltd,."
Manchester City Council,Adult Social Care,Supporting People Payments,15.04.2015,5100786154,556.16,"Northern Counties Housing Ass Ltd,."
Manchester City Council,Adult Social Care,Supporting People Payments,15.04.2015,5100786159,556.16,"Northern Counties Housing Ass Ltd,."
Manchester City Council,Adult Social Care,Supporting People Payments,15.04.2015,5100786162,556.16,"Northern Counties Housing Ass Ltd,."
Manchester City Council,Adult Social Care,Supporting People Payments,15.04.2015,5100786166,556.16,"Northern Counties Housing Ass Ltd,."
Manchester City Council,Adult Social Care,Third party payments relating to Voluntary Organisations,15.04.2015,5100786220,"88,750.00",Man. Citizens Advice Bureaux
Manchester City Council,Adult Social Care,Third party payments relating to Voluntary Organisations,15.04.2015,5100786221,"6,674.00",Man. Citizens Advice Bureaux
Manchester City Council,Adult Social Care,Third party payments relating to Voluntary Organisations,15.04.2015,5100785551,"5,373.25",Manchester Mind
Manchester City Council,Adult Social Care,Third party payments relating to Voluntary Organisations,15.04.2015,5100786366,"2,109.25",Willow Park Housing Trust
Manchester City Council,Adult Social Care,Third party payments relating to Voluntary Organisations,15.04.2015,5100786368,"2,109.25",Willow Park Housing Trust
Manchester City Council,Adult Social Care,Third party payments relating to Voluntary Organisations,15.04.2015,5100786469,800.00,City South Manchester Housing Trust
Manchester City Council,Adult Social Care,Third party payments relating to Voluntary Organisations,15.04.2015,5100786471,800.00,City South Manchester Housing Trust
Manchester City Council,Adult Social Care,Transport Coach Hire,15.04.2015,5100786498,"2,565.00",Redacted Personal Information
Manchester City Council,Chief Executives,Advertising,15.04.2015,1904596714,548.89,Facebook (CARD ONLY)
Manchester City Council,Chief Executives,Advertising,15.04.2015,1904596711,546.53,Facebook (CARD ONLY)
Manchester City Council,Chief Executives,Advertising,15.04.2015,1904596709,544.06,Facebook (CARD ONLY)
Manchester City Council,Chief Executives,Advertising,15.04.2015,1904596707,542.46,Facebook (CARD ONLY)
Manchester City Council,Chief Executives,Advertising,15.04.2015,1904596700,533.48,Facebook (CARD ONLY)
Manchester City Council,Chief Executives,Advertising,15.04.2015,1904596717,531.88,Facebook (CARD ONLY)
Manchester City Council,Chief Executives,Advertising,15.04.2015,1904596698,518.05,Facebook (CARD ONLY)
Manchester City Council,Chief Executives,Agency staff provision,15.04.2015,5100785900,"5,294.10",Access Computer Consulting plc
Manchester City Council,Chief Executives,Agency staff provision,15.04.2015,5100784186,"3,642.83",Supply Care Solutions
Manchester City Council,Chief Executives,Agency staff provision,15.04.2015,5100784578,"1,725.00",Triad Resourcing
Manchester City Council,Chief Executives,Agency staff provision,15.04.2015,5100785989,"1,725.00",Triad Resourcing
Manchester City Council,Chief Executives,Agency staff provision,15.04.2015,5100786017,"1,705.85",Hudson Global Resources Ltd
Manchester City Council,Chief Executives,Agency staff provision,15.04.2015,5100784184,843.15,HBS (UK) Cleaning Services Ltd
Manchester City Council,Chief Executives,Agency staff provision,15.04.2015,5100786024,830.90,Supply Care Solutions
Manchester City Council,Chief Executives,Agency staff provision,15.04.2015,5100784244,716.50,HBS (UK) Cleaning Services Ltd
Manchester City Council,Chief Executives,Printing,15.04.2015,5100786330,"1,738.00",Allied Publicity Serv.(Manchester)
Manchester City Council,Chief Executives,Printing,15.04.2015,1904596741,"1,652.81",KENT MEDICAL SECRETARI
Manchester City Council,Chief Executives,Printing,15.04.2015,5100786331,"1,440.00",Allied Publicity Serv.(Manchester)
Manchester City Council,Chief Executives,Printing,15.04.2015,5100786323,609.00,Service Point
Manchester City Council,Chief Executives,Publications,15.04.2015,1904596692,500.00,GOOGLE
Manchester City Council,Chief Executives,Publications,15.04.2015,1904596697,500.00,GOOGLE
Manchester City Council,Chief Executives,Publications,15.04.2015,1904596703,500.00,GOOGLE
Manchester City Council,Chief Executives,Publications,15.04.2015,1904596706,500.00,GOOGLE
Manchester City Council,Chief Executives,Publications,15.04.2015,1904596716,500.00,GOOGLE
Manchester City Council,Chief Executives,Publications,15.04.2015,1904596720,500.00,GOOGLE
Manchester City Council,Chief Executives,Publications,15.04.2015,1904596723,500.00,GOOGLE
Manchester City Council,Chief Executives,Publications,15.04.2015,1904596730,500.00,GOOGLE
Manchester City Council,Chief Executives,Publications,15.04.2015,1904596735,500.00,GOOGLE
Manchester City Council,Chief Executives,Publications,15.04.2015,1904596908,500.00,GOOGLE
Manchester City Council,Chief Executives,Publications,15.04.2015,1904596910,500.00,GOOGLE
Manchester City Council,Chief Executives,Works and associated costs for Land and Buildings,15.04.2015,5100786234,"53,017.11",Laing O'Rourke Construction Ltd
Manchester City Council,Chief Executives,Works and associated costs for Land and Buildings,15.04.2015,5100786234,"39,486.60",Laing O'Rourke Construction Ltd
Manchester City Council,Chief Executives,Works and associated costs for Land and Buildings,15.04.2015,5100786448,"14,175.00",Turner & Townsend Project
Manchester City Council,Chief Executives,Works and associated costs for Land and Buildings,15.04.2015,5100786448,"10,800.00",Turner & Townsend Project
Manchester City Council,Chief Executives,Works and associated costs for Land and Buildings,15.04.2015,5100786312,"7,920.00",Mace Ltd
Manchester City Council,Chief Executives,Works and associated costs for Land and Buildings,15.04.2015,5100786319,"7,920.00",Mace Ltd
Manchester City Council,Chief Executives,Works and associated costs for Land and Buildings,15.04.2015,5100786444,"-24,975.00",Turner & Townsend Project
Manchester City Council,Childrens Services,Works and associated costs for Land and Buildings,15.04.2015,5100786293,"2,177.59",Armitage CE Primary School
Manchester City Council,Childrens Services,Works and associated costs for Land and Buildings,15.04.2015,5100786294,878.46,Armitage CE Primary School
Manchester City Council,Corporate Services,Compensation Payments,15.04.2015,1904596654,"4,536.00",HMCTS (Manchester)
Manchester City Council,Corporate Services,Compensation Payments,15.04.2015,1904596652,"1,989.00",HMCTS (Manchester)
Manchester City Council,Corporate Services,Compensation Payments,15.04.2015,1904596653,"1,365.00",HMCTS (Manchester)
Manchester City Council,Corporate Services,Licences Purchase,15.04.2015,5100786350,"1,235.00",Ncc Services Limited
Manchester City Council,Corporate Services,Professional fees,15.04.2015,5100786431,"1,485.99",Wilde Consultants Ltd
Manchester City Council,Corporate Services,Professional fees,15.04.2015,5100786432,"-1,485.99",Wilde Consultants Ltd
Manchester City Council,Corporate Services,Storage Costs,15.04.2015,5100785468,"1,211.30",Data Space Limited
Manchester City Council,Corporate Services,Works and associated costs for Land and Buildings,15.04.2015,5100786034,"3,750.00",Mace Ltd
Manchester City Council,Environment and Operations,ClothsUniformLaundry,15.04.2015,5100786462,906.96,Arco Group Ltd
Manchester City Council,Environment and Operations,Construction Works,15.04.2015,5100786313,"50,178.95",Colas Limited
Manchester City Council,Environment and Operations,Construction Works,15.04.2015,5100786316,"9,083.90",Colas Limited
Manchester City Council,Environment and Operations,Construction Works,15.04.2015,5100786459,"2,518.46",J.Hopkins (Contractors) Ltd.
Manchester City Council,Environment and Operations,Grounds Maintenance,15.04.2015,5100784640,"1,450.00",A P Broome Landscapes Ltd
Manchester City Council,Environment and Operations,Grounds Maintenance,15.04.2015,5100786274,"1,450.00",A P Broome Landscapes Ltd
Manchester City Council,Environment and Operations,Grounds Maintenance,15.04.2015,5100786270,"-1,450.00",A P Broome Landscapes Ltd
Manchester City Council,Environment and Operations,Internal Repairs and Maintenance for buildings,15.04.2015,5100786107,"2,800.92",Amey Highways Lighting (Manchester)
Manchester City Council,Environment and Operations,Legal Fees,15.04.2015,5100786433,"1,174.72",Redacted Personal Information
Manchester City Council,Environment and Operations,Legal Fees,15.04.2015,5100786447,"-1,174.72",Redacted Personal Information
Manchester City Council,Environment and Operations,Private Finance and Public Private partnership initiatives,15.04.2015,5100786335,"624,437.34",Amey Highways Lighting (Manchester)
Manchester City Council,Environment and Operations,Professional fees,15.04.2015,5100786446,"2,922.71",Redacted Personal Information
Manchester City Council,Environment and Operations,Refuse Collection,15.04.2015,5100786093,"58,180.96",Redgate Holdings Ltd
Manchester City Council,Environment and Operations,Security,15.04.2015,5100786356,"4,160.00",Metronet UK
Manchester City Council,Environment and Operations,Security,15.04.2015,5100786355,"-4,160.00",Metronet UK
Manchester City Council,Environment and Operations,Tipping - Tonnage,15.04.2015,5100786093,"90,475.15",Redgate Holdings Ltd
Manchester City Council,Hospitality + Trading Services,Building Materials for direct delivery,15.04.2015,1904596404,828.00,Benchmark Building Supplies Ltd
Manchester City Council,Hospitality + Trading Services,Building Materials for direct delivery,15.04.2015,1904596403,767.96,Benchmark Building Supplies Ltd
Manchester City Council,Hospitality + Trading Services,Catering Provisions,15.04.2015,1904596960,"1,303.76",Brake Bros Foodservice Ltd
Manchester City Council,Hospitality + Trading Services,Catering Provisions,15.04.2015,1904596945,"1,275.15",Brake Bros Foodservice Ltd
Manchester City Council,Hospitality + Trading Services,Catering Provisions,15.04.2015,1904596961,"1,159.27",Brake Bros Foodservice Ltd
Manchester City Council,Hospitality + Trading Services,Catering Provisions,15.04.2015,1904596510,"1,005.53",Wilds of Oldham
Manchester City Council,Hospitality + Trading Services,Catering Provisions,15.04.2015,1904596505,971.36,Wilds of Oldham
Manchester City Council,Hospitality + Trading Services,Catering Provisions,15.04.2015,1904597000,767.88,Brake Bros Foodservice Ltd
Manchester City Council,Hospitality + Trading Services,Catering Provisions,15.04.2015,1904596506,744.82,Wilds of Oldham
Manchester City Council,Hospitality + Trading Services,Catering Provisions,15.04.2015,1904596509,696.87,Wilds of Oldham
Manchester City Council,Hospitality + Trading Services,Catering Provisions,15.04.2015,1904596507,680.62,Wilds of Oldham
Manchester City Council,Hospitality + Trading Services,Catering Provisions,15.04.2015,1904596497,589.76,Hopewall Farm Foods
Manchester City Council,Hospitality + Trading Services,Catering Provisions,15.04.2015,1904596889,550.64,Wilds of Oldham
Manchester City Council,Hospitality + Trading Services,Catering Provisions,15.04.2015,1904596496,526.48,Hopewall Farm Foods
Manchester City Council,Hospitality + Trading Services,Catering Provisions,15.04.2015,1904596921,519.86,Brake Bros Foodservice Ltd
Manchester City Council,Hospitality + Trading Services,Equipment,15.04.2015,5100786492,"1,530.00",W.V.Howe Ltd
Manchester City Council,Hospitality + Trading Services,Funeral and coroner related services,15.04.2015,5100786440,"1,355.00",Teleshore (Uk) Ltd
Manchester City Council,Hospitality + Trading Services,I T Provision,15.04.2015,5100786497,"1,762.51",Grantfen Fire & Security Ltd
Manchester City Council,Hospitality + Trading Services,Payments to Sub-Contractors,15.04.2015,5100784849,"4,120.00",Clearway Drainage Systems Ltd
Manchester City Council,Hospitality + Trading Services,Payments to Sub-Contractors,15.04.2015,5100784850,"4,050.00",Clearway Drainage Systems Ltd
Manchester City Council,Hospitality + Trading Services,Payments to Sub-Contractors,15.04.2015,5100784861,"3,783.79",Clearway Drainage Systems Ltd
Manchester City Council,Hospitality + Trading Services,Payments to Sub-Contractors,15.04.2015,5100784852,"3,150.00",Clearway Drainage Systems Ltd
Manchester City Council,Hospitality + Trading Services,Payments to Sub-Contractors,15.04.2015,5100784859,"2,700.00",Clearway Drainage Systems Ltd
Manchester City Council,Hospitality + Trading Services,Payments to Sub-Contractors,15.04.2015,5100784851,"2,320.00",Clearway Drainage Systems Ltd
Manchester City Council,Hospitality + Trading Services,Payments to Sub-Contractors,15.04.2015,5100784855,"2,250.00",Clearway Drainage Systems Ltd
Manchester City Council,Hospitality + Trading Services,Payments to Sub-Contractors,15.04.2015,5100784853,"1,800.00",Clearway Drainage Systems Ltd
Manchester City Council,Hospitality + Trading Services,Payments to Sub-Contractors,15.04.2015,5100784856,652.13,Clearway Drainage Systems Ltd
Manchester City Council,Hospitality + Trading Services,Payments to Sub-Contractors,15.04.2015,5100786416,650.00,Pennine Pump & Tank Co.
Manchester City Council,Hospitality + Trading Services,Payments to Sub-Contractors,15.04.2015,5100784854,635.78,Clearway Drainage Systems Ltd
Manchester City Council,Hospitality + Trading Services,Printing,15.04.2015,1904596524,636.48,WWW.DISPLAY-STAND.CO.U
Manchester City Council,Hospitality + Trading Services,Printing,15.04.2015,1904596525,636.48,WWW.DISPLAY-STAND.CO.U
Manchester City Council,Housing Revenue Account,Council Dwelling Adaptations,15.04.2015,5100783986,"7,564.39",Northwards Housing Limited
Manchester City Council,Housing Revenue Account,Council Dwelling Adaptations,15.04.2015,5100786410,"4,856.00",Stannah Lift Services Ltd
Manchester City Council,Housing Revenue Account,Council Dwelling Adaptations,15.04.2015,5100786409,"4,831.00",Stannah Lift Services Ltd
Manchester City Council,Housing Revenue Account,Council Dwelling Adaptations,15.04.2015,5100786408,"3,770.00",Stannah Lift Services Ltd
Manchester City Council,Housing Revenue Account,Council Dwelling Adaptations,15.04.2015,5100786407,"1,447.00",Stannah Lift Services Ltd
Manchester City Council,Housing Revenue Account,Other Insurance,15.04.2015,5100786468,"13,674.00",Eastlands Homes Partnership Ltd
Manchester City Council,Housing Revenue Account,Works and associated costs for Land and Buildings,15.04.2015,1904596486,"477,159.90",DWF LLP
Manchester City Council,Manchester Leisure,Cleaning Equipment and Materials,15.04.2015,1904596789,957.59,WWW.FRIDGELAND.CO.UK
Manchester City Council,Manchester Leisure,Equipment Operating Lease,15.04.2015,1904596929,798.59,HSS HIRE
Manchester City Council,Manchester Leisure,Equipment Operating Lease,15.04.2015,1904596782,640.00,HSS HIRE
Manchester City Council,Manchester Leisure,Grant and subscriptions awarded,15.04.2015,5100786367,"3,470.00",Full Circle Arts
Manchester City Council,Manchester Leisure,Grant and subscriptions awarded,15.04.2015,5100786329,"2,630.00",The Factory Youth Zone
Manchester City Council,Manchester Leisure,Home Care ,15.04.2015,5100786343,"3,500.00",Norbrook Youth Club
Manchester City Council,Manchester Leisure,Special Event,15.04.2015,5100783847,"7,761.79",Manchester Jazz Festival
Manchester City Council,Regeneration Finance,Agency staff provision,15.04.2015,5100786417,"29,450.18",Newcastle City Council
Manchester City Council,Regeneration Finance,Catering,15.04.2015,5100785619,548.40,Manchester Metropolitan University
Manchester City Council,Regeneration Finance,Catering Provisions,15.04.2015,1904596559,"2,505.56",H2SN0W LTD
Manchester City Council,Regeneration Finance,Equipment,15.04.2015,5100786328,"1,000.00",Stockport Metropolitan Borough
Manchester City Council,Regeneration Finance,Grant and subscriptions awarded,15.04.2015,5100786325,"1,845.00",Haymarket Publishing Services Ltd
Manchester City Council,Regeneration Finance,Professional fees,15.04.2015,5100786457,"6,000.00",Heritage Architecture Ltd
Manchester City Council,Regeneration Finance,Professional fees,15.04.2015,5100784728,"2,375.00",Action for Sustainable Living Ltd
Manchester City Council,Regeneration Finance,Special Event,15.04.2015,5100786365,"19,995.00",Halcrow Group Ltd
Manchester City Council,Regeneration Finance,Subsistence and Conference Expenses,15.04.2015,1904596870,514.82,SHANGHAI LV DI HAI PO
Manchester City Council,Adult Social Care,Electricity,16.04.2015,1904597946,"1,284.65",Scottish & Southern Energy Plc
Manchester City Council,Adult Social Care,Electricity,16.04.2015,1904598009,"1,253.21",Scottish & Southern Energy Plc
Manchester City Council,Adult Social Care,Electricity,16.04.2015,1904598040,"1,224.98",Scottish & Southern Energy Plc
Manchester City Council,Adult Social Care,Electricity,16.04.2015,1904598065,"1,179.55",Scottish & Southern Energy Plc
Manchester City Council,Adult Social Care,Electricity,16.04.2015,1904597951,"1,173.36",Scottish & Southern Energy Plc
Manchester City Council,Adult Social Care,Electricity,16.04.2015,1904597914,961.96,Scottish & Southern Energy Plc
Manchester City Council,Adult Social Care,Electricity,16.04.2015,1904597918,908.11,Scottish & Southern Energy Plc
Manchester City Council,Adult Social Care,Electricity,16.04.2015,1904597941,845.48,Scottish & Southern Energy Plc
Manchester City Council,Adult Social Care,Electricity,16.04.2015,1904598018,822.69,Scottish & Southern Energy Plc
Manchester City Council,Adult Social Care,Electricity,16.04.2015,1904598048,805.76,Scottish & Southern Energy Plc
Manchester City Council,Adult Social Care,Electricity,16.04.2015,1904598063,759.92,Scottish & Southern Energy Plc
Manchester City Council,Adult Social Care,Electricity,16.04.2015,1904598228,723.23,Scottish & Southern Energy Plc
Manchester City Council,Adult Social Care,Electricity,16.04.2015,1904598214,719.40,Scottish & Southern Energy Plc
Manchester City Council,Adult Social Care,Electricity,16.04.2015,1904598008,656.15,Scottish & Southern Energy Plc
Manchester City Council,Adult Social Care,Electricity,16.04.2015,1904598171,626.34,Scottish & Southern Energy Plc
Manchester City Council,Adult Social Care,Electricity,16.04.2015,1904598022,588.15,Scottish & Southern Energy Plc
Manchester City Council,Adult Social Care,Electricity,16.04.2015,1904598173,568.62,Scottish & Southern Energy Plc
Manchester City Council,Adult Social Care,Electricity,16.04.2015,1904597955,564.03,Scottish & Southern Energy Plc
Manchester City Council,Adult Social Care,Electricity,16.04.2015,1904598203,557.40,Scottish & Southern Energy Plc
Manchester City Council,Adult Social Care,Electricity,16.04.2015,1904598093,537.15,Scottish & Southern Energy Plc
Manchester City Council,Adult Social Care,Electricity,16.04.2015,1904597939,530.68,Scottish & Southern Energy Plc
Manchester City Council,Adult Social Care,Electricity,16.04.2015,1904598276,519.25,Scottish & Southern Energy Plc
Manchester City Council,Adult Social Care,Electricity,16.04.2015,1904598176,505.79,Scottish & Southern Energy Plc
Manchester City Council,Adult Social Care,Equipment,16.04.2015,5100786881,"1,789.98",Drive Medical Limited
Manchester City Council,Adult Social Care,Expenditure re Internal Trading Ordered Externally,16.04.2015,5100786086,731.40,Northgate Information Solutions Ltd
Manchester City Council,Adult Social Care,Extra Care Sheltd HP,16.04.2015,5100786825,"20,582.24",Carewest Limited
Manchester City Council,Adult Social Care,Extra Care Sheltd HP,16.04.2015,5100786574,"19,423.92",Homecare Support
Manchester City Council,Adult Social Care,Extra Care Sheltd HP,16.04.2015,5100786568,"15,751.39",Creative Support Limited
Manchester City Council,Adult Social Care,Extra Care Sheltd HP,16.04.2015,5100786584,"14,757.06",Creative Support Ltd
Manchester City Council,Adult Social Care,Extra Care Sheltd HP,16.04.2015,5100786718,"14,172.73",DH Homecare Ltd (Direct Health)
Manchester City Council,Adult Social Care,Funeral and coroner related services,16.04.2015,5100786565,"3,024.00",Funeral Prtnrs t/a Michael Kennedy
Manchester City Council,Adult Social Care,Funeral and coroner related services,16.04.2015,5100786559,"1,323.00",Funeral Prtnrs t/a Michael Kennedy
Manchester City Council,Adult Social Care,Funeral and coroner related services,16.04.2015,5100786566,"1,248.00",Funeral Prtnrs t/a Michael Kennedy
Manchester City Council,Adult Social Care,Furniture,16.04.2015,5100786827,778.66,The Furnishing Service Ltd
Manchester City Council,Adult Social Care,Furniture,16.04.2015,5100786871,708.22,The Furnishing Service Ltd
Manchester City Council,Adult Social Care,Furniture,16.04.2015,5100786865,674.72,The Furnishing Service Ltd
Manchester City Council,Adult Social Care,Furniture,16.04.2015,5100786869,674.72,The Furnishing Service Ltd
Manchester City Council,Adult Social Care,Furniture,16.04.2015,5100786870,-674.72,The Furnishing Service Ltd
Manchester City Council,Adult Social Care,Furniture,16.04.2015,5100786866,-708.22,The Furnishing Service Ltd
Manchester City Council,Adult Social Care,Grant and subscriptions awarded,16.04.2015,5100786668,"8,343.00",Music Stuff
Manchester City Council,Adult Social Care,Home Care ,16.04.2015,5100786575,611.50,Tiddlywinks Day Nursery
Manchester City Council,Adult Social Care,Home Care ,16.04.2015,5100786585,585.00,Moss Side Nursery
Manchester City Council,Adult Social Care,Home Care ,16.04.2015,5100786701,528.00,Manchester Early Learning Centre
Manchester City Council,Adult Social Care,Home Care ,16.04.2015,5100786693,512.00,Building Blocks Nursery
Manchester City Council,Adult Social Care,Home Care ,16.04.2015,5100786589,500.00,Banana Moon Day Nursery
Manchester City Council,Adult Social Care,Landline Telephone,16.04.2015,1904596396,"1,137.00",Bt Payphones
Manchester City Council,Adult Social Care,Legal Fees,16.04.2015,5100786643,"2,600.00",Redacted Personal Information
Manchester City Council,Adult Social Care,Payments for services,16.04.2015,5100786580,"26,665.43",Care Concepts Ltd
Manchester City Council,Adult Social Care,Payments for services,16.04.2015,5100786592,"7,348.50",Central Manchester University Hosp
Manchester City Council,Adult Social Care,Payments for services,16.04.2015,5100786852,"5,180.00",Cais Ltd
Manchester City Council,Adult Social Care,Payments for services,16.04.2015,5100786687,"2,960.00",Redacted Personal Information
Manchester City Council,Adult Social Care,Payments for services,16.04.2015,5100783902,"1,708.00",Harvey House Social Enterprises Ltd
Manchester City Council,Adult Social Care,Personal needs of client,16.04.2015,1700056092,"2,052.46",NEWSBANK INC/TCR HS
Manchester City Council,Adult Social Care,Personal needs of client,16.04.2015,5100786831,840.72,The Furnishing Service Ltd
Manchester City Council,Adult Social Care,Personal needs of client,16.04.2015,1904589555,820.00,Redacted Personal Information
Manchester City Council,Adult Social Care,Personal needs of client,16.04.2015,5100786390,595.68,The Furnishing Service Ltd
Manchester City Council,Adult Social Care,Personal needs of client,16.04.2015,1904597891,"-2,052.46",NEWSBANK INC/TCR HS
Manchester City Council,Adult Social Care,Professional fees,16.04.2015,5100786650,"17,437.78",Time Specialist Support Ltd
Manchester City Council,Adult Social Care,Professional fees,16.04.2015,5100786694,"10,886.17",Police and Crime Commissioner
Manchester City Council,Adult Social Care,Professional fees,16.04.2015,5100786678,"1,350.00",Sixcel Solutions Ltd
Manchester City Council,Adult Social Care,Rents,16.04.2015,5100786818,"31,029.57",Accommodation Links Ltd
Manchester City Council,Adult Social Care,Rents,16.04.2015,5100785188,"18,000.00",Northern Way Properties Limited
Manchester City Council,Adult Social Care,Rents,16.04.2015,5100786515,"10,295.36",Happy Homes Uk Ltd
Manchester City Council,Adult Social Care,Rents,16.04.2015,5100784959,"4,725.00",Northern Way Properties Limited
Manchester City Council,Adult Social Care,Stationery,16.04.2015,5100785273,553.01,Banner Business Services Ltd
Manchester City Council,Adult Social Care,Third party payments relating to Voluntary Organisations,16.04.2015,5100786472,"37,791.25",Gaddum Centre
Manchester City Council,Adult Social Care,Third party payments relating to Voluntary Organisations,16.04.2015,5100786533,"10,262.25",TiddlyWinks Creche Provisions
Manchester City Council,Adult Social Care,Third party payments relating to Voluntary Organisations,16.04.2015,5100786848,"10,260.00",Proper Job Theatre company
Manchester City Council,Adult Social Care,Third party payments relating to Voluntary Organisations,16.04.2015,5100786631,"8,000.00",Tri-x Childcare Ltd
Manchester City Council,Adult Social Care,Third party payments relating to Voluntary Organisations,16.04.2015,5100786690,767.34,Afro Carribean Care Group
Manchester City Council,Adult Social Care,Third party payments to Health Authority,16.04.2015,5100786702,"30,000.00",Public Health England
Manchester City Council,Adult Social Care,Third party payments to other Local Authorities,16.04.2015,5100785585,"2,225.68",Stockport Mbc
Manchester City Council,Adult Social Care,Transport Coach Hire,16.04.2015,5100785637,"40,178.50",Westfield Minibuses
Manchester City Council,Adult Social Care,Transport Coach Hire,16.04.2015,5100786512,"2,430.00",Redacted Personal Information
Manchester City Council,Adult Social Care,Transport Coach Hire,16.04.2015,5100786510,"2,160.00",Redacted Personal Information
Manchester City Council,Adult Social Care,Transport Taxis,16.04.2015,5100786757,"17,842.02",MCR Blackcab Ltd
Manchester City Council,Adult Social Care,Transport Taxis,16.04.2015,5100786755,"7,993.30",MCR Blackcab Ltd
Manchester City Council,Adult Social Care,Transport Taxis,16.04.2015,5100786796,"5,409.90",MCR Blackcab Ltd
Manchester City Council,Adult Social Care,Transport Taxis,16.04.2015,5100786798,"2,291.75",MCR Blackcab Ltd
Manchester City Council,Adult Social Care,Transport Taxis,16.04.2015,5100786549,"1,892.00",T/a K Travel
Manchester City Council,Adult Social Care,Water - Unmetered,16.04.2015,1904598391,"7,183.72",United Utilities Water Plc
Manchester City Council,Adult Social Care,Water - Unmetered,16.04.2015,1904598323,"3,231.09",United Utilities Water Plc
Manchester City Council,Adult Social Care,Water - Unmetered,16.04.2015,1904598403,"3,231.09",United Utilities Water Plc
Manchester City Council,Adult Social Care,Water - Unmetered,16.04.2015,1904598333,"3,231.09",United Utilities Water Plc
Manchester City Council,Adult Social Care,Water - Unmetered,16.04.2015,1904598344,"1,544.75",United Utilities Water Plc
Manchester City Council,Adult Social Care,Water - Unmetered,16.04.2015,1904598378,682.75,United Utilities Water Plc
Manchester City Council,Adult Social Care,Water - Unmetered,16.04.2015,1904598307,615.23,United Utilities Water Plc
Manchester City Council,Adult Social Care,Water - Unmetered,16.04.2015,1904598365,542.87,United Utilities Water Plc
Manchester City Council,Chief Executives,Advertising,16.04.2015,5100786655,"7,572.65",Global Radio Services Ltd
Manchester City Council,Chief Executives,Advertising,16.04.2015,1904607976,612.58,Facebook (CARD ONLY)
Manchester City Council,Chief Executives,Agency staff provision,16.04.2015,5100786753,950.36,Taskmaster Resources Ltd
Manchester City Council,Chief Executives,Construction Works,16.04.2015,5100784334,"1,062,774.38",Transport for Greater Manchester
Manchester City Council,Chief Executives,Infrastructure Fees,16.04.2015,5100786065,"14,664.40",Computacenter (UK) Ltd
Manchester City Council,Chief Executives,Licences Purchase,16.04.2015,5100786254,"42,350.00",Smoothwall Ltd
Manchester City Council,Chief Executives,Postage,16.04.2015,5100786811,"4,500.00",Teleset Francotyp Postalia Ltd
Manchester City Council,Chief Executives,Postage,16.04.2015,1904591253,"1,331.66",Royal Mail Group Plc
Manchester City Council,Chief Executives,Professional fees,16.04.2015,5100786169,"29,170.20",Actinista Limited
Manchester City Council,Chief Executives,Professional fees,16.04.2015,5100786736,"3,095.00",Hesa Services Ltd
Manchester City Council,Chief Executives,Publications,16.04.2015,1904607975,500.00,GOOGLE
Manchester City Council,Chief Executives,Publications,16.04.2015,1904608020,500.00,GOOGLE
Manchester City Council,Chief Executives,Publications,16.04.2015,1904608034,500.00,GOOGLE
Manchester City Council,Chief Executives,Publications,16.04.2015,1904610329,500.00,GOOGLE
Manchester City Council,Chief Executives,Third party payments to other Local Authorities,16.04.2015,5100784392,"2,500.00",The Manchester College
Manchester City Council,Chief Executives,Vehicle Plant Furniture and Equipment,16.04.2015,5100785020,"137,460.30",Computacenter (UK) Ltd
Manchester City Council,Chief Executives,Vehicle Plant Furniture and Equipment,16.04.2015,5100786067,"8,478.91",Computacenter (UK) Ltd
Manchester City Council,Childrens Services,Water - Unmetered,16.04.2015,1904598331,682.75,United Utilities Water Plc
Manchester City Council,Corporate Services,Compensation Payments,16.04.2015,1904615472,"2,655.00",HMCTS (Manchester)
Manchester City Council,Corporate Services,Compensation Payments,16.04.2015,1904615471,"2,450.00",HMCTS (Manchester)
Manchester City Council,Corporate Services,Compensation Payments,16.04.2015,1904608016,"1,854.00",HMCTS (Manchester)
Manchester City Council,Corporate Services,Electricity,16.04.2015,1904598029,"2,953.94",Scottish & Southern Energy Plc
Manchester City Council,Corporate Services,Electricity,16.04.2015,1904597988,"2,867.85",Scottish & Southern Energy Plc
Manchester City Council,Corporate Services,Electricity,16.04.2015,1904597973,"2,797.06",Scottish & Southern Energy Plc
Manchester City Council,Corporate Services,Electricity,16.04.2015,1904598032,"2,463.96",Scottish & Southern Energy Plc
Manchester City Council,Corporate Services,Electricity,16.04.2015,1904597909,"2,302.85",Scottish & Southern Energy Plc
Manchester City Council,Corporate Services,Electricity,16.04.2015,1904597925,"2,269.46",Scottish & Southern Energy Plc
Manchester City Council,Corporate Services,Electricity,16.04.2015,1904598045,"2,079.40",Scottish & Southern Energy Plc
Manchester City Council,Corporate Services,Electricity,16.04.2015,1904597961,"2,063.37",Scottish & Southern Energy Plc
Manchester City Council,Corporate Services,Electricity,16.04.2015,1904598071,"1,918.34",Scottish & Southern Energy Plc
Manchester City Council,Corporate Services,Electricity,16.04.2015,1904598035,"1,910.10",Scottish & Southern Energy Plc
Manchester City Council,Corporate Services,Electricity,16.04.2015,1904597992,"1,817.61",Scottish & Southern Energy Plc
Manchester City Council,Corporate Services,Electricity,16.04.2015,1904598049,"1,799.93",Scottish & Southern Energy Plc
Manchester City Council,Corporate Services,Electricity,16.04.2015,1904598064,"1,725.58",Scottish & Southern Energy Plc
Manchester City Council,Corporate Services,Electricity,16.04.2015,1904598023,"1,718.94",Scottish & Southern Energy Plc
Manchester City Council,Corporate Services,Electricity,16.04.2015,1904598066,"1,708.34",Scottish & Southern Energy Plc
Manchester City Council,Corporate Services,Electricity,16.04.2015,1904598013,"1,669.82",Scottish & Southern Energy Plc
Manchester City Council,Corporate Services,Electricity,16.04.2015,1904597986,"1,637.99",Scottish & Southern Energy Plc
Manchester City Council,Corporate Services,Electricity,16.04.2015,1904598012,"1,616.23",Scottish & Southern Energy Plc
Manchester City Council,Corporate Services,Electricity,16.04.2015,1904598026,"1,604.49",Scottish & Southern Energy Plc
Manchester City Council,Corporate Services,Electricity,16.04.2015,1904597916,"1,598.57",Scottish & Southern Energy Plc
Manchester City Council,Corporate Services,Electricity,16.04.2015,1904598041,"1,529.20",Scottish & Southern Energy Plc
Manchester City Council,Corporate Services,Electricity,16.04.2015,1904598054,"1,454.25",Scottish & Southern Energy Plc
Manchester City Council,Corporate Services,Electricity,16.04.2015,1904597987,"1,325.14",Scottish & Southern Energy Plc
Manchester City Council,Corporate Services,Electricity,16.04.2015,1904597923,"1,321.20",Scottish & Southern Energy Plc
Manchester City Council,Corporate Services,Electricity,16.04.2015,1904597938,"1,306.17",Scottish & Southern Energy Plc
Manchester City Council,Corporate Services,Electricity,16.04.2015,1904597989,"1,268.39",Scottish & Southern Energy Plc
Manchester City Council,Corporate Services,Electricity,16.04.2015,1904597959,"1,265.25",Scottish & Southern Energy Plc
Manchester City Council,Corporate Services,Electricity,16.04.2015,1904597929,"1,234.15",Scottish & Southern Energy Plc
Manchester City Council,Corporate Services,Electricity,16.04.2015,1904597958,"1,202.79",Scottish & Southern Energy Plc
Manchester City Council,Corporate Services,Electricity,16.04.2015,1904598014,"1,094.37",Scottish & Southern Energy Plc
Manchester City Council,Corporate Services,Electricity,16.04.2015,1904597985,"1,014.92",Scottish & Southern Energy Plc
Manchester City Council,Corporate Services,Electricity,16.04.2015,1904597945,914.77,Scottish & Southern Energy Plc
Manchester City Council,Corporate Services,Electricity,16.04.2015,1904597913,894.24,Scottish & Southern Energy Plc
Manchester City Council,Corporate Services,Electricity,16.04.2015,1904597912,776.09,Scottish & Southern Energy Plc
Manchester City Council,Corporate Services,Electricity,16.04.2015,1904598146,759.30,Scottish & Southern Energy Plc
Manchester City Council,Corporate Services,Electricity,16.04.2015,1904597948,720.77,Scottish & Southern Energy Plc
Manchester City Council,Corporate Services,Electricity,16.04.2015,1904597932,680.13,Scottish & Southern Energy Plc
Manchester City Council,Corporate Services,Electricity,16.04.2015,1904597911,675.96,Scottish & Southern Energy Plc
Manchester City Council,Corporate Services,Electricity,16.04.2015,1904597906,658.30,Scottish & Southern Energy Plc
Manchester City Council,Corporate Services,Electricity,16.04.2015,1904597974,630.13,Scottish & Southern Energy Plc
Manchester City Council,Corporate Services,Electricity,16.04.2015,1904597950,616.27,Scottish & Southern Energy Plc
Manchester City Council,Corporate Services,Electricity,16.04.2015,1904597940,613.54,Scottish & Southern Energy Plc
Manchester City Council,Corporate Services,Electricity,16.04.2015,1904597917,607.83,Scottish & Southern Energy Plc
Manchester City Council,Corporate Services,Electricity,16.04.2015,1904597915,604.42,Scottish & Southern Energy Plc
Manchester City Council,Corporate Services,Electricity,16.04.2015,1904598069,588.38,Scottish & Southern Energy Plc
Manchester City Council,Corporate Services,Electricity,16.04.2015,1904598046,581.10,Scottish & Southern Energy Plc
Manchester City Council,Corporate Services,Electricity,16.04.2015,1904597937,577.81,Scottish & Southern Energy Plc
Manchester City Council,Corporate Services,Electricity,16.04.2015,1904597934,554.88,Scottish & Southern Energy Plc
Manchester City Council,Corporate Services,Electricity,16.04.2015,1904597927,543.62,Scottish & Southern Energy Plc
Manchester City Council,Corporate Services,Electricity,16.04.2015,1904597954,526.56,Scottish & Southern Energy Plc
Manchester City Council,Corporate Services,Electricity,16.04.2015,1904597956,509.06,Scottish & Southern Energy Plc
Manchester City Council,Corporate Services,Electricity,16.04.2015,1904597960,504.76,Scottish & Southern Energy Plc
Manchester City Council,Corporate Services,I T Provision,16.04.2015,5100786608,"1,500.00",Concerto Support Services
Manchester City Council,Corporate Services,Long Term Debtors,16.04.2015,5100786598,"25,000.00",North West Evergreen Ltd P'ship
Manchester City Council,Corporate Services,Postage,16.04.2015,5100786066,"6,771.39",Royal Mail Group Plc
Manchester City Council,Corporate Services,Postage,16.04.2015,5100786076,"2,091.79",Royal Mail Group Plc
Manchester City Council,Corporate Services,Professional fees,16.04.2015,5100784325,"7,291.68",Wilde Consultants Ltd
Manchester City Council,Corporate Services,Professional fees,16.04.2015,5100784245,"5,709.73",Wilde Consultants Ltd
Manchester City Council,Corporate Services,Professional fees,16.04.2015,5100784256,"5,690.09",Wilde Consultants Ltd
Manchester City Council,Corporate Services,Professional fees,16.04.2015,5100784243,"4,779.11",Wilde Consultants Ltd
Manchester City Council,Corporate Services,Professional fees,16.04.2015,5100784240,"4,757.38",Wilde Consultants Ltd
Manchester City Council,Corporate Services,Professional fees,16.04.2015,5100784259,"4,752.03",Wilde Consultants Ltd
Manchester City Council,Corporate Services,Professional fees,16.04.2015,5100784236,"4,245.07",Wilde Consultants Ltd
Manchester City Council,Corporate Services,Professional fees,16.04.2015,5100784238,"4,235.98",Wilde Consultants Ltd
Manchester City Council,Corporate Services,Professional fees,16.04.2015,5100784296,"4,224.96",Wilde Consultants Ltd
Manchester City Council,Corporate Services,Professional fees,16.04.2015,5100784253,"3,934.04",Wilde Consultants Ltd
Manchester City Council,Corporate Services,Professional fees,16.04.2015,5100784250,"3,427.58",Wilde Consultants Ltd
Manchester City Council,Corporate Services,Professional fees,16.04.2015,5100784248,"2,700.22",Wilde Consultants Ltd
Manchester City Council,Corporate Services,Water - Unmetered,16.04.2015,1904598328,"51,882.65",United Utilities Water Plc
Manchester City Council,Corporate Services,Water - Unmetered,16.04.2015,1904598369,"29,745.76",United Utilities Water Plc
Manchester City Council,Corporate Services,Water - Unmetered,16.04.2015,1904598405,"20,752.65",United Utilities Water Plc
Manchester City Council,Corporate Services,Water - Unmetered,16.04.2015,1904598321,"7,183.72",United Utilities Water Plc
Manchester City Council,Corporate Services,Water - Unmetered,16.04.2015,1904598324,"7,183.72",United Utilities Water Plc
Manchester City Council,Corporate Services,Water - Unmetered,16.04.2015,1904598404,"7,183.72",United Utilities Water Plc
Manchester City Council,Corporate Services,Water - Unmetered,16.04.2015,1904598367,"7,183.72",United Utilities Water Plc
Manchester City Council,Corporate Services,Water - Unmetered,16.04.2015,1904598408,"7,183.72",United Utilities Water Plc
Manchester City Council,Corporate Services,Water - Unmetered,16.04.2015,1904598402,"7,183.72",United Utilities Water Plc
Manchester City Council,Corporate Services,Water - Unmetered,16.04.2015,1904598363,"3,231.09",United Utilities Water Plc
Manchester City Council,Corporate Services,Water - Unmetered,16.04.2015,1904598313,"3,231.09",United Utilities Water Plc
Manchester City Council,Corporate Services,Water - Unmetered,16.04.2015,1904598327,"3,231.09",United Utilities Water Plc
Manchester City Council,Corporate Services,Water - Unmetered,16.04.2015,1904598316,"3,231.09",United Utilities Water Plc
Manchester City Council,Corporate Services,Water - Unmetered,16.04.2015,1904598306,"1,544.75",United Utilities Water Plc
Manchester City Council,Corporate Services,Water - Unmetered,16.04.2015,1904598338,"1,544.75",United Utilities Water Plc
Manchester City Council,Corporate Services,Water - Unmetered,16.04.2015,1904598339,"1,544.75",United Utilities Water Plc
Manchester City Council,Corporate Services,Water - Unmetered,16.04.2015,1904598374,"1,544.75",United Utilities Water Plc
Manchester City Council,Corporate Services,Water - Unmetered,16.04.2015,1904598392,"1,544.75",United Utilities Water Plc
Manchester City Council,Corporate Services,Water - Unmetered,16.04.2015,1904598393,"1,544.75",United Utilities Water Plc
Manchester City Council,Corporate Services,Water - Unmetered,16.04.2015,1904598335,"1,544.75",United Utilities Water Plc
Manchester City Council,Corporate Services,Water - Unmetered,16.04.2015,1904598390,"1,544.75",United Utilities Water Plc
